Workbook

Sheet 第二批 (hidden)
A1: 科室 | B1: 岗位性质 | C1: 岗位类别 | D1: 计划人数 | E1: 学科专业 | F1: 学历、学位 | G1: 年龄 | H1: 其他要求
A2: 儿科 | B2: 事业编 | C2: 医疗 | D2: 1 | E2: 儿科学、内科学或临床医学（七年制或八年制）专业 | F2: 研究生、硕士及以上 | G2: ≤35周岁 | H2: 拟从事临床医疗岗位
A3: 过敏性疾病科 | B3: 事业编 | C3: 医疗 | D3: 1 | E3: 内科学或临床医学（七年制或八年制）专业 | F3: 研究生、硕士及以上 | G3: ≤35周岁 | H3: 专硕已规培，拟从事临床医疗岗位
A4: 康复医学科 | B4: 事业编 | C4: 医疗 | D4: 2 | E4: 康复医学与理疗学或临床医学（七年制或八年制）专业 | F4: 研究生、硕士及以上 | G4: ≤35周岁 | H4: 全日制研究生学历，具有执业医师资质，本科为临床医学专业，近3年以第一作者身份发表中华或者SCI论文至少2篇
B5: 事业编 | C5: 技术 | D5: 1 | E5: 康复医学与理疗学或临床医学（七年制或八年制）专业 | F5: 研究生、硕士及以上 | G5: ≤35周岁 | H5: 全日制研究生学历，具有康复治疗技术初级证书，近3年以第一作者身份发表中华或者SCI论文至少1篇
A6: 输血科 | B6: 事业编 | C6: 技术 | D6: 1 | E6: 基础医学、临床医学或生物学及其下设二级学科 | F6: 研究生、硕士及以上 | G6: ≤35周岁 | H6: 入职时须取得卫生专业技术资格证书（输血技术或检验技术），拟从事临床技术岗位
A7: 儿外科 | B7: 事业编 | C7: 医疗 | D7: 1 | E7: 外科学或临床医学（七年制或八年制）专业 | F7: 研究生、硕士及以上 | G7: ≤35周岁 | H7: 拟从事临床医疗岗位
A8: 血液内科 | B8: 事业编 | C8: 医疗 | D8: 2 | E8: 内科学或临床医学（七年制或八年制）专业 | F8: 研究生、硕士及以上 | G8: ≤35周岁 | H8: 拟从事临床医疗岗位
A9: 医学影像科 | B9: 事业编 | C9: 医疗 | D9: 3 | E9: 影像医学与核医学或临床医学（七年制或八年制）专业 | F9: 研究生、硕士及以上 | G9: ≤35周岁 | H9: 拟从事临床医疗岗位
A10: 口腔科 | B10: 事业编 | C10: 医疗 | D10: 1 | E10: 口腔临床医学或临床医学（七年制或八年制）专业 | F10: 研究生、硕士及以上 | G10: ≤35周岁 | H10: 主治及以上职称（需不定期到总医院空港工作）入职时具有住院医师规范化培训合格证书
A11: 临床心理科 | B11: 事业编 | C11: 医疗 | D11: 2 | E11: 精神病学或临床医学（七年制或八年制）专业 | F11: 研究生、硕士及以上 | G11: ≤35周岁 | H11: 本科阶段须精神病学或临床医学专业
A12: 急诊医学科 | B12: 事业编 | C12: 医疗 | D12: 3 | E12: 急诊医学或临床医学（七年制或八年制）专业 | F12: 研究生、硕士及以上 | G12: ≤35周岁 | H12: 具有医师资格证
B13: 事业编 | C13: 技术 | D13: 1 | E13: 影像医学与核医学或临床医学（七年制或八年制）专业 | F13: 研究生、硕士及以上 | G13: ≤35周岁 | H13: 具有医师资格证
B14: 事业编 | C14: 技术 | D14: 1 | E14: 临床医学及其下设二级学科 | F14: 研究生、硕士及以上 | G14: ≤35周岁
A15: 呼吸内科 | B15: 事业编 | C15: 医疗 | D15: 1 | E15: 内科学或临床医学（七年制或八年制）专业 | F15: 研究生、硕士及以上 | G15: ≤35周岁 | H15: 有规培证书，主治医生以上职称
B16: 事业编 | C16: 医疗 | D16: 1 | E16: 内科学或临床医学（七年制或八年制）专业 | F16: 研究生、硕士及以上 | G16: ≤35周岁 | H16: 应届毕业生
A17: 骨外科 | B17: 事业编 | C17: 科研 | D17: 1 | E17: 基础医学或临床医学及其下设二级学科 | F17: 研究生、硕士及以上 | G17: ≤35周岁 | H17: 有生物学或医学背景
A18: 病理科 | B18: 事业编 | C18: 医疗 | D18: 1 | E18: 病理学与病理生理学专业或临床医学相关专业 | F18: 研究生、硕士及以上 | G18: ≤35周岁 | H18: 英语六级，有执业医师资格证
B19: 事业编 | C19: 技术 | D19: 2 | E19: 病理学与病理生理学专业 | F19: 研究生、硕士及以上 | G19: ≤35周岁 | H19: 应届毕业生，其中1名有熟练外语和计算机能力，满足科室信息化和大数据统计需求
A20: 妇产科 | B20: 事业编 | C20: 医疗 | D20: 1 | E20: 病理学与病理生理学专业 | F20: 研究生、硕士及以上 | G20: ≤35周岁 | H20: 取得医师资格证书。拟从事妇产科细胞学、妇科病理及宫颈病变医疗岗位
B21: 事业编 | C21: 医疗 | D21: 1 | E21: 影像医学与核医学或临床医学（七年制或八年制）专业 | F21: 研究生、硕士及以上 | G21: ≤35周岁 | H21: 拟从事妇产科超声医疗岗位
B22: 事业编 | C22: 技术 | D22: 1 | E22: 临床检验诊断学专业 | F22: 研究生、硕士及以上 | G22: ≤35周岁 | H22: 拟从事妇产科相关检验工作
B23: 事业编 | C23: 技术 | D23: 2 | E23: 生殖医学（辅助生殖技术）、医学细胞生物学、发育生物学、细胞生物学、医学检验学、卫生检验学、生物学等相关专业 | F23: 研究生、硕士及以上 | G23: ≤35周岁 | H23: 拟从事妇产科生殖中心胚胎实验室技术岗位、生殖检验室技术岗位
B24: 事业编 | C24: 技术 | D24: 1 | E24: 生殖医学（辅助生殖技术） | F24: 研究生、硕士及以上 | G24: ≤35周岁 | H24: 拟从事妇产科生殖中心男科实验室工作
A25: 精准医学中心 | B25: 事业编 | C25: 技术 | D25: 1 | E25: 临床检验诊断学专业或放射医学专业 | F25: 研究生、硕士及以上 | G25: ≤35周岁 | H25: 拟从事临床技术岗位，有5年以上工作经验，取得临床医学检验技术中级职称，有新冠一线抗疫工作经历
A26: 核医学科 | B26: 事业编 | C26: 技术 | D26: 1 | E26: 影像医学与核医学或临床医学（七年制或八年制）专业 | F26: 研究生、硕士及以上 | G26: ≤35周岁 | H26: 发表1篇影响因子大于2分的一作SCI文章（若发表多篇，累计影响因子大于3分）
A27: 眼科 | B27: 事业编 | C27: 技术 | D27: 1 | E27: 眼视光学专业 | F27: 研究生、硕士及以上 | G27: ≤35周岁 | H27: 应届毕业生
A28: 麻醉科（疼痛诊疗中心） | B28: 事业编 | C28: 医疗 | D28: 2 | E28: 麻醉学或临床医学（七年制或八年制）专业 | F28: 研究生、硕士及以上 | G28: ≤35周岁
A29: 感染科 | B29: 事业编 | C29: 医疗 | D29: 2 | E29: 内科学、外科学或临床医学（七年制或八年制）专业 | F29: 研究生、硕士及以上 | G29: ≤35周岁 | H29: 具有医师资格证
A30: 神经病学研究所 | B30: 事业编 | C30: 技术 | D30: 1 | E30: 外科学或临床医学（七年制或八年制）专业专业 | F30: 研究生、硕士及以上 | G30: ≤35周岁 | H30: 熟悉掌握肿瘤研究的基本操作技能和动物实验操作技巧，发表一区研究论文
A31: 保健医疗部 | B31: 事业编 | C31: 医疗 | D31: 1 | E31: 老年医学、内科学或临床医学（七年制或八年制）专业专业专业 | F31: 研究生、硕士及以上 | G31: ≤35周岁 | H31: 以第一作者发表中华系列期刊论文1篇，或以第一/共同第一作者发表SCI论文1篇，CET六级，取得医师资格证书
A32: 泌尿外科 | B32: 事业编 | C32: 医疗 | D32: 1 | E32: 外科学或临床医学（七年制或八年制）专业 | F32: 研究生、硕士及以上 | G32: ≤35周岁 | H32: 拟从事临床医疗岗位
A33: 心血管内科 | B33: 事业编 | C33: 医疗 | D33: 3 | E33: 内科学或临床医学（七年制或八年制）专业 | F33: 研究生、硕士及以上 | G33: ≤35周岁 | H33: 拟从事临床医疗岗位
B34: 事业编 | C34: 医疗 | D34: 1 | E34: 内科学、影像医学与核医学或临床医学（七年制或八年制）专业 | F34: 研究生、硕士及以上 | G34: ≤35周岁 | H34: 具有超声医学或影像医学规培证
A35: 超声科 | B35: 事业编 | C35: 医疗 | D35: 1 | E35: 影像医学与核医学专业或临床医学（七年制或八年制）专业 | F35: 研究生、硕士及以上 | G35: ≤35周岁 | H35: 拟从事临床医疗岗位
A36: 健康管理中心 | B36: 事业编 | C36: 医疗 | D36: 1 | E36: 内科学或临床医学（七年制或八年制）专业 | F36: 研究生、硕士及以上 | G36: ≤35周岁 | H36: 拟从事临床医疗岗位
B37: 事业编 | C37: 医疗 | D37: 1 | E37: 影像医学与核医学专业或临床医学（七年制或八年制）专业 | F37: 研究生、硕士及以上 | G37: ≤35周岁 | H37: 拟从事临床医疗岗位
A38: 护理部 | B38: 事业编 | C38: 护理 | D38: 9 | E38: 护理专业 | F38: 研究生、硕士及以上 | G38: ≤35周岁 | H38: 拟从事临床护理岗位
B39: 事业编 | C39: 护理 | D39: 10 | E39: 助产专业 | F39: 本科，学士及以上 | G39: ≤25周岁 | H39: 拟从事临床护理岗位
B40: 事业编 | C40: 护理 | D40: 6 | E40: 护理专业 | F40: 本科，学士及以上 | G40: ≤35周岁 | H40: 拟从事重症护理工作
D41: =SUM(D2:D40) -> 74

Sheet 代理制派遣制 (hidden)
A1: 科室 | B1: 岗位性质 | C1: 岗位类别 | D1: 计划人数 | E1: 学科专业 | F1: 学历、学位 | G1: 年龄 | H1: 其他要求
A2: 康复医学科 | B2: 代理制 | C2: 技术 | D2: 2 | E2: 康复治疗学 | F2: 本科、学士及以上 | G2: ≤30周岁 | H2: 全日制本科学历，康复治疗学相关专业
A3: 医学影像科 | B3: 代理制 | C3: 技术 | D3: 1 | E3: 医学影像技术专业或医学影像学专业（医学影像技术方向) | F3: 研究生、硕士及以上 | G3: ≤35周岁
B4: 代理制 | C4: 技术 | D4: 3 | E4: 医学影像技术专业或医学影像学专业（医学影像技术方向) | F4: 本科、学士及以上 | G4: ≤30周岁
A5: 肺部肿瘤外科 | B5: 代理制 | C5: 技术 | D5: 1 | E5: 医学超声技术专业 | F5: 本科、学士及以上 | G5: ≤35周岁 | H5: 无
A6: 急诊医学科 | B6: 代理制 | C6: 技术 | D6: 1 | E6: 医学检验技术或相关医学专业 | F6: 本科、学士及以上 | G6: ≤30周岁
A7: 骨外科 | B7: 代理制 | C7: 技术 | D7: 1 | E7: 临床医学 | F7: 本科、学士及以上 | G7: ≤35周岁 | H7: 影像学或电生理专业优先
A8: 妇产科 | B8: 代理制 | C8: 技术 | D8: 1 | E8: 医学实验技术及相关专业 | F8: 本科、学士及以上 | G8: ≤30周岁
A9: 感染科 | B9: 代理制 | C9: 技术 | D9: 2 | E9: 医学检验技术专业 | F9: 本科、学士及以上 | G9: ≤30周岁
A10: 药剂科（司法医学鉴定中心） | B10: 代理制 | C10: 技术 | D10: 1 | E10: 法医临床、物证、病理 | F10: 研究生、硕士及以上 | G10: ≤30周岁 | H10: 以第一作者发表核心期刊论文1篇以上，有两年以上工作经验，从事过法医临床工作
A11: 医疗安全部 | B11: 代理制 | C11: 其他 | D11: 1 | E11: 临床医学及其下设二级学科或卫生事业管理学专业 | F11: 研究生、硕士及以上 | G11: ≤35周岁 | H11: 拟从事医疗安全管理相关工作
A12: 财务物价处 | B12: 代理制 | C12: 其他 | D12: 1 | E12: 财务管理或会计学专业 | F12: 本科、学士及以上 | G12: ≤30周岁 | H12: 熟悉财税制度、熟练掌握财务核算软件系统、办公软件、会计核算方法
A13: 病案统计科 | B13: 代理制 | C13: 技术 | D13: 1 | E13: 编码员 | F13: 本科、学士及以上 | G13: 22 | H13: 热爱本职工作、有相关培训证书
B14: 代理制 | C14: 技术 | D14: 1 | E14: 统计学 | F14: 本科、学士及以上 | G14: 22 | H14: 热爱本职工作、有相关培训证书
A15: 保卫处 | B15: 派遣制 | C15: 其他 | D15: 1 | E15: 行政管理相关专业 | F15: 大专及以上 | G15: ≤30周岁 | H15: 消防退役人员，有从事消防专业工作经验和技能
A16: 心血管内科 | B16: 代理制 | C16: 技术 | D16: 1 | E16: 临床医学、影像技术或医学影像 | F16: 本科、学士及以上 | G16: ≤30周岁 | H16: 心电图室方向
B17: 代理制 | C17: 技术 | D17: 1 | E17: 临床医学、影像技术、医学影像或生物医学工程 | F17: 本科、学士及以上 | G17: ≤30周岁 | H17: 导管室方向，接触放射线
A18: 临床营养科 | B18: 代理制 | C18: 医疗 | D18: 1 | E18: 临床医学及其下设二级学科 | F18: 研究生、硕士及以上 | G18: ≤35周岁 | H18: 有医师资格证、有工作经历优先
A19: 护理部 | B19: 代理制 | C19: 临床护理 | D19: 65 | E19: 护理专业 | F19: 本科、学士及以上 | G19: ≤30周岁
A20: 学科建设管理处 | B20: 代理制 | C20: 其他 | D20: 1 | E20: 不限 | F20: 研究生、硕士及以上 | G20: 35以下 | H20: 1.有外企工作经验；2.熟悉外企制药的管理；3.良好的英语沟通能力
D21: =SUM(D2:D20) -> 87
A22: 国有资产管理处（设备运维科） | B22: 代理制 | C22: 技术 | D22: 2 | E22: 生物医学工程 | F22: 研究生、硕士及以上 | G22: ≤35周岁
D23: 89

Sheet final (hidden)
B1: 天津医科大学总医院二〇二二年人员补充计划表
A2: 科室 | B2: 岗位性质 | C2: 岗位类别 | D2: 计划人数 | E2: 学科专业 | F2: 学历、学位 | G2: 年龄 | H2: 其他要求 | I2: 笔试科目 | J2: 科室补充意见+J:M | K2: 人事处结合主要领导意见 | L2: 2021年辞职或调动 | M2: 2022年退休 | N2: 2021年计划 | O2: 2021年新职工 | P2: 2021年未用指标 | Q2: 2022年计划 | R2: 实际纯增 | S2: 床位数 | T2: 科室应配置人员总数（床位数*1.6）依据 | U2: 科室总人数 | V2: 医师 人数 | W2: 护理人数 | X2: 技研 | Y2: 其他 | Z2: 全年诊疗人数 | AA2: 出院人数 | AB2: 平均病床周转次数 | AC2: 实际病床使用率 % | AD2: 出院者平均住院日 | AE2: 人均门诊量 | AF2: 人均出院数 | AG2: 按床护比（1:0.8） 护理人数 | AH2: 护理人数 （85%或65%） | AI2: 按医护比 （0.8:1） 医师人数 | AJ2: 医师人数 （85%或65%） | AK2: 医师差额 | AL2: 绩效 水平 | AM2: 科室名称
A3: 儿科 | B3: 事业编 | C3: 医疗 | D3: 1 | E3: 儿科学、内科学或临床医学专业（八年制） | F3: 研究生、博士 | G3: ≤45周岁 | H3: 拟从事临床医疗岗位 | I3: 儿科学 | L3: 0 | M3: 0 | N3: 0 | O3: 0 | P3: 0 | Q3: 医2 | R3: 医2 | S3: =VLOOKUP(A:A,Sheet6!A:C,3,0) -> 80 | T3: 128 | U3: 116 | V3: 40 | W3: 76 | X3: 0 | Y3: 0 | Z3: 66822 | AA3: 1791 | AC3: 73.1% | AD3: 8 | AE3: 1671 | AF3: =AA3/V3 -> 44.775 | AG3: =S3*0.8 -> 64
A4: 儿科 | B4: 事业编 | C4: 医疗 | D4: 1 | E4: 儿科学/内科学或临床医学（七年制或八年制）专业 | F4: 研究生、硕士及以上 | G4: ≤35周岁 | I4: 儿科学
A5: 神经内科 | B5: 事业编 | C5: 医疗 | D5: 3 | E5: 神经病学或临床医学专业（八年制） | F5: 研究生、博士 | G5: ≤45周岁 | H5: 拟从事临床医疗岗位 | L5: 医1（讲师） | M5: 0 | N5: 医3技1 | O5: 医3技1 | P5: 0 | Q5: 医3 | R5: 医2 | S5: =VLOOKUP(A:A,Sheet6!A:C,3,0) -> 168 | T5: 268.8 | U5: 178 | V5: 75 | W5: 91 | X5: 11 | Y5: 1 | Z5: 229216 | AA5: 4347 | AC5: 88.0% | AD5: 12.3 | AE5: 3056 | AF5: =AA5/V5 -> 57.96 | AG5: =S5*0.8 -> 134.4
A6: 过敏性疾病科 | B6: 事业编 | C6: 医疗 | D6: 1 | E6: 内科学及相关专业 | F6: 硕士研究生 | G6: ≤35周岁 | H6: 专硕已规培 | I6: 普通内科 | L6: 0 | M6: 0 | N6: 医1 | O6: 医1 | P6: 0 | Q6: 医1 | R6: 医1 | U6: 5 | V6: 3 | W6: 2 | X6: 0 | Y6: 0 | Z6: 8606 | AE6: =Z6/V6 -> 2869 | AG6: =S6*0.8 -> 0
A7: 康复医学科 | B7: 事业编 | C7: 医疗 | D7: 2 | E7: 康复医学与理疗学/临床医学 | F7: 研究生、硕士及以上 | G7: ≤35周岁 | H7: 全日制研究生学历，具有执业医师资质，本科为临床医学专业，近3年以第一作者身份发表中华或者SCI论文至少2篇 | I7: 康复医学与理疗学 | L7: 医1（医师） | M7: 0 | N7: 医3技2 | O7: 技2 | P7: 医3 | Q7: 医2技3 | R7: 技3 | S7: =VLOOKUP(A:A,Sheet6!A:C,3,0) -> 54 | T7: 86.4 | U7: 73 | V7: 16 | W7: 23 | X7: 34 | Y7: 0 | Z7: 3936 | AA7: 426 | AC7: 113.2% | AD7: 28.6 | AE7: 246 | AF7: =AA7/V7 -> 26.625 | AG7: =S7*0.8 -> 43.2
A8: 康复医学科 | B8: 事业编 | C8: 技术 | D8: 1 | E8: 康复治疗学 | F8: 研究生、硕士及以上 | G8: ≤35周岁 | H8: 全日制研究生学历，具有康复治疗技术初级证书，近3年以第一作者身份发表中华或者SCI论文至少1篇 | I8: 康复治疗学
A9: 康复医学科 | B9: 代理制 | C9: 技术 | D9: 2 | E9: 康复治疗学 | F9: 本科生 | G9: ≤30周岁 | H9: 全日制本科学历，康复治疗学相关专业 | I9: 康复治疗学
A10: 国有资产管理处（设备运维科） | B10: 事业编 | C10: 技术 | D10: 2 | E10: 生物医学工程 | F10: 研究生 | G10: ≤35周岁 | I10: 生物医学工程92 | L10: 0 | M10: 工程师1（高健） | O10: 0 | P10: 0 | Q10: 其他1 | R10: 0 | U10: 21 | V10: 0 | W10: 0 | X10: 0 | Y10: 21
A11: 输血科 | B11: 事业编 | C11: 医疗 | D11: 1 | E11: 临床医学及其下设二级学科 | F11: 研究生、博士 | G11: ≤45周岁 | H11: 应届毕业生，拟从事临床医疗岗位 | I11: 66 | L11: 技1（主管技师） | M11: 0 | N11: 医1技2 | O11: 技2 | P11: 医1 | Q11: 医1技1 | R11: 0 | U11: 20 | V11: 0 | W11: 0 | X11: 20 | Y11: 0
A12: 输血科 | B12: 事业编 | C12: 技术 | D12: 1 | E12: 基础医学、临床医学或生物学及其下设二级学科 | F12: 研究生、硕士及以上 | G12: ≤35周岁 | H12: 入职时须取得卫生专业技术资格证书（输血技术或检验技术），拟从事临床技术岗位 | I12: 66
A13: 儿外科 | B13: 事业编 | C13: 医疗 | D13: 1 | E13: 外科学或临床医学专业（八年制） | F13: 研究生、博士 | G13: ≤45周岁 | H13: 拟从事临床医疗岗位 | I13: 免笔试 | L13: 医1（主治医师） | M13: 0 | N13: 医1 | O13: 医1 | P13: 0 | Q13: 医2 | R13: 医1 | S13: =VLOOKUP(A:A,Sheet6!A:C,3,0) -> 9 | T13: 14.4 | U13: 13 | V13: 5 | W13: 8 | X13: 0 | Y13: 0 | Z13: 4101 | AA13: 332 | AC13: 87.9% | AD13: 7.7 | AE13: =Z13/V13 -> 820 | AF13: =AA13/V13 -> 66.4 | AG13: =S13*0.8 -> 7.2
A14: 儿外科 | B14: 事业编 | C14: 医疗 | D14: 1 | E14: 外科学或临床医学（七年制或八年制）专业 | F14: 研究生、硕士及以上 | G14: ≤35周岁 | I14: 21-小儿外科
A15: 心胸外科 | B15: 事业编 | C15: 医疗 | D15: 1 | E15: 外科学或临床医学专业（八年制） | F15: 研究生、博士 | G15: ≤45周岁 | H15: 拟从事临床医疗岗位 | L15: 0 | M15: 0 | N15: 医2 | O15: 医2 | P15: 0 | Q15: 医1 | R15: 医1 | S15: =VLOOKUP(A:A,Sheet6!A:C,3,0) -> 42 | T15: 67.2 | U15: 41 | V15: 17 | W15: 23 | X15: 1 | Y15: 0 | Z15: 14204 | AA15: 1159 | AC15: 98.1% | AD15: 12.3 | AE15: 836 | AF15: =AA15/V15 -> 68.17647059 | AG15: =S15*0.8 -> 33.6
A16: 血液内科 | B16: 事业编 | C16: 医疗 | D16: 2 | E16: 内科学或临床医学（血液病）专业 | F16: 研究生、硕士 | G16: ≤30周岁 | I16: 普通内科或血液病科 | L16: 医1（主治医师） | M16: 0 | N16: 医3技1 | O16: 医3技1 | P16: 0 | Q16: 医2 | R16: 医1 | S16: =VLOOKUP(A:A,Sheet6!A:C,3,0) -> 92 | T16: 147.2 | U16: 122 | V16: 53 | W16: 61 | X16: 8 | Y16: 0 | Z16: 40734 | AA16: 4280 | AC16: 195.0% | AD16: 14.8 | AE16: 769 | AF16: =AA16/V16 -> 80.75471698 | AG16: =S16*0.8 -> 73.6
A17: 医学影像科 | B17: 事业编 | C17: 医疗 | D17: 1 | E17: 影像医学与核医学或临床医学专业（八年制） | F17: 研究生、博士 | G17: ≤45周岁 | H17: 至少在有影响力的杂志发表高水平SCI论文1篇 | J17: 后加1人，已与李栋沟通 | L17: 0 | M17: 0 | N17: 医4技3 | O17: 医3技3 | P17: 医1 | Q17: 医4技4 | R17: 医3技4 | S17: =VLOOKUP(A:A,Sheet6!A:C,3,0) -> 0 | U17: 127 | V17: 57 | W17: 9 | X17: 60 | Y17: 1 | AG17: =S17*0.8 -> 0
A18: 医学影像科 | B18: 事业编 | C18: 医疗 | D18: 3 | E18: 影像医学与核医学专业 | F18: 研究生、硕士 | G18: ≤35周岁 | I18: 医学影像学(医)
A19: 医学影像科 | B19: 代理制 | C19: 技术 | D19: 1 | E19: 医学影像技术专业或医学影像学专业（医学影像技术方向) | F19: 研究生、硕士 | G19: ≤35周岁 | I19: 医学影像学(技)
A20: 医学影像科 | B20: 代理制 | C20: 技术 | D20: 3 | E20: 医学影像技术专业或医学影像学专业（医学影像技术方向) | F20: 本科、学士 | G20: ≤30周岁 | I20: 医学影像学(技)
A21: 口腔科 | B21: 事业编 | C21: 医疗 | D21: 1 | E21: 口腔医学 | F21: 研究生、硕士 | G21: ≤40周岁 | H21: 主治及以上职称（需不定期到总医院空港工作）入职时具有住院医师规范化培训合格证书 | I21: 口腔内科 | J21: 已与韩主任沟通修改 | L21: 0 | M21: 医1（嵇希敏） | N21: 0 | O21: 0 | P21: 0 | Q21: 医1 | R21: 0 | S21: 24 | T21: 38.4 | U21: 56 | V21: 38 | W21: 18 | X21: 0 | Y21: 0 | Z21: 47773 | AA21: 579 | AC21: 86.2% | AD21: 13.4 | AE21: 1257 | AF21: =AA21/V21 -> 15.23684211 | AG21: =S21*0.8 -> 19.2
A22: 临床心理科 | B22: 事业编 | C22: 医疗 | D22: 1 | E22: 精神病学或临床医学专业（八年制） | F22: 研究生、博士 | G22: ≤45周岁 | H22: 本科阶段须精神病学或临床医学专业 | I22: 精神病学 | L22: 0 | M22: 0 | N22: 医1 | O22: 0 | P22: 医1 | Q22: 医3 | R22: 医2 | S22: =VLOOKUP(A:A,Sheet6!A:C,3,0) -> 0 | U22: 6 | V22: 1 | W22: 0 | X22: 4 | Y22: 1 | Z22: 56520 | AE22: 56520 | AG22: =S22*0.8 -> 0
A23: 临床心理科 | B23: 事业编 | C23: 医疗 | D23: 2 | E23: 精神病学或临床医学（七年制或八年制）专业…… | F23: 研究生、硕士及以上 | G23: ≤35周岁 | H23: 本科阶段须精神病学或临床医学专业 | I23: 精神病学
A24: 肾脏内科 | B24: 事业编 | C24: 医疗 | D24: 1 | E24: 内科学或临床医学专业（八年制） | F24: 研究生、博士 | G24: ≤45周岁 | H24: 第一作者SCI论文1篇及以上 | L24: 医1（讲师） | M24: 0 | N24: 医1技1 | O24: 医1技1 | P24: 0 | Q24: 医1 | R24: 0 | S24: =VLOOKUP(A:A,Sheet6!A:C,3,0) -> 64 | T24: 102.4 | U24: 96 | V24: 32 | W24: 61 | X24: 3 | Y24: 0 | Z24: 143346 | AA24: 3103 | AC24: 101.8% | AD24: 7.3 | AE24: 4480 | AF24: =AA24/V24 -> 96.96875 | AG24: =S24*0.8 -> 51.2
A25: 肺部肿瘤外科 | B25: 代理制 | C25: 技术 | D25: 1 | E25: 医学超声技术专业 | F25: 本科及以上 | G25: 35岁以下 | H25: 无 | I25: 超声技术 | L25: 0 | M25: 0 | N25: 医1 | O25: 医1 | P25: 0 | Q25: 技1 | R25: 技1 | S25: =VLOOKUP(A:A,Sheet6!A:C,3,0) -> 70 | T25: 112 | U25: 48 | V25: 19 | W25: 29 | X25: 0 | Y25: 0 | Z25: 19483 | AA25: 3520 | AC25: 105.9% | AD25: 7.3 | AE25: 1025 | AF25: =AA25/V25 -> 185.2631579 | AG25: =S25*0.8 -> 56
A26: 急诊医学科 | B26: 事业编 | C26: 医疗 | D26: 3 | E26: 急诊医学或临床医学专业 | F26: 研究生、硕士及以上 | G26: ≤35周岁 | H26: 具有医师资格证 | L26: 医1（医师） | M26: 0 | N26: 医4技4 | O26: 医2技2 | P26: 医2技2 | Q26: 医4技3 | R26: 医1技1 | S26: =VLOOKUP(A:A,Sheet6!A:C,3,0) -> 69 | T26: 110.4 | U26: 171 | V26: 61 | W26: 103 | X26: 7 | Y26: 0 | Z26: 111510 | AA26: 1765 | AC26: 107.5% | AD26: 14.3 | AE26: 1828 | AF26: =AA26/V26 -> 28.93442623 | AG26: =S26*0.8 -> 55.2
A27: 急诊医学科 | B27: 事业编 | C27: 医疗 | D27: 1 | E27: 急诊医学 | F27: 硕士及以上 | G27: ≤45周岁 | H27: 具有副高级及以上医师职称。拟从事临床医疗岗位。
A28: 急诊医学科 | B28: 事业编 | C28: 技术 | D28: 1 | E28: 影像或相关医学专业 | F28: 研究生、硕士及以上 | G28: ≤35周岁 | H28: 具有医师资格证
A29: 急诊医学科 | B29: 事业编 | C29: 技术 | D29: 1 | E29: 医学检验技术或相关临床医学专业 | F29: 硕士及以上 | G29: ≤35周岁
A30: 急诊医学科 | B30: 代理制 | C30: 技术 | D30: 1 | E30: 医学检验技术或相关医学专业 | F30: 本科及以上 | G30: ≤30周岁
A31: 普通外科 | B31: 事业编 | C31: 医疗 | D31: 1 | E31: 外科学（胃肠肛肠外科）或临床医学专业（八年制） | F31: 研究生、博士 | G31: ≤45周岁 | H31: 拟从事临床医疗岗位 | I31: 无 | L31: 0 | M31: 医3（张乃勤、田伟军、吴双虎） | N31: 医3 | O31: 医1 | P31: 医2 | Q31: 医3技1 | R31: 技1 | S31: =VLOOKUP(A:A,Sheet6!A:C,3,0) -> 208 | T31: 332.8 | U31: 193 | V31: 96 | W31: 94 | X31: 3 | Y31: 0 | Z31: 132388 | AA31: 7249 | AC31: 109.3% | AD31: 10.8 | AE31: 1379 | AF31: =AA31/V31 -> 75.51041667 | AG31: =S31*0.8 -> 166.4
A32: 普通外科 | B32: 事业编 | C32: 医疗 | D32: 1 | E32: 外科学（肝胆胰脾外科）或临床医学专业（八年制） | F32: 研究生、博士 | G32: ≤45周岁 | H32: SCI二区第一作者文章至少1篇，或SCI一区共同第一作者文章至少1篇 | I32: 无
A33: 普通外科 | B33: 事业编 | C33: 医疗 | D33: 1 | E33: 外科学（血管外科）或临床医学专业（八年制） | F33: 研究生、博士 | G33: ≤45周岁 | H33: SCI第一作者（包括共同第一作者）文章至少2篇，同时中华级医学杂志第一作者文章至少1篇；取得执业医师资格证、完成住院医师规范化培训 | I33: 无
A34: 普通外科 | B34: 事业编 | C34: 技术 | D34: 1 | E34: 影像医学与核医学或临床医学专业（八年制） | F34: 研究生、博士 | G34: ≤45周岁 | H34: 取得执业医师资格证、完成住院医师规范化培训 | I34: 无
A35: 呼吸内科 | B35: 事业编 | C35: 医疗 | D35: 1 | E35: 或临床医学专业（八年制） | F35: 研究生、博士 | G35: ≤45周岁 | H35: 单篇SCI文章IF≧5分 | L35: 0 | M35: 0 | N35: 医3 | O35: 医3 | P35: 0 | Q35: 医5 | R35: 医5 | S35: =VLOOKUP(A:A,Sheet6!A:C,3,0) -> 72 | T35: 115.2 | U35: 94 | V35: 35 | W35: 54 | X35: 5 | Y35: 0 | Z35: 105349 | AA35: 2892 | AC35: 103.0% | AD35: 9.4 | AE35: =Z35/V35 -> 3010 | AF35: =AA35/V35 -> 82.62857143 | AG35: =S35*0.8 -> 57.6
A36: 呼吸内科 | B36: 事业编 | C36: 医疗 | D36: 1 | E36: 或临床医学专业（八年制） | F36: 研究生、博士 | G36: ≤45周岁 | H36: 单篇SCI文章IF≧2分
A37: 呼吸内科 | B37: 事业编 | C37: 医疗 | D37: 1 | E37: 或临床医学专业（八年制） | F37: 研究生、博士 | G37: ≤45周岁 | H37: 应届毕业生 | I37: 呼吸内科
A38: 呼吸内科 | B38: 事业编 | C38: 医疗 | D38: 1 | E38: 内科学或临床医学专业 | F38: 研究生、硕士及以上 | G38: ≤35周岁 | H38: 有规培证书，主治医生 | I38: 呼吸内科
A39: 呼吸内科 | B39: 事业编 | C39: 医疗 | D39: 1 | E39: 内科学或临床医学专业 | F39: 研究生、硕士及以上 | G39: ≤35周岁 | H39: 应届毕业生 | I39: 呼吸内科
A40: 骨外科 | B40: 事业编 | C40: 医疗 | D40: 1 | E40: 外科学或临床医学专业（八年制） | F40: 研究生、博士 | G40: ≤45周岁 | H40: 有国外高水平大学学习经历，有SCI论文 | L40: 医1（主任医师） | M40: 0 | N40: 医3 | O40: 医3 | P40: 0 | Q40: 医1技1研1 | R40: 技1研1 | S40: =VLOOKUP(A:A,Sheet6!A:C,3,0) -> 126 | T40: 201.6 | U40: 103 | V40: 43 | W40: 57 | X40: 3 | Y40: 0 | Z40: 84020 | AA40: 2236 | AC40: 72.7% | AD40: 14.2 | AE40: 1954 | AF40: =AA40/V40 -> 52 | AG40: =S40*0.8 -> 100.8
A41: 骨外科 | B41: 事业编 | C41: 科研 | D41: 1 | E41: 基础医学或临床医学 | F41: 硕士及以上 | G41: ≤35周岁 | H41: 有生物学或医学背景 | I41: 生物化学
A42: 骨外科 | B42: 代理制 | C42: 技术 | D42: 1 | E42: 临床医学 | F42: 本科及以上 | G42: ≤35周岁 | H42: 影像学或电生理专业优先 | I42: 影像学
A43: 病理科 | B43: 事业编 | C43: 医疗 | D43: 1 | E43: 病理学专业或临床医学专业 | F43: 研究生、硕士、博士 | G43: ≤30周岁 | H43: 外语六级，有执业医师执照 | I43: 病理医45 | L43: 0 | M43: 0 | N43: 医2技1 | O43: 医2技1 | P43: 0 | Q43: 医1技2 | R43: 医1技2 | S43: 0 | U43: 9 | V43: 6 | W43: 0 | X43: 3 | Y43: 0 | AG43: =S43*0.8 -> 0
A44: 病理科 | B44: 事业编 | C44: 技术 | D44: 2 | E44: 病理学或医学相关专业 | F44: 研究生、硕士及以上 | G44: ≤30周岁 | H44: 应届毕业生，其中1名有熟练外语和计算机能力，满足科室信息化和大数据统计需求 | I44: 病理技46
A45: 妇产科 | B45: 事业编 | C45: 医疗 | D45: 5 | E45: 妇产科学或临床医学（八年制）专业 | F45: 研究生、博士 | G45: ≤45周岁 | H45: 应届毕业生。拟从事妇产科临床医疗岗位 | I45: 无 | L45: 医4（医师3，主任医师1） 研1（研究实习员） | M45: 医4（范庆春、刘小玫、顾向应、黄建华） | N45: 医5 | O45: 医3 | P45: 医2 | Q45: 医7技6 | R45: 技6 | S45: 152 | T45: 243.2 | U45: 197 | V45: 85 | W45: 93 | X45: 18 | Y45: 1 | Z45: 187455 | AA45: 6379 | AC45: 82.2% | AD45: 7 | AE45: 2205 | AF45: =AA45/V45 -> 75.04705882 | AG45: =S45*0.8 -> 121.6
A46: 妇产科 | B46: 事业编 | C46: 医疗 | D46: 1 | E46: 病理学与病理生理学专业 | F46: 研究生、硕士及以上 | G46: ≤35周岁 | H46: 取得医师资格证书。拟从事妇产科细胞学、妇科病理及宫颈病变医疗岗位 | I46: 病理（医）
A47: 妇产科 | B47: 事业编 | C47: 医疗 | D47: 1 | E47: 影像医学与核医学专业或临床医学（七年制或八年制）专业 | F47: 研究生、硕士及以上 | G47: ≤35周岁 | H47: 拟从事妇产科超声医疗岗位 | I47: 医学影像学(超声)
A48: 妇产科 | B48: 事业编 | C48: 技术 | D48: 1 | E48: 临床检验诊断学专业 | F48: 研究生、硕士及以上 | G48: ≤35周岁 | H48: 拟从事妇产科相关检验工作 | I48: 检验
A49: 妇产科 | B49: 事业编 | C49: 技术 | D49: 1 | E49: 妇产科学（辅助生殖技术）、医学遗传学、发育生物学、细胞生物学、医学细胞生物学、生物信息分析、生物统计等相关专业 | F49: 研究生、博士 | G49: ≤45周岁 | H49: 英语六级，拟从事妇产科生殖中心胚胎实验室技术岗位 | I49: 无
A50: 妇产科 | B50: 事业编 | C50: 技术 | D50: 2 | E50: 生殖医学（辅助生殖技术）、医学细胞生物学、发育生物学、细胞生物学、医学检验学、卫生检验学、生物学等相关专业 | F50: 研究生、硕士及以上 | G50: ≤35周岁 | H50: 拟从事妇产科生殖中心胚胎实验室技术岗位、生殖检验室技术岗位 | I50: 待定
A51: 妇产科 | B51: 代理制 | C51: 技术 | D51: 1 | E51: 医学实验技术及相关专业 | F51: 本科及以上 | G51: ≤30周岁 | I51: 待定
A52: 妇产科 | B52: 事业编 | C52: 技术 | D52: 1 | E52: 生殖医学（辅助生殖技术） | F52: 研究生、硕士及以上 | G52: ≤35周岁 | H52: 拟从事妇产科生殖中心男科实验室工作 | I52: 检验
A53: 精准医学中心 | B53: 事业编 | C53: 技术 | D53: 1 | E53: 遗传学、细胞生物学、生物化学及分子生物学、医学细胞生物学、医学生物化学及分子生物学 | F53: 研究生、博士 | G53: ≤45周岁 | H53: 拟从事临床技术岗位 | I53: 检验 | L53: 医1（讲师） | M53: 0 | N53: 技1 | O53: 技1 | P53: 0 | Q53: 技2 | R53: 技2 | S53: 0 | U53: 18 | V53: 3 | W53: 1 | X53: 13 | Y53: 1 | AG53: =S53*0.8 -> 0
A54: 精准医学中心 | B54: 事业编 | C54: 技术 | D54: 1 | E54: 医学检验及放射医学专业 | F54: 研究生、硕士 | G54: ≤35周岁 | H54: 拟从事临床技术岗位，有5年以上工作经验，取得临床医学检验技术中级职称，有新冠一线抗疫工作经历 | I54: 检验
A55: 核医学科 | B55: 事业编 | C55: 医疗 | D55: 1 | E55: 影像医学与核医学或临床医学专业（八年制） | F55: 研究生、博士 | G55: ≤45周岁 | H55: 发表1篇影响因子大于3分的一作SCI文章（若发表多篇，累计影响因子大于5分），同时参与省市级以上课题研究 | I55: 核医学（医） | L55: 医1（主任医师） | M55: 医1（谭建） | N55: 医1 | O55: 0 | P55: 医1 | Q55: 医1技1 | R55: 技1 | S55: =VLOOKUP(A:A,Sheet6!A:C,3,0) -> 14 | T55: 22.4 | U55: 39 | V55: 17 | W55: 12 | X55: 10 | Y55: 0 | Z55: 64977 | AA55: 1113 | AC55: 102.5% | AD55: 4.5 | AE55: 3822 | AF55: =AA55/V55 -> 65.47058824 | AG55: =S55*0.8 -> 11.2
A56: 核医学科 | B56: 事业编 | C56: 技术 | D56: 1 | E56: 影像医学与核医学（核医学技术）或医学技术（核医学方向） | F56: 研究生、硕士及以上 | G56: ≤30周岁 | H56: 发表1篇影响因子大于2分的一作SCI文章（若发表多篇，累计影响因子大于3分） | I56: 核医学（技）
A57: 眼科 | B57: 事业编 | C57: 医疗 | D57: 2 | E57: 临床眼科或临床医学专业（八年制） | F57: 研究生、博士 | G57: ≤45周岁 | H57: 应届毕业生 | L57: 0 | M57: 0 | N57: 医1技1 | O57: 0 | P57: 医1技1 | Q57: 医2技1 | R57: 医1 | S57: =VLOOKUP(A:A,Sheet6!A:C,3,0) -> 42 | T57: 67.2 | U57: 41 | V57: 20 | W57: 16 | X57: 5 | Y57: 0 | Z57: 65739 | AA57: 2801 | AC57: 77.8% | AD57: 4.2 | AE57: 3287 | AF57: =AA57/V57 -> 140.05 | AG57: =S57*0.8 -> 33.6
A58: 眼科 | B58: 事业编 | C58: 技术 | D58: 1 | E58: 眼视光 | F58: 硕士 | G58: ≤35周岁 | H58: 应届毕业生
A59: 麻醉科（疼痛诊疗中心） | B59: 事业编 | C59: 医疗 | D59: 1 | E59: 麻醉学、重症医学或临床医学专业（八年制） | F59: 研究生、博士 | G59: ≤45周岁 | I59: 麻醉 | L59: 0 | M59: 医1（苗鲁民） | N59: 医3 | O59: 医3 | P59: 0 | Q59: 医3 | R59: 医2 | S59: 14 | T59: 22.4 | U59: 67 | V59: 54 | W59: 11 | X59: 0 | Y59: 2 | Z59: 36422 | AA59: 477 | AC59: 84.5% | AD59: 9 | AE59: 674 | AF59: =AA59/V59 -> 8.833333333
A60: 麻醉科（疼痛诊疗中心） | B60: 事业编 | C60: 医疗 | D60: 2 | E60: 麻醉学或临床医学（七年制或八年制）专业 | F60: 研究生、硕士及以上 | G60: ≤35周岁 | I60: 麻醉
A61: 感染科 | B61: 事业编 | C61: 医疗 | D61: 2 | E61: 内科学、外科学或临床医学专业（八年制） | F61: 研究生、硕士及以上 | G61: ≤35周岁 | H61: 具有医师资格证 | I61: 普通内科或普通外科 | L61: 0 | M61: 0 | N61: 医2 | O61: 0 | P61: 医2 | Q61: 医2技2 | R61: 技2 | S61: =VLOOKUP(A:A,Sheet6!A:C,3,0) -> 14 | T61: 22.4 | U61: 21 | V61: 9 | W61: 11 | X61: 0 | Y61: 1 | Z61: 124440 | AA61: 315 | AC61: 73.8% | AD61: 11.8 | AE61: 13827 | AF61: =AA61/V61 -> 35 | AG61: =S61*0.8 -> 11.2
A62: 感染科 | B62: 代理制 | C62: 技术 | D62: 2 | E62: 医学检验技术专业 | F62: 本科、学士及以上 | G62: ≤30周岁 | I62: 检验
A63: 医学检验科 | B63: 事业编 | C63: 医技 | D63: 1 | E63: 临床检验诊断学 | F63: 研究生、博士 | G63: ≤45周岁 | H63: 应届毕业生 | L63: 技1（主管技师） | M63: 技1（刘兆利） | N63: 技3 | O63: 技3 | P63: 0 | Q63: 技2 | R63: 0 | S63: 0 | U63: 86 | V63: 0 | W63: 0 | X63: 86 | Y63: 0 | AG63: =S63*0.8 -> 0
A64: 医学检验科 | B64: 事业编 | C64: 医技 | D64: 1 | E64: 具有临床医学、医学检验、肿瘤学等相关医学科学 | F64: 研究生、博士 | G64: ≤35周岁 | H64: 应届毕业生
A65: 神经病学研究所 | B65: 事业编 | C65: 技术 | D65: 1 | E65: 外科学专业 | F65: 研究生、硕士 | G65: ≤35周岁 | H65: 熟悉掌握肿瘤研究的基本操作技能和动物实验操作技巧，发表一区研究论文 | I65: 92生物医学工程 | L65: 0 | M65: 研1（宁宪嘉）、技1（刘丽） | N65: 研5 | O65: 研4 | P65: 研1 | Q65: 技1研1 | R65: 0 | S65: 0 | U65: 43 | V65: 1 | W65: 0 | X65: 40 | Y65: 2
A66: 神经病学研究所 | B66: 事业编 | C66: 研究 | D66: 1 | E66: 基础医学 | F66: 研究生、博士 | G66: ≤35周岁 | H66: 熟悉掌握免疫学和蛋白互作等领域前沿进展，发表一区研究论文
A67: 神经外科 | B67: 事业编 | C67: 医疗 | D67: 1 | E67: 外科学或临床医学七年制或八年制）专业（ | F67: 研究生、博士 | G67: ≤45周岁 | L67: 医1（主任医师） | M67: 医1（岳树源） | N67: 医2 | O67: 医1 | P67: 医1 | Q67: 医1 | R67: 0 | S67: =VLOOKUP(A:A,Sheet6!A:C,3,0) -> 222 | T67: 355.2 | U67: 195 | V67: 58 | W67: 132 | X67: 4 | Y67: 1 | Z67: 28842 | AA67: 3173 | AC67: 82.3% | AD67: 18.1 | AE67: 497 | AF67: =AA67/V67 -> 54.70689655
A68: 心血管外科 | B68: 事业编 | C68: 医疗 | D68: 1 | E68: 外科学或临床医学专业（八年制） | F68: 研究生、硕士 | G68: ≤45周岁 | H68: 具有副高级及以上医师职称。拟从事临床医疗岗位。 | I68: 心血管科外科 | L68: 0 | M68: 0 | N68: 医2 | O68: 医2 | P68: 0 | Q68: 医1 | R68: 医1 | S68: =VLOOKUP(A:A,Sheet6!A:C,3,0) -> 42 | T68: 67.2 | U68: 33 | V68: 15 | W68: 18 | X68: 0 | Y68: 0 | Z68: 3932 | AA68: 650 | AC68: 68.7% | AD68: 15.9 | AE68: 262 | AF68: =AA68/V68 -> 43.33333333
A69: 皮肤性病科 | B69: 事业编 | C69: 医疗 | D69: 1 | E69: 皮肤病学与性病学或临床医学（八年制）专业 | F69: 研究生、博士 | G69: ≤45周岁 | H69: 通过住院医师规范化培训，有SCI文章 | L69: 0 | M69: 技1（李春莉） | N69: 医1技1 | O69: 医1技1 | P69: 0 | Q69: 医1 | R69: 医1 | S69: =VLOOKUP(A:A,Sheet6!A:C,3,0) -> 18 | T69: 28.8 | U69: 39 | V69: 24 | W69: 10 | X69: 5 | Y69: 0 | Z69: 133810 | AA69: 909 | AC69: 90.3% | AD69: 6.5 | AE69: 5575 | AF69: =AA69/V69 -> 37.875
A70: 药剂科 | B70: 事业编 | C70: 技术 | D70: 1 | E70: 药物分析、药理学、药剂学、医学生物化学与分子生物学 | F70: 研究生、博士 | G70: ≤45周岁 | H70: 以第一作者发表SCI论文2篇以上，从事过体内药物分析或药物基因组学分析研究 | L70: 药1（主管药师） | M70: 药1（刘万华） | N70: 技2 | O70: 技2 | P70: 0 | Q70: 技1 | R70: 0 | S70: 0 | U70: 184 | V70: 0 | W70: 11 | X70: 173 | Y70: 0
A71: 药剂科（司法医学鉴定中心） | B71: 代理制 | C71: 技术 | D71: 1 | E71: 法医临床、物证、病理 | F71: 硕士 | G71: ≤30周岁 | H71: 以第一作者发表核心期刊论文1篇以上，有两年以上工作经验，从事过法医临床工作 | L71: 0 | M71: 0 | N71: 0 | O71: 0 | P71: 0 | Q71: 技1 | R71: 技1 | AG71: =S71*0.8 -> 0
A72: 医疗安全部 | B72: 代理制 | C72: 其他 | D72: 1 | E72: 临床医学及其下设二级学科或卫生事业管理学专业 | F72: 研究生、硕士 | G72: ≤35周岁 | H72: 拟从事医疗安全管理相关工作 | L72: 0 | M72: 0 | N72: 0 | O72: 0 | P72: 0 | Q72: 其他1 | R72: 其他1 | S72: 0 | U72: 5 | V72: 0 | W72: 0 | X72: 0 | Y72: 5 | AG72: 0
A73: 保健医疗部 | B73: 事业编 | C73: 医疗 | D73: 1 | E73: 老年医学、内科学专业 | F73: 研究生、硕士 | G73: ≤35周岁 | H73: 以第一作者发表中华系列期刊论文1篇，或以第一/共同第一作者发表SCI论文1篇，CET六级，取得医师资格证书 | I73: 老年病科 | L73: 0 | M73: 0 | N73: 医2 | O73: 医1 | P73: 医1 | Q73: 医1 | R73: 0 | S73: 242 | T73: 387.2 | U73: 238 | V73: 72 | W73: 161 | X73: 4 | Y73: 1 | Z73: 81355 | AA73: 2342 | AC73: 90.5% | AD73: 34.1 | AE73: 1130 | AF73: =AA73/V73 -> 32.52777778 | AG73: 193.6
A74: 放射治疗科 | B74: 事业编 | C74: 医疗 | D74: 1 | E74: 肿瘤放疗专业或临床医学（八年制）专业 | F74: 研究生、博士 | G74: ≤45周岁 | H74: 应届，国内大的肿瘤中心学习经历 | L74: 0 | M74: 工人1（郭志超） | N74: 医1技1 | O74: 医1技1 | P74: 0 | Q74: 医1 | R74: 医1 | S74: =VLOOKUP(A:A,Sheet6!A:C,3,0) -> 42 | T74: 67.2 | U74: 34 | V74: 13 | W74: 12 | X74: 8 | Y74: 1 | Z74: 8616 | AA74: 802 | AC74: 103.7% | AD74: 19.7 | AE74: 663 | AF74: =AA74/V74 -> 61.69230769 | AG74: 33.6
A75: 财务物价处 | B75: 代理制 | C75: 其他 | D75: 1 | E75: 财务管理或会计学专业 | F75: 本科、学士及以上 | G75: ≤30周岁 | H75: 熟悉财税制度、熟练掌握财务核算软件系统、办公软件、会计核算方法 | L75: 1（研究实习员） | M75: 财务科2，其他部门2 | N75: 2 | O75: 2 | P75: 0 | Q75: 其他1 | R75: 其他1 | S75: 0 | U75: 102 | V75: 0 | W75: 0 | X75: 0 | Y75: 102 | AG75: 0
A76: 病案统计科 | B76: 代理制 | C76: 技术 | D76: 1 | E76: 编码员 | F76: 本科 | G76: 22 | H76: 热爱本职工作、有相关培训证书 | L76: 0 | M76: 4（杨琳、王莉、关惟、李鸿梅) | N76: 2 | O76: 2 | P76: 0 | Q76: 其他2 | R76: 0 | S76: 0 | U76: 28 | V76: 2 | W76: 7 | X76: 0 | Y76: 19 | AG76: 0
A77: 病案统计科 | B77: 代理制 | C77: 技术 | D77: 1 | E77: 统计学 | F77: 本科 | G77: 22 | H77: 热爱本职工作、有相关培训证书
A78: 泌尿外科 | B78: 事业编 | C78: 医疗 | D78: 1 | E78: 外科学或临床医学专业（八年制） | F78: 研究生、博士 | G78: ≤45周岁 | L78: 0 | M78: 医1（张辉） | N78: 医2 | O78: 医1 | P78: 医1 | Q78: 医2 | R78: 0 | S78: =VLOOKUP(A:A,Sheet6!A:C,3,0) -> 84 | T78: 134.4 | U78: 71 | V78: 27 | W78: 39 | X78: 5 | Y78: 0 | Z78: 63253 | AA78: 2630 | AC78: 92.2% | AD78: 10.6 | AE78: 2343 | AF78: =AA78/V78 -> 97.40740741 | AG78: =S78*0.8 -> 67.2
A79: 泌尿外科 | B79: 事业编 | C79: 医疗 | D79: 1 | E79: 外科学或临床医学（七年制或八年制）专业 | F79: 研究生、硕士及以上 | G79: ≤35周岁
A80: 内分泌代谢科 | B80: 事业编 | C80: 医疗 | D80: 1 | E80: 内科学或临床医学（八年制）专业 | F80: 研究生、博士 | G80: ≤45周岁 | H80: 诚实、主动、努力、上进，在有重要影响的学术期刊发表高水平研究论文 | L80: 0 | M80: 0 | N80: 医2 | O80: 医2 | P80: 0 | Q80: 医1 | R80: 医1 | S80: =VLOOKUP(A:A,Sheet6!A:C,3,0) -> 114 | T80: 182.4 | U80: 95 | V80: 49 | W80: 42 | X80: 4 | Y80: 0 | Z80: 235171 | AA80: 3554 | AC80: 87.2% | AD80: 10 | AE80: 4799 | AF80: =AA80/V80 -> 72.53061224 | AG80: =S80*0.8 -> 91.2
A81: 保卫处 | B81: 派遣制 | C81: 其他 | D81: 1 | E81: 行政管理相关专业 | F81: 专科及以上 | G81: ≤30周岁 | H81: 消防退役人员，有从事消防专业工作经验和技能 | I81: 消防专业知识 | L81: 0 | M81: 0 | N81: 1 | O81: 1 | P81: 0 | Q81: 其他1 | R81: 其他1 | S81: 0 | U81: 19 | V81: 0 | W81: 0 | X81: 0 | Y81: 19 | AG81: =S81*0.8 -> 0
A82: PET-CT影像诊断科 | B82: 事业编 | C82: 医疗 | D82: 1 | E82: 影像医学与核医学、肿瘤学或临床医学（八年制）专业 | F82: 研究生、博士 | G82: ≤45周岁 | H82: 具有分子影像（如PET或相关）的研究经历或该领域2年以上临床工作经验；主持或承担省部级及以上本领域课题，并发表过论文。 | L82: 0 | M82: 0 | N82: 技1 | O82: 技1 | P82: 0 | Q82: 医1 | R82: 医1 | S82: 0 | U82: 11 | V82: 4 | W82: 3 | X82: 4 | Y82: 0 | AG82: 0
A83: 心血管内科 | B83: 事业编 | C83: 医疗 | D83: 2 | E83: 内科学或临床医学（八年制）专业 | F83: 研究生、博士 | G83: ≤45周岁 | H83: 以第一作者发表SCI论文1篇及以上 | L83: 0 | M83: 医1（孙跃民） | N83: 医4技2 | O83: 医3技2 | P83: 医1 | Q83: 医6技2 | R83: 医4技2 | S83: =VLOOKUP(A:A,Sheet6!A:C,3,0) -> 106 | T83: 169.6 | U83: 138 | V83: 51 | W83: 75 | X83: 12 | Y83: 0 | Z83: 196973 | AA83: 7133 | AC83: 90.1% | AD83: 4.9 | AE83: 3862 | AF83: =AA83/V83 -> 139.8627451 | AG83: 84.8
A84: 心血管内科 | B84: 事业编 | C84: 医疗 | D84: 3 | E84: 内科学或临床医学（七年制或八年制）专业 | F84: 研究生、硕士及以上 | G84: ≤35周岁 | H84: 临床方向 | I84: 内科学
A85: 心血管内科 | B85: 事业编 | C85: 医疗 | D85: 1 | E85: 内科学、影像医学与核医学或临床医学（七年制或八年制）专业 | F85: 研究生、硕士及以上 | G85: ≤30周岁 | H85: 具有超声医学或影像医学规培证 | I85: 超声医学
A86: 心血管内科 | B86: 代理制 | C86: 技术 | D86: 1 | E86: 临床医学、影像技术或医学影像 | F86: 本科、学士 | G86: ≤30周岁 | H86: 心电图室方向 | I86: 心电图学
A87: 心血管内科 | B87: 代理制 | C87: 技术 | D87: 1 | E87: 临床医学、影像技术、医学影像或生物医学工程 | F87: 本科、学士 | G87: ≤30周岁 | H87: 导管室方向，接触放射线 | I87: 医学影像
A88: 消化内科 | B88: 事业编 | C88: 医疗 | D88: 2 | E88: 内科学或临床医学（八年制）专业 | F88: 研究生、博士 | G88: ≤45周岁 | H88: 以第一作者发表论文2篇以上，至少1篇影响因子≥5，累计影响因子≥10；参加国家级科研课题；具有执业医师资格证书 | L88: 0 | M88: 0 | N88: 医1 | O88: 医1 | P88: 0 | Q88: 医2 | R88: 医2 | S88: =VLOOKUP(A:A,Sheet6!A:C,3,0) -> 92 | T88: 147.2 | U88: 101 | V88: 44 | W88: 49 | X88: 3 | Y88: 5 | Z88: 180040 | AA88: 3462 | AC88: 90.2% | AD88: 8.8 | AE88: 4092 | AF88: =AA88/V88 -> 78.68181818 | AG88: 73.6
A89: 临床营养科 | B89: 代理制 | C89: 医疗 | D89: 1 | E89: 临床医学及其下设二级学科 | F89: 研究生、硕士及以上 | G89: ≤35周岁 | H89: 有医师资格证、有工作经历优先 | I89: 临床营养 | L89: 0 | M89: 0 | N89: 医1技1 | O89: 医1技1 | P89: 0 | Q89: 医1 | R89: 医1 | S89: 0 | U89: 6 | V89: 1 | W89: 0 | X89: 4 | Y89: 1 | AG89: 0
A90: 超声科 | B90: 事业编 | C90: 医疗 | D90: 1 | E90: 医学影像学（超声学）或临床医学专业 | F90: 研究生、硕士及以上 | G90: ≤35周岁 | I90: 医学影像学（超声学） | L90: 0 | M90: 0 | N90: 医1 | O90: 医1 | P90: 0 | Q90: 医1 | R90: 医1 | S90: 0 | U90: 24 | V90: 20 | W90: 0 | X90: 3 | Y90: 1 | AG90: 0
A91: 耳鼻咽喉科 | B91: 事业编 | C91: 医疗 | D91: 1 | E91: 外科学、临床医学（八年制）或耳鼻咽喉科学专业 | F91: 研究生、博士 | G91: ≤45周岁 | H91: 具备从事科研工作能力 | I91: 38 | L91: 0 | M91: 医1（周慧芳） | N91: 医1 | O91: 医1 | P91: 0 | Q91: 医1 | R91: 0 | S91: =VLOOKUP(A:A,Sheet6!A:C,3,0) -> 40 | T91: 64 | U91: 43 | V91: 26 | W91: 14 | X91: 3 | Y91: 0 | Z91: 111942 | AA91: 1448 | AC91: 71.9% | AD91: 7.4 | AE91: 4305 | AF91: =AA91/V91 -> 55.69230769 | AG91: 32
A92: 健康管理中心 | B92: 事业编 | C92: 医疗 | D92: 1 | E92: 内科学（七年制或八年制） | F92: 研究生、硕士及以上 | G92: ≤35周岁 | L92: 医1（副主任医师） | M92: 0 | N92: 医1 | O92: 0 | P92: 医1 | Q92: 医2 | R92: 0 | S92: 0 | U92: 61 | V92: 15 | W92: 15 | X92: 5 | Y92: 26 | Z92: 62112 | AE92: 4141 | AG92: 0
A93: 健康管理中心 | B93: 事业编 | C93: 医疗 | D93: 1 | E93: 影像医学；超声专业 | F93: 研究生、硕士及以上 | G93: ≤35周岁
A94: 护理部 | B94: 代理制 | C94: 临床护理 | D94: 65 | E94: 护理专业 | F94: 本科及以上学历，学士学位 | G94: ≤30周岁 | L94: 13（中级4，初级9） | M94: 13 | N94: 事业编15、代理制68 | O94: 事业编15、代理制57 | P94: 代理制11 | Q94: 事业编25、代理制65 | R94: 0 | S94: 0 | U94: 2123 | AG94: 0
A95: 护理部 | B95: 事业编 | C95: 临床护理 | D95: 9 | E95: 护理专业 | F95: 研究生学历、硕士学位 | G95: ≤35周岁
A96: 护理部 | B96: 事业编 | C96: 临床护理 | D96: 10 | E96: 助产专业 | F96: 本科及以上学历，学士学位 | G96: ≤25周岁
A97: 护理部 | B97: 事业编 | C97: 临床护理 | D97: 6 | E97: 重症专业 | F97: 本科及以上学历，学士学位 | G97: ≤35周岁
A98: 学科建设管理处 | B98: 代理制 | C98: 其他 | D98: 1 | E98: 不限 | F98: 硕士以上 | G98: 35以下 | H98: 1.有外企工作经验；2.熟悉外企制药的管理；3.良好的英语沟通能力 | L98: 0 | M98: 1（吴红军） | N98: 0 | O98: 0 | P98: 0 | Q98: 其他1 | R98: 其他1
D99: =SUBTOTAL(9,D4:D97) -> 86

Sheet final (2) (hidden)
B1: 天津医科大学总医院二〇二二年人员补充计划表
A2: 科室 | B2: 岗位性质 | C2: 岗位类别 | D2: 计划人数 | E2: 学科专业 | F2: 学历、学位 | G2: 年龄 | H2: 其他要求 | I2: 笔试科目 | J2: 科室补充意见+J:M | K2: 人事处结合主要领导意见 | L2: 2021年辞职或调动 | M2: 2022年退休 | N2: 2021年计划 | O2: 2021年新职工 | P2: 2021年未用指标 | Q2: 2022年计划 | R2: 实际纯增 | S2: 床位数 | T2: 科室应配置人员总数（床位数*1.6）依据 | U2: 科室总人数 | V2: 医师 人数 | W2: 护理人数 | X2: 技研 | Y2: 其他 | Z2: 全年诊疗人数 | AA2: 出院人数 | AB2: 平均病床周转次数 | AC2: 实际病床使用率 % | AD2: 出院者平均住院日 | AE2: 人均门诊量 | AF2: 人均出院数 | AG2: 按床护比（1:0.8） 护理人数 | AH2: 护理人数 （85%或65%） | AI2: 按医护比 （0.8:1） 医师人数 | AJ2: 医师人数 （85%或65%） | AK2: 医师差额 | AL2: 绩效 水平 | AM2: 科室名称
A3: 儿科 | B3: 事业编 | C3: 医疗 | D3: 1 | E3: 儿科学、内科学或临床医学专业（八年制） | F3: 研究生、博士 | G3: ≤45周岁 | H3: 拟从事临床医疗岗位 | I3: 儿科学 | L3: 0 | M3: 0 | N3: 0 | O3: 0 | P3: 0 | Q3: 医2 | R3: 医2 | S3: =VLOOKUP(A:A,Sheet6!A:C,3,0) -> 80 | T3: 128 | U3: 116 | V3: 40 | W3: 76 | X3: 0 | Y3: 0 | Z3: 66822 | AA3: 1791 | AC3: 73.1% | AD3: 8 | AE3: 1671 | AF3: =AA3/V3 -> 44.775 | AG3: =S3*0.8 -> 64
A4: 儿科 | B4: 事业编 | C4: 医疗 | D4: 1 | E4: 儿科学/内科学或临床医学（七年制或八年制）专业 | F4: 研究生、硕士及以上 | G4: ≤35周岁 | I4: 儿科学
A5: 神经内科 | B5: 事业编 | C5: 医疗 | D5: 3 | E5: 神经病学或临床医学专业（八年制） | F5: 研究生、博士 | G5: ≤45周岁 | H5: 拟从事临床医疗岗位 | L5: 医1（讲师） | M5: 0 | N5: 医3技1 | O5: 医3技1 | P5: 0 | Q5: 医3 | R5: 医2 | S5: =VLOOKUP(A:A,Sheet6!A:C,3,0) -> 168 | T5: 268.8 | U5: 178 | V5: 75 | W5: 91 | X5: 11 | Y5: 1 | Z5: 229216 | AA5: 4347 | AC5: 88.0% | AD5: 12.3 | AE5: 3056 | AF5: =AA5/V5 -> 57.96 | AG5: =S5*0.8 -> 134.4
A6: 过敏性疾病科 | B6: 事业编 | C6: 医疗 | D6: 1 | E6: 内科学及相关专业 | F6: 硕士研究生 | G6: ≤35周岁 | H6: 专硕已规培 | I6: 普通内科 | L6: 0 | M6: 0 | N6: 医1 | O6: 医1 | P6: 0 | Q6: 医1 | R6: 医1 | U6: 5 | V6: 3 | W6: 2 | X6: 0 | Y6: 0 | Z6: 8606 | AE6: =Z6/V6 -> 2869 | AG6: =S6*0.8 -> 0
A7: 康复医学科 | B7: 事业编 | C7: 医疗 | D7: 2 | E7: 康复医学与理疗学/临床医学 | F7: 研究生、硕士及以上 | G7: ≤35周岁 | H7: 全日制研究生学历，具有执业医师资质，本科为临床医学专业，近3年以第一作者身份发表中华或者SCI论文至少2篇 | I7: 康复医学与理疗学 | L7: 医1（医师） | M7: 0 | N7: 医3技2 | O7: 技2 | P7: 医3 | Q7: 医2技3 | R7: 技3 | S7: =VLOOKUP(A:A,Sheet6!A:C,3,0) -> 54 | T7: 86.4 | U7: 73 | V7: 16 | W7: 23 | X7: 34 | Y7: 0 | Z7: 3936 | AA7: 426 | AC7: 113.2% | AD7: 28.6 | AE7: 246 | AF7: =AA7/V7 -> 26.625 | AG7: =S7*0.8 -> 43.2
B8: 事业编 | C8: 技术 | D8: 1 | E8: 康复治疗学 | F8: 研究生、硕士及以上 | G8: ≤35周岁 | H8: 全日制研究生学历，具有康复治疗技术初级证书，近3年以第一作者身份发表中华或者SCI论文至少1篇 | I8: 康复治疗学
B9: 代理制 | C9: 技术 | D9: 2 | E9: 康复治疗学 | F9: 本科生 | G9: ≤30周岁 | H9: 全日制本科学历，康复治疗学相关专业 | I9: 康复治疗学
A10: 国有资产管理处（设备运维科） | B10: 事业编 | C10: 技术 | D10: 2 | E10: 生物医学工程 | F10: 研究生 | G10: ≤35周岁 | I10: 生物医学工程92 | L10: 0 | M10: 工程师1（高健） | O10: 0 | P10: 0 | Q10: 其他1 | R10: 0 | U10: 21 | V10: 0 | W10: 0 | X10: 0 | Y10: 21
A11: 输血科 | B11: 事业编 | C11: 医疗 | D11: 1 | E11: 临床医学及其下设二级学科 | F11: 研究生、博士 | G11: ≤45周岁 | H11: 应届毕业生，拟从事临床医疗岗位 | I11: 66 | L11: 技1（主管技师） | M11: 0 | N11: 医1技2 | O11: 技2 | P11: 医1 | Q11: 医1技1 | R11: 0 | U11: 20 | V11: 0 | W11: 0 | X11: 20 | Y11: 0
B12: 事业编 | C12: 技术 | D12: 1 | E12: 基础医学、临床医学或生物学及其下设二级学科 | F12: 研究生、硕士及以上 | G12: ≤35周岁 | H12: 入职时须取得卫生专业技术资格证书（输血技术或检验技术），拟从事临床技术岗位 | I12: 66
A13: 儿外科 | B13: 事业编 | C13: 医疗 | D13: 1 | E13: 外科学或临床医学专业（八年制） | F13: 研究生、博士 | G13: ≤45周岁 | H13: 拟从事临床医疗岗位 | I13: 免笔试 | L13: 医1（主治医师） | M13: 0 | N13: 医1 | O13: 医1 | P13: 0 | Q13: 医2 | R13: 医1 | S13: =VLOOKUP(A:A,Sheet6!A:C,3,0) -> 9 | T13: 14.4 | U13: 13 | V13: 5 | W13: 8 | X13: 0 | Y13: 0 | Z13: 4101 | AA13: 332 | AC13: 87.9% | AD13: 7.7 | AE13: =Z13/V13 -> 820 | AF13: =AA13/V13 -> 66.4 | AG13: =S13*0.8 -> 7.2
B14: 事业编 | C14: 医疗 | D14: 1 | E14: 外科学或临床医学（七年制或八年制）专业 | F14: 研究生、硕士及以上 | G14: ≤35周岁 | I14: 21-小儿外科
A15: 心胸外科 | B15: 事业编 | C15: 医疗 | D15: 1 | E15: 外科学或临床医学专业（八年制） | F15: 研究生、博士 | G15: ≤45周岁 | H15: 拟从事临床医疗岗位 | L15: 0 | M15: 0 | N15: 医2 | O15: 医2 | P15: 0 | Q15: 医1 | R15: 医1 | S15: =VLOOKUP(A:A,Sheet6!A:C,3,0) -> 42 | T15: 67.2 | U15: 41 | V15: 17 | W15: 23 | X15: 1 | Y15: 0 | Z15: 14204 | AA15: 1159 | AC15: 98.1% | AD15: 12.3 | AE15: 836 | AF15: =AA15/V15 -> 68.17647059 | AG15: =S15*0.8 -> 33.6
A16: 血液内科 | B16: 事业编 | C16: 医疗 | D16: 2 | E16: 内科学或临床医学（血液病）专业 | F16: 研究生、硕士 | G16: ≤30周岁 | I16: 普通内科或血液病科 | L16: 医1（主治医师） | M16: 0 | N16: 医3技1 | O16: 医3技1 | P16: 0 | Q16: 医2 | R16: 医1 | S16: =VLOOKUP(A:A,Sheet6!A:C,3,0) -> 92 | T16: 147.2 | U16: 122 | V16: 53 | W16: 61 | X16: 8 | Y16: 0 | Z16: 40734 | AA16: 4280 | AC16: 195.0% | AD16: 14.8 | AE16: 769 | AF16: =AA16/V16 -> 80.75471698 | AG16: =S16*0.8 -> 73.6
A17: 医学影像科 | B17: 事业编 | C17: 医疗 | D17: 1 | E17: 影像医学与核医学或临床医学专业（八年制） | F17: 研究生、博士 | G17: ≤45周岁 | H17: 至少在有影响力的杂志发表高水平SCI论文1篇 | J17: 后加1人，已与李栋沟通 | L17: 0 | M17: 0 | N17: 医4技3 | O17: 医3技3 | P17: 医1 | Q17: 医4技4 | R17: 医3技4 | S17: =VLOOKUP(A:A,Sheet6!A:C,3,0) -> 0 | U17: 127 | V17: 57 | W17: 9 | X17: 60 | Y17: 1 | AG17: =S17*0.8 -> 0
B18: 事业编 | C18: 医疗 | D18: 3 | E18: 影像医学与核医学专业 | F18: 研究生、硕士 | G18: ≤35周岁 | I18: 医学影像学(医)
B19: 代理制 | C19: 技术 | D19: 1 | E19: 医学影像技术专业或医学影像学专业（医学影像技术方向) | F19: 研究生、硕士 | G19: ≤35周岁 | I19: 医学影像学(技)
B20: 代理制 | C20: 技术 | D20: 3 | E20: 医学影像技术专业或医学影像学专业（医学影像技术方向) | F20: 本科、学士 | G20: ≤30周岁 | I20: 医学影像学(技)
A21: 口腔科 | B21: 事业编 | C21: 医疗 | D21: 1 | E21: 口腔医学 | F21: 研究生、硕士 | G21: ≤40周岁 | H21: 主治及以上职称（需不定期到总医院空港工作）入职时具有住院医师规范化培训合格证书 | I21: 口腔内科 | J21: 已与韩主任沟通修改 | L21: 0 | M21: 医1（嵇希敏） | N21: 0 | O21: 0 | P21: 0 | Q21: 医1 | R21: 0 | S21: 24 | T21: 38.4 | U21: 56 | V21: 38 | W21: 18 | X21: 0 | Y21: 0 | Z21: 47773 | AA21: 579 | AC21: 86.2% | AD21: 13.4 | AE21: 1257 | AF21: =AA21/V21 -> 15.23684211 | AG21: =S21*0.8 -> 19.2
A22: 临床心理科 | B22: 事业编 | C22: 医疗 | D22: 1 | E22: 精神病学或临床医学专业（八年制） | F22: 研究生、博士 | G22: ≤45周岁 | H22: 本科阶段须精神病学或临床医学专业 | I22: 精神病学 | L22: 0 | M22: 0 | N22: 医1 | O22: 0 | P22: 医1 | Q22: 医3 | R22: 医2 | S22: =VLOOKUP(A:A,Sheet6!A:C,3,0) -> 0 | U22: 6 | V22: 1 | W22: 0 | X22: 4 | Y22: 1 | Z22: 56520 | AE22: 56520 | AG22: =S22*0.8 -> 0
B23: 事业编 | C23: 医疗 | D23: 2 | E23: 精神病学或临床医学（七年制或八年制）专业…… | F23: 研究生、硕士及以上 | G23: ≤35周岁 | H23: 本科阶段须精神病学或临床医学专业 | I23: 精神病学
A24: 肾脏内科 | B24: 事业编 | C24: 医疗 | D24: 1 | E24: 内科学或临床医学专业（八年制） | F24: 研究生、博士 | G24: ≤45周岁 | H24: 第一作者SCI论文1篇及以上 | L24: 医1（讲师） | M24: 0 | N24: 医1技1 | O24: 医1技1 | P24: 0 | Q24: 医1 | R24: 0 | S24: =VLOOKUP(A:A,Sheet6!A:C,3,0) -> 64 | T24: 102.4 | U24: 96 | V24: 32 | W24: 61 | X24: 3 | Y24: 0 | Z24: 143346 | AA24: 3103 | AC24: 101.8% | AD24: 7.3 | AE24: 4480 | AF24: =AA24/V24 -> 96.96875 | AG24: =S24*0.8 -> 51.2
A25: 肺部肿瘤外科 | B25: 代理制 | C25: 技术 | D25: 1 | E25: 医学超声技术专业 | F25: 本科及以上 | G25: 35岁以下 | H25: 无 | I25: 超声技术 | L25: 0 | M25: 0 | N25: 医1 | O25: 医1 | P25: 0 | Q25: 技1 | R25: 技1 | S25: =VLOOKUP(A:A,Sheet6!A:C,3,0) -> 70 | T25: 112 | U25: 48 | V25: 19 | W25: 29 | X25: 0 | Y25: 0 | Z25: 19483 | AA25: 3520 | AC25: 105.9% | AD25: 7.3 | AE25: 1025 | AF25: =AA25/V25 -> 185.2631579 | AG25: =S25*0.8 -> 56
A26: 急诊医学科 | B26: 事业编 | C26: 医疗 | D26: 3 | E26: 急诊医学或临床医学专业 | F26: 研究生、硕士及以上 | G26: ≤35周岁 | H26: 具有医师资格证 | L26: 医1（医师） | M26: 0 | N26: 医4技4 | O26: 医2技2 | P26: 医2技2 | Q26: 医4技3 | R26: 医1技1 | S26: =VLOOKUP(A:A,Sheet6!A:C,3,0) -> 69 | T26: 110.4 | U26: 171 | V26: 61 | W26: 103 | X26: 7 | Y26: 0 | Z26: 111510 | AA26: 1765 | AC26: 107.5% | AD26: 14.3 | AE26: 1828 | AF26: =AA26/V26 -> 28.93442623 | AG26: =S26*0.8 -> 55.2
B27: 事业编 | C27: 医疗 | D27: 1 | E27: 急诊医学 | F27: 硕士及以上 | G27: ≤45周岁 | H27: 具有副高级及以上医师职称。拟从事临床医疗岗位。
B28: 事业编 | C28: 技术 | D28: 1 | E28: 影像或相关医学专业 | F28: 研究生、硕士及以上 | G28: ≤35周岁 | H28: 具有医师资格证
B29: 事业编 | C29: 技术 | D29: 1 | E29: 医学检验技术或相关临床医学专业 | F29: 硕士及以上 | G29: ≤35周岁
B30: 代理制 | C30: 技术 | D30: 1 | E30: 医学检验技术或相关医学专业 | F30: 本科及以上 | G30: ≤30周岁
A31: 普通外科 | B31: 事业编 | C31: 医疗 | D31: 1 | E31: 外科学（胃肠肛肠外科）或临床医学专业（八年制） | F31: 研究生、博士 | G31: ≤45周岁 | H31: 拟从事临床医疗岗位 | I31: 无 | L31: 0 | M31: 医3（张乃勤、田伟军、吴双虎） | N31: 医3 | O31: 医1 | P31: 医2 | Q31: 医3技1 | R31: 技1 | S31: =VLOOKUP(A:A,Sheet6!A:C,3,0) -> 208 | T31: 332.8 | U31: 193 | V31: 96 | W31: 94 | X31: 3 | Y31: 0 | Z31: 132388 | AA31: 7249 | AC31: 109.3% | AD31: 10.8 | AE31: 1379 | AF31: =AA31/V31 -> 75.51041667 | AG31: =S31*0.8 -> 166.4
B32: 事业编 | C32: 医疗 | D32: 1 | E32: 外科学（肝胆胰脾外科）或临床医学专业（八年制） | F32: 研究生、博士 | G32: ≤45周岁 | H32: SCI二区第一作者文章至少1篇，或SCI一区共同第一作者文章至少1篇 | I32: 无
B33: 事业编 | C33: 医疗 | D33: 1 | E33: 外科学（血管外科）或临床医学专业（八年制） | F33: 研究生、博士 | G33: ≤45周岁 | H33: SCI第一作者（包括共同第一作者）文章至少2篇，同时中华级医学杂志第一作者文章至少1篇；取得执业医师资格证、完成住院医师规范化培训 | I33: 无
B34: 事业编 | C34: 技术 | D34: 1 | E34: 影像医学与核医学或临床医学专业（八年制） | F34: 研究生、博士 | G34: ≤45周岁 | H34: 取得执业医师资格证、完成住院医师规范化培训 | I34: 无
A35: 呼吸内科 | B35: 事业编 | C35: 医疗 | D35: 1 | E35: 内科学或临床医学专业（八年制） | F35: 研究生、博士 | G35: ≤45周岁 | H35: 单篇SCI文章IF≧5分 | L35: 0 | M35: 0 | N35: 医3 | O35: 医3 | P35: 0 | Q35: 医5 | R35: 医5 | S35: =VLOOKUP(A:A,Sheet6!A:C,3,0) -> 72 | T35: 115.2 | U35: 94 | V35: 35 | W35: 54 | X35: 5 | Y35: 0 | Z35: 105349 | AA35: 2892 | AC35: 103.0% | AD35: 9.4 | AE35: =Z35/V35 -> 3010 | AF35: =AA35/V35 -> 82.62857143 | AG35: =S35*0.8 -> 57.6
B36: 事业编 | C36: 医疗 | D36: 1 | E36: 内科学或临床医学专业（八年制） | F36: 研究生、博士 | G36: ≤45周岁 | H36: 单篇SCI文章IF≧2分
B37: 事业编 | C37: 医疗 | D37: 1 | E37: 内科学或临床医学专业（八年制） | F37: 研究生、博士 | G37: ≤45周岁 | H37: 应届毕业生 | I37: 呼吸内科
B38: 事业编 | C38: 医疗 | D38: 1 | E38: 内科学或临床医学专业 | F38: 研究生、硕士及以上 | G38: ≤35周岁 | H38: 有规培证书，主治医生 | I38: 呼吸内科
B39: 事业编 | C39: 医疗 | D39: 1 | E39: 内科学或临床医学专业 | F39: 研究生、硕士及以上 | G39: ≤35周岁 | H39: 应届毕业生 | I39: 呼吸内科
A40: 骨外科 | B40: 事业编 | C40: 医疗 | D40: 1 | E40: 外科学或临床医学专业（八年制） | F40: 研究生、博士 | G40: ≤45周岁 | H40: 有国外高水平大学学习经历，有SCI论文 | L40: 医1（主任医师） | M40: 0 | N40: 医3 | O40: 医3 | P40: 0 | Q40: 医1技1研1 | R40: 技1研1 | S40: =VLOOKUP(A:A,Sheet6!A:C,3,0) -> 126 | T40: 201.6 | U40: 103 | V40: 43 | W40: 57 | X40: 3 | Y40: 0 | Z40: 84020 | AA40: 2236 | AC40: 72.7% | AD40: 14.2 | AE40: 1954 | AF40: =AA40/V40 -> 52 | AG40: =S40*0.8 -> 100.8
B41: 事业编 | C41: 科研 | D41: 1 | E41: 基础医学或临床医学 | F41: 硕士及以上 | G41: ≤35周岁 | H41: 有生物学或医学背景 | I41: 生物化学
B42: 代理制 | C42: 技术 | D42: 1 | E42: 临床医学 | F42: 本科及以上 | G42: ≤35周岁 | H42: 影像学或电生理专业优先 | I42: 影像学
A43: 病理科 | B43: 事业编 | C43: 医疗 | D43: 1 | E43: 病理学专业或临床医学专业 | F43: 研究生、硕士、博士 | G43: ≤30周岁 | H43: 外语六级，有执业医师执照 | I43: 病理医45 | L43: 0 | M43: 0 | N43: 医2技1 | O43: 医2技1 | P43: 0 | Q43: 医1技2 | R43: 医1技2 | S43: 0 | U43: 9 | V43: 6 | W43: 0 | X43: 3 | Y43: 0 | AG43: =S43*0.8 -> 0
B44: 事业编 | C44: 技术 | D44: 2 | E44: 病理学或医学相关专业 | F44: 研究生、硕士及以上 | G44: ≤30周岁 | H44: 应届毕业生，其中1名有熟练外语和计算机能力，满足科室信息化和大数据统计需求 | I44: 病理技46
A45: 妇产科 | B45: 事业编 | C45: 医疗 | D45: 5 | E45: 妇产科学或临床医学（八年制）专业 | F45: 研究生、博士 | G45: ≤45周岁 | H45: 应届毕业生。拟从事妇产科临床医疗岗位 | I45: 无 | L45: 医4（医师3，主任医师1） 研1（研究实习员） | M45: 医4（范庆春、刘小玫、顾向应、黄建华） | N45: 医5 | O45: 医3 | P45: 医2 | Q45: 医7技6 | R45: 技6 | S45: 152 | T45: 243.2 | U45: 197 | V45: 85 | W45: 93 | X45: 18 | Y45: 1 | Z45: 187455 | AA45: 6379 | AC45: 82.2% | AD45: 7 | AE45: 2205 | AF45: =AA45/V45 -> 75.04705882 | AG45: =S45*0.8 -> 121.6
B46: 事业编 | C46: 医疗 | D46: 1 | E46: 病理学与病理生理学专业 | F46: 研究生、硕士及以上 | G46: ≤35周岁 | H46: 取得医师资格证书。拟从事妇产科细胞学、妇科病理及宫颈病变医疗岗位 | I46: 病理（医）
B47: 事业编 | C47: 医疗 | D47: 1 | E47: 影像医学与核医学专业或临床医学（七年制或八年制）专业 | F47: 研究生、硕士及以上 | G47: ≤35周岁 | H47: 拟从事妇产科超声医疗岗位 | I47: 医学影像学(超声)
B48: 事业编 | C48: 技术 | D48: 1 | E48: 临床检验诊断学专业 | F48: 研究生、硕士及以上 | G48: ≤35周岁 | H48: 拟从事妇产科相关检验工作 | I48: 检验
B49: 事业编 | C49: 技术 | D49: 1 | E49: 妇产科学（辅助生殖技术）、医学遗传学、发育生物学、细胞生物学、医学细胞生物学、生物信息分析、生物统计等相关专业 | F49: 研究生、博士 | G49: ≤45周岁 | H49: 英语六级，拟从事妇产科生殖中心胚胎实验室技术岗位 | I49: 无
B50: 事业编 | C50: 技术 | D50: 2 | E50: 生殖医学（辅助生殖技术）、医学细胞生物学、发育生物学、细胞生物学、医学检验学、卫生检验学、生物学等相关专业 | F50: 研究生、硕士及以上 | G50: ≤35周岁 | H50: 拟从事妇产科生殖中心胚胎实验室技术岗位、生殖检验室技术岗位 | I50: 待定
B51: 代理制 | C51: 技术 | D51: 1 | E51: 医学实验技术及相关专业 | F51: 本科及以上 | G51: ≤30周岁 | I51: 待定
B52: 事业编 | C52: 技术 | D52: 1 | E52: 生殖医学（辅助生殖技术） | F52: 研究生、硕士及以上 | G52: ≤35周岁 | H52: 拟从事妇产科生殖中心男科实验室工作 | I52: 检验
A53: 精准医学中心 | B53: 事业编 | C53: 技术 | D53: 1 | E53: 遗传学、细胞生物学、生物化学及分子生物学、医学细胞生物学、医学生物化学及分子生物学 | F53: 研究生、博士 | G53: ≤45周岁 | H53: 拟从事临床技术岗位 | I53: 检验 | L53: 医1（讲师） | M53: 0 | N53: 技1 | O53: 技1 | P53: 0 | Q53: 技2 | R53: 技2 | S53: 0 | U53: 18 | V53: 3 | W53: 1 | X53: 13 | Y53: 1 | AG53: =S53*0.8 -> 0
B54: 事业编 | C54: 技术 | D54: 1 | E54: 医学检验及放射医学专业 | F54: 研究生、硕士 | G54: ≤35周岁 | H54: 拟从事临床技术岗位，有5年以上工作经验，取得临床医学检验技术中级职称，有新冠一线抗疫工作经历 | I54: 检验
A55: 核医学科 | B55: 事业编 | C55: 医疗 | D55: 1 | E55: 影像医学与核医学或临床医学专业（八年制） | F55: 研究生、博士 | G55: ≤45周岁 | H55: 发表1篇影响因子大于3分的一作SCI文章（若发表多篇，累计影响因子大于5分），同时参与省市级以上课题研究 | I55: 核医学（医） | L55: 医1（主任医师） | M55: 医1（谭建） | N55: 医1 | O55: 0 | P55: 医1 | Q55: 医1技1 | R55: 技1 | S55: =VLOOKUP(A:A,Sheet6!A:C,3,0) -> 14 | T55: 22.4 | U55: 39 | V55: 17 | W55: 12 | X55: 10 | Y55: 0 | Z55: 64977 | AA55: 1113 | AC55: 102.5% | AD55: 4.5 | AE55: 3822 | AF55: =AA55/V55 -> 65.47058824 | AG55: =S55*0.8 -> 11.2
B56: 事业编 | C56: 技术 | D56: 1 | E56: 影像医学与核医学（核医学技术）或医学技术（核医学方向） | F56: 研究生、硕士及以上 | G56: ≤30周岁 | H56: 发表1篇影响因子大于2分的一作SCI文章（若发表多篇，累计影响因子大于3分） | I56: 核医学（技）
A57: 眼科 | B57: 事业编 | C57: 医疗 | D57: 2 | E57: 临床眼科或临床医学专业（八年制） | F57: 研究生、博士 | G57: ≤45周岁 | H57: 应届毕业生 | L57: 0 | M57: 0 | N57: 医1技1 | O57: 0 | P57: 医1技1 | Q57: 医2技1 | R57: 医1 | S57: =VLOOKUP(A:A,Sheet6!A:C,3,0) -> 42 | T57: 67.2 | U57: 41 | V57: 20 | W57: 16 | X57: 5 | Y57: 0 | Z57: 65739 | AA57: 2801 | AC57: 77.8% | AD57: 4.2 | AE57: 3287 | AF57: =AA57/V57 -> 140.05 | AG57: =S57*0.8 -> 33.6
B58: 事业编 | C58: 技术 | D58: 1 | E58: 眼视光 | F58: 硕士 | G58: ≤35周岁 | H58: 应届毕业生
A59: 麻醉科（疼痛诊疗中心） | B59: 事业编 | C59: 医疗 | D59: 1 | E59: 麻醉学、重症医学或临床医学专业（八年制） | F59: 研究生、博士 | G59: ≤45周岁 | I59: 麻醉 | L59: 0 | M59: 医1（苗鲁民） | N59: 医3 | O59: 医3 | P59: 0 | Q59: 医3 | R59: 医2 | S59: 14 | T59: 22.4 | U59: 67 | V59: 54 | W59: 11 | X59: 0 | Y59: 2 | Z59: 36422 | AA59: 477 | AC59: 84.5% | AD59: 9 | AE59: 674 | AF59: =AA59/V59 -> 8.833333333
B60: 事业编 | C60: 医疗 | D60: 2 | E60: 麻醉学或临床医学（七年制或八年制）专业 | F60: 研究生、硕士及以上 | G60: ≤35周岁 | I60: 麻醉
A61: 感染科 | B61: 事业编 | C61: 医疗 | D61: 2 | E61: 内科学、外科学或临床医学专业（八年制） | F61: 研究生、硕士及以上 | G61: ≤35周岁 | H61: 具有医师资格证 | I61: 普通内科或普通外科 | L61: 0 | M61: 0 | N61: 医2 | O61: 0 | P61: 医2 | Q61: 医2技2 | R61: 技2 | S61: =VLOOKUP(A:A,Sheet6!A:C,3,0) -> 14 | T61: 22.4 | U61: 21 | V61: 9 | W61: 11 | X61: 0 | Y61: 1 | Z61: 124440 | AA61: 315 | AC61: 73.8% | AD61: 11.8 | AE61: 13827 | AF61: =AA61/V61 -> 35 | AG61: =S61*0.8 -> 11.2
B62: 代理制 | C62: 技术 | D62: 2 | E62: 医学检验技术专业 | F62: 本科、学士及以上 | G62: ≤30周岁 | I62: 检验
A63: 医学检验科 | B63: 事业编 | C63: 医技 | D63: 1 | E63: 临床检验诊断学 | F63: 研究生、博士 | G63: ≤45周岁 | H63: 应届毕业生 | L63: 技1（主管技师） | M63: 技1（刘兆利） | N63: 技3 | O63: 技3 | P63: 0 | Q63: 技2 | R63: 0 | S63: 0 | U63: 86 | V63: 0 | W63: 0 | X63: 86 | Y63: 0 | AG63: =S63*0.8 -> 0
B64: 事业编 | C64: 医技 | D64: 1 | E64: 具有临床医学、医学检验、肿瘤学等相关医学科学 | F64: 研究生、博士 | G64: ≤35周岁 | H64: 应届毕业生
A65: 神经病学研究所 | B65: 事业编 | C65: 技术 | D65: 1 | E65: 外科学专业 | F65: 研究生、硕士 | G65: ≤35周岁 | H65: 熟悉掌握肿瘤研究的基本操作技能和动物实验操作技巧，发表一区研究论文 | I65: 92生物医学工程 | L65: 0 | M65: 研1（宁宪嘉）、技1（刘丽） | N65: 研5 | O65: 研4 | P65: 研1 | Q65: 技1研1 | R65: 0 | S65: 0 | U65: 43 | V65: 1 | W65: 0 | X65: 40 | Y65: 2
B66: 事业编 | C66: 研究 | D66: 1 | E66: 基础医学 | F66: 研究生、博士 | G66: ≤35周岁 | H66: 熟悉掌握免疫学和蛋白互作等领域前沿进展，发表一区研究论文
A67: 神经外科 | B67: 事业编 | C67: 医疗 | D67: 1 | E67: 外科学或临床医学七年制或八年制）专业（ | F67: 研究生、博士 | G67: ≤45周岁 | L67: 医1（主任医师） | M67: 医1（岳树源） | N67: 医2 | O67: 医1 | P67: 医1 | Q67: 医1 | R67: 0 | S67: =VLOOKUP(A:A,Sheet6!A:C,3,0) -> 222 | T67: 355.2 | U67: 195 | V67: 58 | W67: 132 | X67: 4 | Y67: 1 | Z67: 28842 | AA67: 3173 | AC67: 82.3% | AD67: 18.1 | AE67: 497 | AF67: =AA67/V67 -> 54.70689655
A68: 心血管外科 | B68: 事业编 | C68: 医疗 | D68: 1 | E68: 外科学或临床医学专业（八年制） | F68: 研究生、硕士 | G68: ≤45周岁 | H68: 具有副高级及以上医师职称。拟从事临床医疗岗位。 | I68: 心血管科外科 | L68: 0 | M68: 0 | N68: 医2 | O68: 医2 | P68: 0 | Q68: 医1 | R68: 医1 | S68: =VLOOKUP(A:A,Sheet6!A:C,3,0) -> 42 | T68: 67.2 | U68: 33 | V68: 15 | W68: 18 | X68: 0 | Y68: 0 | Z68: 3932 | AA68: 650 | AC68: 68.7% | AD68: 15.9 | AE68: 262 | AF68: =AA68/V68 -> 43.33333333
A69: 皮肤性病科 | B69: 事业编 | C69: 医疗 | D69: 1 | E69: 皮肤病学与性病学或临床医学（八年制）专业 | F69: 研究生、博士 | G69: ≤45周岁 | H69: 通过住院医师规范化培训，有SCI文章 | L69: 0 | M69: 技1（李春莉） | N69: 医1技1 | O69: 医1技1 | P69: 0 | Q69: 医1 | R69: 医1 | S69: =VLOOKUP(A:A,Sheet6!A:C,3,0) -> 18 | T69: 28.8 | U69: 39 | V69: 24 | W69: 10 | X69: 5 | Y69: 0 | Z69: 133810 | AA69: 909 | AC69: 90.3% | AD69: 6.5 | AE69: 5575 | AF69: =AA69/V69 -> 37.875
A70: 药剂科 | B70: 事业编 | C70: 技术 | D70: 1 | E70: 药物分析、药理学、药剂学、医学生物化学与分子生物学 | F70: 研究生、博士 | G70: ≤45周岁 | H70: 以第一作者发表SCI论文2篇以上，从事过体内药物分析或药物基因组学分析研究 | L70: 药1（主管药师） | M70: 药1（刘万华） | N70: 技2 | O70: 技2 | P70: 0 | Q70: 技1 | R70: 0 | S70: 0 | U70: 184 | V70: 0 | W70: 11 | X70: 173 | Y70: 0
A71: 药剂科（司法医学鉴定中心） | B71: 代理制 | C71: 技术 | D71: 1 | E71: 法医临床、物证、病理 | F71: 硕士 | G71: ≤30周岁 | H71: 以第一作者发表核心期刊论文1篇以上，有两年以上工作经验，从事过法医临床工作 | L71: 0 | M71: 0 | N71: 0 | O71: 0 | P71: 0 | Q71: 技1 | R71: 技1 | AG71: =S71*0.8 -> 0
A72: 医疗安全部 | B72: 代理制 | C72: 其他 | D72: 1 | E72: 临床医学及其下设二级学科或卫生事业管理学专业 | F72: 研究生、硕士 | G72: ≤35周岁 | H72: 拟从事医疗安全管理相关工作 | L72: 0 | M72: 0 | N72: 0 | O72: 0 | P72: 0 | Q72: 其他1 | R72: 其他1 | S72: 0 | U72: 5 | V72: 0 | W72: 0 | X72: 0 | Y72: 5 | AG72: 0
A73: 保健医疗部 | B73: 事业编 | C73: 医疗 | D73: 1 | E73: 老年医学、内科学专业 | F73: 研究生、硕士 | G73: ≤35周岁 | H73: 以第一作者发表中华系列期刊论文1篇，或以第一/共同第一作者发表SCI论文1篇，CET六级，取得医师资格证书 | I73: 老年病科 | L73: 0 | M73: 0 | N73: 医2 | O73: 医1 | P73: 医1 | Q73: 医1 | R73: 0 | S73: 242 | T73: 387.2 | U73: 238 | V73: 72 | W73: 161 | X73: 4 | Y73: 1 | Z73: 81355 | AA73: 2342 | AC73: 90.5% | AD73: 34.1 | AE73: 1130 | AF73: =AA73/V73 -> 32.52777778 | AG73: 193.6
A74: 放射治疗科 | B74: 事业编 | C74: 医疗 | D74: 1 | E74: 肿瘤放疗专业或临床医学（八年制）专业 | F74: 研究生、博士 | G74: ≤45周岁 | H74: 应届，国内大的肿瘤中心学习经历 | L74: 0 | M74: 工人1（郭志超） | N74: 医1技1 | O74: 医1技1 | P74: 0 | Q74: 医1 | R74: 医1 | S74: =VLOOKUP(A:A,Sheet6!A:C,3,0) -> 42 | T74: 67.2 | U74: 34 | V74: 13 | W74: 12 | X74: 8 | Y74: 1 | Z74: 8616 | AA74: 802 | AC74: 103.7% | AD74: 19.7 | AE74: 663 | AF74: =AA74/V74 -> 61.69230769 | AG74: 33.6
A75: 财务物价处 | B75: 代理制 | C75: 其他 | D75: 1 | E75: 财务管理或会计学专业 | F75: 本科、学士及以上 | G75: ≤30周岁 | H75: 熟悉财税制度、熟练掌握财务核算软件系统、办公软件、会计核算方法 | L75: 1（研究实习员） | M75: 财务科2，其他部门2 | N75: 2 | O75: 2 | P75: 0 | Q75: 其他1 | R75: 其他1 | S75: 0 | U75: 102 | V75: 0 | W75: 0 | X75: 0 | Y75: 102 | AG75: 0
A76: 病案统计科 | B76: 代理制 | C76: 技术 | D76: 1 | E76: 编码员 | F76: 本科 | G76: 22 | H76: 热爱本职工作、有相关培训证书 | L76: 0 | M76: 4（杨琳、王莉、关惟、李鸿梅) | N76: 2 | O76: 2 | P76: 0 | Q76: 其他2 | R76: 0 | S76: 0 | U76: 28 | V76: 2 | W76: 7 | X76: 0 | Y76: 19 | AG76: 0
B77: 代理制 | C77: 技术 | D77: 1 | E77: 统计学 | F77: 本科 | G77: 22 | H77: 热爱本职工作、有相关培训证书
A78: 泌尿外科 | B78: 事业编 | C78: 医疗 | D78: 1 | E78: 外科学或临床医学专业（八年制） | F78: 研究生、博士 | G78: ≤45周岁 | L78: 0 | M78: 医1（张辉） | N78: 医2 | O78: 医1 | P78: 医1 | Q78: 医2 | R78: 0 | S78: =VLOOKUP(A:A,Sheet6!A:C,3,0) -> 84 | T78: 134.4 | U78: 71 | V78: 27 | W78: 39 | X78: 5 | Y78: 0 | Z78: 63253 | AA78: 2630 | AC78: 92.2% | AD78: 10.6 | AE78: 2343 | AF78: =AA78/V78 -> 97.40740741 | AG78: =S78*0.8 -> 67.2
B79: 事业编 | C79: 医疗 | D79: 1 | E79: 外科学或临床医学（七年制或八年制）专业 | F79: 研究生、硕士及以上 | G79: ≤35周岁
A80: 内分泌代谢科 | B80: 事业编 | C80: 医疗 | D80: 1 | E80: 内科学或临床医学（八年制）专业 | F80: 研究生、博士 | G80: ≤45周岁 | H80: 诚实、主动、努力、上进，在有重要影响的学术期刊发表高水平研究论文 | L80: 0 | M80: 0 | N80: 医2 | O80: 医2 | P80: 0 | Q80: 医1 | R80: 医1 | S80: =VLOOKUP(A:A,Sheet6!A:C,3,0) -> 114 | T80: 182.4 | U80: 95 | V80: 49 | W80: 42 | X80: 4 | Y80: 0 | Z80: 235171 | AA80: 3554 | AC80: 87.2% | AD80: 10 | AE80: 4799 | AF80: =AA80/V80 -> 72.53061224 | AG80: =S80*0.8 -> 91.2
A81: 保卫处 | B81: 派遣制 | C81: 其他 | D81: 1 | E81: 行政管理相关专业 | F81: 专科及以上 | G81: ≤30周岁 | H81: 消防退役人员，有从事消防专业工作经验和技能 | I81: 消防专业知识 | L81: 0 | M81: 0 | N81: 1 | O81: 1 | P81: 0 | Q81: 其他1 | R81: 其他1 | S81: 0 | U81: 19 | V81: 0 | W81: 0 | X81: 0 | Y81: 19 | AG81: =S81*0.8 -> 0
A82: PET-CT影像诊断科 | B82: 事业编 | C82: 医疗 | D82: 1 | E82: 影像医学与核医学、肿瘤学或临床医学（八年制）专业 | F82: 研究生、博士 | G82: ≤45周岁 | H82: 具有分子影像（如PET或相关）的研究经历或该领域2年以上临床工作经验；主持或承担省部级及以上本领域课题，并发表过论文。 | L82: 0 | M82: 0 | N82: 技1 | O82: 技1 | P82: 0 | Q82: 医1 | R82: 医1 | S82: 0 | U82: 11 | V82: 4 | W82: 3 | X82: 4 | Y82: 0 | AG82: 0
A83: 心血管内科 | B83: 事业编 | C83: 医疗 | D83: 2 | E83: 内科学或临床医学（八年制）专业 | F83: 研究生、博士 | G83: ≤45周岁 | H83: 以第一作者发表SCI论文1篇及以上 | L83: 0 | M83: 医1（孙跃民） | N83: 医4技2 | O83: 医3技2 | P83: 医1 | Q83: 医6技2 | R83: 医4技2 | S83: =VLOOKUP(A:A,Sheet6!A:C,3,0) -> 106 | T83: 169.6 | U83: 138 | V83: 51 | W83: 75 | X83: 12 | Y83: 0 | Z83: 196973 | AA83: 7133 | AC83: 90.1% | AD83: 4.9 | AE83: 3862 | AF83: =AA83/V83 -> 139.8627451 | AG83: 84.8
B84: 事业编 | C84: 医疗 | D84: 3 | E84: 内科学或临床医学（七年制或八年制）专业 | F84: 研究生、硕士及以上 | G84: ≤35周岁 | H84: 临床方向 | I84: 内科学
B85: 事业编 | C85: 医疗 | D85: 1 | E85: 内科学、影像医学与核医学或临床医学（七年制或八年制）专业 | F85: 研究生、硕士及以上 | G85: ≤30周岁 | H85: 具有超声医学或影像医学规培证 | I85: 超声医学
B86: 代理制 | C86: 技术 | D86: 1 | E86: 临床医学、影像技术或医学影像 | F86: 本科、学士 | G86: ≤30周岁 | H86: 心电图室方向 | I86: 心电图学
B87: 代理制 | C87: 技术 | D87: 1 | E87: 临床医学、影像技术、医学影像或生物医学工程 | F87: 本科、学士 | G87: ≤30周岁 | H87: 导管室方向，接触放射线 | I87: 医学影像
A88: 消化内科 | B88: 事业编 | C88: 医疗 | D88: 2 | E88: 内科学或临床医学（八年制）专业 | F88: 研究生、博士 | G88: ≤45周岁 | H88: 以第一作者发表论文2篇以上，至少1篇影响因子≥5，累计影响因子≥10；参加国家级科研课题；具有执业医师资格证书 | L88: 0 | M88: 0 | N88: 医1 | O88: 医1 | P88: 0 | Q88: 医2 | R88: 医2 | S88: =VLOOKUP(A:A,Sheet6!A:C,3,0) -> 92 | T88: 147.2 | U88: 101 | V88: 44 | W88: 49 | X88: 3 | Y88: 5 | Z88: 180040 | AA88: 3462 | AC88: 90.2% | AD88: 8.8 | AE88: 4092 | AF88: =AA88/V88 -> 78.68181818 | AG88: 73.6
A89: 临床营养科 | B89: 代理制 | C89: 医疗 | D89: 1 | E89: 临床医学及其下设二级学科 | F89: 研究生、硕士及以上 | G89: ≤35周岁 | H89: 有医师资格证、有工作经历优先 | I89: 临床营养 | L89: 0 | M89: 0 | N89: 医1技1 | O89: 医1技1 | P89: 0 | Q89: 医1 | R89: 医1 | S89: 0 | U89: 6 | V89: 1 | W89: 0 | X89: 4 | Y89: 1 | AG89: 0
A90: 超声科 | B90: 事业编 | C90: 医疗 | D90: 1 | E90: 医学影像学（超声学）或临床医学专业 | F90: 研究生、硕士及以上 | G90: ≤35周岁 | I90: 医学影像学（超声学） | L90: 0 | M90: 0 | N90: 医1 | O90: 医1 | P90: 0 | Q90: 医1 | R90: 医1 | S90: 0 | U90: 24 | V90: 20 | W90: 0 | X90: 3 | Y90: 1 | AG90: 0
A91: 耳鼻咽喉科 | B91: 事业编 | C91: 医疗 | D91: 1 | E91: 外科学、临床医学（八年制）或耳鼻咽喉科学专业 | F91: 研究生、博士 | G91: ≤45周岁 | H91: 具备从事科研工作能力 | I91: 38 | L91: 0 | M91: 医1（周慧芳） | N91: 医1 | O91: 医1 | P91: 0 | Q91: 医1 | R91: 0 | S91: =VLOOKUP(A:A,Sheet6!A:C,3,0) -> 40 | T91: 64 | U91: 43 | V91: 26 | W91: 14 | X91: 3 | Y91: 0 | Z91: 111942 | AA91: 1448 | AC91: 71.9% | AD91: 7.4 | AE91: 4305 | AF91: =AA91/V91 -> 55.69230769 | AG91: 32
A92: 健康管理中心 | B92: 代理制 | C92: 医疗 | D92: 1 | E92: 内科学（七年制或八年制） | F92: 研究生、硕士及以上 | G92: ≤35周岁 | L92: 医1（副主任医师） | M92: 0 | N92: 医1 | O92: 0 | P92: 医1 | Q92: 医2 | R92: 0 | S92: 0 | U92: 61 | V92: 15 | W92: 15 | X92: 5 | Y92: 26 | Z92: 62112 | AE92: 4141 | AG92: 0
B93: 代理制 | C93: 医疗 | D93: 1 | E93: 影像医学；超声专业 | F93: 研究生、硕士及以上 | G93: ≤35周岁
A94: 护理部 | B94: 代理制 | C94: 临床护理 | D94: 65 | E94: 护理专业 | F94: 本科及以上学历，学士学位 | G94: ≤30周岁 | L94: 13（中级4，初级9） | M94: 13 | N94: 事业编15、代理制68 | O94: 事业编15、代理制57 | P94: 代理制11 | Q94: 事业编25、代理制65 | R94: 0 | S94: 0 | U94: 2123 | AG94: 0
B95: 事业编 | C95: 临床护理 | D95: 9 | E95: 护理专业 | F95: 研究生学历、硕士学位 | G95: ≤35周岁
B96: 事业编 | C96: 临床护理 | D96: 10 | E96: 助产专业 | F96: 本科及以上学历，学士学位 | G96: ≤25周岁
B97: 事业编 | C97: 临床护理 | D97: 6 | E97: 重症专业 | F97: 本科及以上学历，学士学位 | G97: ≤35周岁
A98: 学科建设管理处 | B98: 代理制 | C98: 其他 | D98: 1 | E98: 不限 | F98: 硕士以上 | G98: 35以下 | H98: 1.有外企工作经验；2.熟悉外企制药的管理；3.良好的英语沟通能力 | L98: 0 | M98: 1（吴红军） | N98: 0 | O98: 0 | P98: 0 | Q98: 其他1 | R98: 其他1
D99: =SUBTOTAL(9,D3:D98) -> 44

Sheet 人员情况 (hidden)
A1: 岗位/编制 | B1: 总人数 | C1: 事业编 | J1: 代理制 | P1: 派遣制
C2: 当前人数 | D2: 2022年退休 | E2: 预测离职 | F2: 2021年计划 | G2: 2021年实际 | H2: 2022年计划 | I2: 预计纯增 | J2: 当前人数 | K2: 2021年计划 | L2: 2021年实际 | M2: 预测离职 | N2: 2022年计划 | O2: 预计纯增 | P2: 当前人数 | Q2: 2021年计划 | R2: 2021年实际 | S2: =$M$2 -> 预测离职 | T2: 2022年计划 | U2: 预计纯增
A3: 医疗岗 | B3: 1348 | C3: 1309 | D3: 18 | E3: 17 | F3: 72 | G3: 45 | H3: 71 | I3: =H3-D3-E3 -> 36 | J3: 38 | K3: 0 | L3: 0 | M3: 0 | N3: 3 | O3: =N3-M3 -> 3 | P3: 1 | Q3: 0 | R3: 0 | S3: 0 | T3: 0 | U3: =T3-S3 -> 0
A4: 技术岗 | B4: 526 | C4: 360 | D4: 4 | E4: 1 | F4: 17 | G4: 14 | H4: 22 | I4: =H4-D4-E4 -> 17 | J4: 157 | K4: 11 | L4: 11 | M4: 2 | N4: 17 | O4: =N4-M4 -> 15 | P4: 9 | Q4: 0 | R4: 0 | S4: 0 | T4: 0 | U4: =T4-S4 -> 0
A5: 科研岗 | B5: 73 | C5: 71 | D5: 1 | E5: 2 | F5: 7 | G5: 5 | H5: 2 | I5: =H5-D5-E5 -> -1 | J5: 2 | K5: 0 | L5: 0 | M5: 1 | N5: 0 | O5: =N5-M5 -> -1 | P5: 0 | Q5: 0 | R5: 0 | S5: 0 | T5: 0 | U5: =T5-S5 -> 0
A6: 护理岗 | B6: 2121 | C6: 1206 | D6: 13 | E6: 5 | F6: 15 | G6: 15 | H6: 25 | I6: =H6-D6-E6 -> 7 | J6: 896 | K6: 68 | L6: 57 | M6: 8 | N6: 65 | O6: =N6-M6 -> 57 | P6: 19 | Q6: 0 | R6: 0 | S6: 0 | T6: 0 | U6: =T6-S6 -> 0
A7: 其他岗 | B7: 508 | C7: 281 | D7: 21 | E7: 0 | F7: 0 | G7: 0 | H7: 0 | I7: -21 | J7: 221 | K7: 9 | L7: 9 | M7: 1 | N7: 3 | O7: =N7-M7 -> 2 | P7: 6 | Q7: 1 | R7: 1 | S7: 0 | T7: 1 | U7: =T7-S7 -> 1
A8: 合计 | B8: 4576 | C8: 3227 | D8: 57 | E8: =SUM(E3:E7) -> 25 | F8: 111 | G8: 79 | H8: 120 | I8: 38 | J8: 1314 | K8: 88 | L8: 77 | M8: 12 | N8: 88 | O8: 76 | P8: 35 | Q8: 1 | R8: 1 | S8: 0 | T8: 1 | U8: 1
A11: 2022年计划总人数 | C11: 210 | D11: 事业编121（医疗岗71、技术岗22、科研岗3、护理岗25） 代理制88（医疗岗3、技术岗17、护理岗65、其他岗3） 派遣制1
C12: 210 | D12: 按照学历划分：博士45人，硕士及以上67人，本科及以上97人，大专及以上1人。
A13: 预计纯增总人数 | C13: =I8+O8+U8 -> 115 | D13: 事业编39、代理制76、派遣制1
C15: 控制数 | E15: 按8%留存
A16: 2016年岗位控制数 | C16: 4080 | E16: =C16*0.92 -> 3754
A17: 事业编剩余编制数 | C17: =C16-C8 -> 853 | E17: =E16-C8 -> 527

Sheet Sheet4 (hidden)
A1: 二、全院2020年12月出院病人完成情况
A2: 科 室 | B2: 1月 | C2: 2019-01-01 | D2: 同期比较 | E2: 2月 | F2: 2019-02-01 | G2: 同期比较 | H2: 3月 | I2: 2019-03-01 | J2: 同期比较 | K2: 4月 | L2: 2019-04-01 | M2: 同期比较 | N2: 5月 | O2: 2019-05-01 | P2: 同期比较 | Q2: 6月 | R2: 2019-06-01 | S2: 同期比较 | T2: 7月 | U2: 2019-07-01 | V2: 去年同期 | W2: 8月 | X2: 2019-08-01 | Y2: 同期比较 | Z2: 9月 | AA2: 2019-09-01 | AB2: 同期比较 | AC2: 10月 | AD2: 2019-10-01 | AE2: 同期比较 | AF2: 11月 | AG2: 2019-11-01 | AH2: 同期比较 | AI2: 12月 | AJ2: 2019-12-01 | AK2: 同期比较 | AL2: 2020年 累计完成 | AM2: 2019年 累计完成 | AN2: 累计比较
A3: 肺部肿瘤外科 | B3: 230 | C3: 250 | D3: -8.00% | E3: 52 | F3: 138 | G3: -62.32% | H3: 182 | I3: 259 | J3: -29.73% | K3: 253 | L3: 236 | M3: 7.20% | N3: 315 | O3: 266 | P3: 18.42% | Q3: 326 | R3: 259 | S3: 25.87% | T3: 347 | U3: 296 | V3: 17.23% | W3: 352 | X3: 258 | Y3: 36.43% | Z3: 395 | AA3: 301 | AB3: 31.23% | AC3: 337 | AD3: 254 | AE3: 32.68% | AF3: 371 | AG3: 304 | AH3: 22.04% | AI3: 360 | AJ3: 345 | AK3: 4.35% | AL3: 3520 | AM3: 3166 | AN3: 11.18%
A4: 重症医学科 | B4: 35 | C4: 52 | D4: -32.69% | E4: 30 | F4: 33 | G4: -9.09% | H4: 40 | I4: 32 | J4: 25.00% | K4: 45 | L4: 33 | M4: 36.36% | N4: 46 | O4: 38 | P4: 21.05% | Q4: 38 | R4: 37 | S4: 2.70% | T4: 38 | U4: 42 | V4: -9.52% | W4: 54 | X4: 34 | Y4: 58.82% | Z4: 43 | AA4: 32 | AB4: 34.38% | AC4: 34 | AD4: 36 | AE4: -5.56% | AF4: 46 | AG4: 37 | AH4: 24.32% | AI4: 36 | AJ4: 37 | AK4: -2.70% | AL4: 485 | AM4: 443 | AN4: 9.48%
A5: 血液内科 | B5: 339 | C5: 304 | D5: 11.51% | E5: 126 | F5: 189 | G5: -33.33% | H5: 249 | I5: 384 | J5: -35.16% | K5: 353 | L5: 388 | M5: -9.02% | N5: 289 | O5: 349 | P5: -17.19% | Q5: 370 | R5: 360 | S5: 2.78% | T5: 386 | U5: 452 | V5: -14.60% | W5: 422 | X5: 382 | Y5: 10.47% | Z5: 479 | AA5: 354 | AB5: 35.31% | AC5: 388 | AD5: 332 | AE5: 16.87% | AF5: 418 | AG5: 369 | AH5: 13.28% | AI5: 461 | AJ5: 398 | AK5: 15.83% | AL5: 4280 | AM5: 4261 | AN5: 0.45%
A6: 心胸外科 | B6: 102 | C6: 90 | D6: 13.33% | E6: 38 | F6: 57 | G6: -33.33% | H6: 70 | I6: 99 | J6: -29.29% | K6: 94 | L6: 108 | M6: -12.96% | N6: 101 | O6: 95 | P6: 6.32% | Q6: 102 | R6: 102 | S6: 0.00% | T6: 128 | U6: 120 | V6: 6.67% | W6: 108 | X6: 100 | Y6: 8.00% | Z6: 112 | AA6: 103 | AB6: 8.74% | AC6: 88 | AD6: 94 | AE6: -6.38% | AF6: 99 | AG6: 103 | AH6: -3.88% | AI6: 117 | AJ6: 99 | AK6: 18.18% | AL6: 1159 | AM6: 1170 | AN6: -0.94%
A7: 口腔科 | B7: 52 | C7: 40 | D7: 30.00% | E7: 9 | F7: 17 | G7: -47.06% | H7: 20 | I7: 60 | J7: -66.67% | K7: 54 | L7: 58 | M7: -6.90% | N7: 43 | O7: 52 | P7: -17.31% | Q7: 59 | R7: 52 | S7: 13.46% | T7: 62 | U7: 56 | V7: 10.71% | W7: 63 | X7: 55 | Y7: 14.55% | Z7: 70 | AA7: 62 | AB7: 12.90% | AC7: 29 | AD7: 38 | AE7: -23.68% | AF7: 62 | AG7: 51 | AH7: 21.57% | AI7: 56 | AJ7: 60 | AK7: -6.67% | AL7: 579 | AM7: 601 | AN7: -3.66%
A8: 肿瘤内科 | B8: 257 | C8: 244 | D8: 5.33% | E8: 128 | F8: 202 | G8: -36.63% | H8: 213 | I8: 290 | J8: -26.55% | K8: 233 | L8: 258 | M8: -9.69% | N8: 252 | O8: 271 | P8: -7.01% | Q8: 281 | R8: 268 | S8: 4.85% | T8: 278 | U8: 298 | V8: -6.71% | W8: 298 | X8: 303 | Y8: -1.65% | Z8: 331 | AA8: 314 | AB8: 5.41% | AC8: 297 | AD8: 277 | AE8: 7.22% | AF8: 323 | AG8: 307 | AH8: 5.21% | AI8: 352 | AJ8: 338 | AK8: 4.14% | AL8: 3243 | AM8: 3370 | AN8: -3.77%
A9: 疼痛诊疗中心 | B9: 36 | C9: 55 | D9: -34.55% | E9: 6 | F9: 20 | G9: -70.00% | H9: 26 | I9: 41 | J9: -36.59% | K9: 42 | L9: 46 | M9: -8.70% | N9: 39 | O9: 42 | P9: -7.14% | Q9: 50 | R9: 38 | S9: 31.58% | T9: 45 | U9: 44 | V9: 2.27% | W9: 48 | X9: 44 | Y9: 9.09% | Z9: 49 | AA9: 47 | AB9: 4.26% | AC9: 39 | AD9: 35 | AE9: 11.43% | AF9: 48 | AG9: 50 | AH9: -4.00% | AI9: 49 | AJ9: 40 | AK9: 22.50% | AL9: 477 | AM9: 502 | AN9: -4.98%
A10: 普通外科 | B10: 587 | C10: 609 | D10: -3.61% | E10: 128 | F10: 419 | G10: -69.45% | H10: 322 | I10: 691 | J10: -53.40% | K10: 565 | L10: 613 | M10: -7.83% | N10: 598 | O10: 652 | P10: -8.28% | Q10: 647 | R10: 641 | S10: 0.94% | T10: 722 | U10: 658 | V10: 9.73% | W10: 710 | X10: 642 | Y10: 10.59% | Z10: 750 | AA10: 676 | AB10: 10.95% | AC10: 678 | AD10: 577 | AE10: 17.50% | AF10: 762 | AG10: 780 | AH10: -2.31% | AI10: 780 | AJ10: 723 | AK10: 7.88% | AL10: 7249 | AM10: 7681 | AN10: -5.62%
A11: 眼科 | B11: 165 | C11: 172 | D11: -4.07% | E11: 9 | F11: 135 | G11: -93.33% | H11: 120 | I11: 282 | J11: -57.45% | K11: 263 | L11: 272 | M11: -3.31% | N11: 249 | O11: 251 | P11: -0.80% | Q11: 279 | R11: 256 | S11: 8.98% | T11: 253 | U11: 266 | V11: -4.89% | W11: 253 | X11: 237 | Y11: 6.75% | Z11: 303 | AA11: 256 | AB11: 18.36% | AC11: 261 | AD11: 285 | AE11: -8.42% | AF11: 312 | AG11: 317 | AH11: -1.58% | AI11: 334 | AJ11: 253 | AK11: 32.02% | AL11: 2801 | AM11: 2982 | AN11: -6.07%
A12: 泌尿外科 | B12: 197 | C12: 227 | D12: -13.22% | E12: 7 | F12: 112 | G12: -93.75% | H12: 118 | I12: 229 | J12: -48.47% | K12: 241 | L12: 248 | M12: -2.82% | N12: 222 | O12: 231 | P12: -3.90% | Q12: 235 | R12: 230 | S12: 2.17% | T12: 264 | U12: 229 | V12: 15.28% | W12: 279 | X12: 269 | Y12: 3.72% | Z12: 289 | AA12: 266 | AB12: 8.65% | AC12: 243 | AD12: 238 | AE12: 2.10% | AF12: 267 | AG12: 263 | AH12: 1.52% | AI12: 268 | AJ12: 271 | AK12: -1.11% | AL12: 2630 | AM12: 2813 | AN12: -6.51%
A13: 皮肤性病科 | B13: 86 | C13: 59 | D13: 45.76% | E13: 45 | F13: 58 | G13: -22.41% | H13: 73 | I13: 66 | J13: 10.61% | K13: 97 | L13: 68 | M13: 42.65% | N13: 70 | O13: 81 | P13: -13.58% | Q13: 80 | R13: 85 | S13: -5.88% | T13: 78 | U13: 101 | V13: -22.77% | W13: 68 | X13: 107 | Y13: -36.45% | Z13: 86 | AA13: 90 | AB13: -4.44% | AC13: 77 | AD13: 80 | AE13: -3.75% | AF13: 72 | AG13: 80 | AH13: -10.00% | AI13: 77 | AJ13: 99 | AK13: -22.22% | AL13: 909 | AM13: 974 | AN13: -6.67%
A14: 肾脏内科 | B14: 286 | C14: 231 | D14: 23.81% | E14: 45 | F14: 175 | G14: -74.29% | H14: 112 | I14: 234 | J14: -52.14% | K14: 224 | L14: 250 | M14: -10.40% | N14: 213 | O14: 282 | P14: -24.47% | Q14: 249 | R14: 247 | S14: 0.81% | T14: 296 | U14: 316 | V14: -6.33% | W14: 297 | X14: 289 | Y14: 2.77% | Z14: 364 | AA14: 321 | AB14: 13.40% | AC14: 314 | AD14: 347 | AE14: -9.51% | AF14: 315 | AG14: 356 | AH14: -11.52% | AI14: 388 | AJ14: 331 | AK14: 17.22% | AL14: 3103 | AM14: 3379 | AN14: -8.17%
A15: 心血管内科 | B15: 528 | C15: 622 | D15: -15.11% | E15: 69 | F15: 480 | G15: -85.63% | H15: 460 | I15: 673 | J15: -31.65% | K15: 590 | L15: 644 | M15: -8.39% | N15: 596 | O15: 659 | P15: -9.56% | Q15: 636 | R15: 659 | S15: -3.49% | T15: 652 | U15: 726 | V15: -10.19% | W15: 683 | X15: 692 | Y15: -1.30% | Z15: 746 | AA15: 679 | AB15: 9.87% | AC15: 676 | AD15: 596 | AE15: 13.42% | AF15: 776 | AG15: 731 | AH15: 6.16% | AI15: 721 | AJ15: 718 | AK15: 0.42% | AL15: 7133 | AM15: 7879 | AN15: -9.47%
A16: 核医学科 | B16: 83 | C16: 103 | D16: -19.42% | E16: 52 | F16: 67 | G16: -22.39% | H16: 64 | I16: 119 | J16: -46.22% | K16: 125 | L16: 113 | M16: 10.62% | N16: 109 | O16: 94 | P16: 15.96% | Q16: 116 | R16: 103 | S16: 12.62% | T16: 99 | U16: 128 | V16: -22.66% | W16: 90 | X16: 113 | Y16: -20.35% | Z16: 93 | AA16: 106 | AB16: -12.26% | AC16: 83 | AD16: 108 | AE16: -23.15% | AF16: 98 | AG16: 106 | AH16: -7.55% | AI16: 101 | AJ16: 107 | AK16: -5.61% | AL16: 1113 | AM16: 1267 | AN16: -12.15%
A17: 消化内科 | B17: 333 | C17: 303 | D17: 9.90% | E17: 92 | F17: 236 | G17: -61.02% | H17: 179 | I17: 318 | J17: -43.71% | K17: 273 | L17: 335 | M17: -18.51% | N17: 279 | O17: 324 | P17: -13.89% | Q17: 306 | R17: 309 | S17: -0.97% | T17: 326 | U17: 348 | V17: -6.32% | W17: 332 | X17: 385 | Y17: -13.77% | Z17: 336 | AA17: 409 | AB17: -17.85% | AC17: 308 | AD17: 315 | AE17: -2.22% | AF17: 328 | AG17: 386 | AH17: -15.03% | AI17: 370 | AJ17: 388 | AK17: -4.64% | AL17: 3462 | AM17: 4056 | AN17: -14.64%
A18: 骨外科 | B18: 167 | C18: 209 | D18: -20.10% | E18: 19 | F18: 107 | G18: -82.24% | H18: 95 | I18: 217 | J18: -56.22% | K18: 188 | L18: 266 | M18: -29.32% | N18: 184 | O18: 218 | P18: -15.60% | Q18: 200 | R18: 190 | S18: 5.26% | T18: 214 | U18: 244 | V18: -12.30% | W18: 185 | X18: 212 | Y18: -12.74% | Z18: 255 | AA18: 258 | AB18: -1.16% | AC18: 215 | AD18: 225 | AE18: -4.44% | AF18: 271 | AG18: 233 | AH18: 16.31% | AI18: 243 | AJ18: 268 | AK18: -9.33% | AL18: 2236 | AM18: 2647 | AN18: -15.53%
A19: 神经内科 | B19: 427 | C19: 430 | D19: -0.70% | E19: 222 | F19: 366 | G19: -39.34% | H19: 270 | I19: 403 | J19: -33.00% | K19: 323 | L19: 406 | M19: -20.44% | N19: 314 | O19: 436 | P19: -27.98% | Q19: 333 | R19: 437 | S19: -23.80% | T19: 401 | U19: 434 | V19: -7.60% | W19: 385 | X19: 474 | Y19: -18.78% | Z19: 431 | AA19: 430 | AB19: 0.23% | AC19: 379 | AD19: 443 | AE19: -14.45% | AF19: 418 | AG19: 432 | AH19: -3.24% | AI19: 444 | AJ19: 486 | AK19: -8.64% | AL19: 4347 | AM19: 5177 | AN19: -16.03%
A20: 呼吸内科 | B20: 281 | C20: 268 | D20: 4.85% | E20: 97 | F20: 224 | G20: -56.70% | H20: 199 | I20: 294 | J20: -32.31% | K20: 227 | L20: 312 | M20: -27.24% | N20: 192 | O20: 278 | P20: -30.94% | Q20: 247 | R20: 270 | S20: -8.52% | T20: 255 | U20: 321 | V20: -20.56% | W20: 244 | X20: 300 | Y20: -18.67% | Z20: 304 | AA20: 297 | AB20: 2.36% | AC20: 265 | AD20: 265 | AE20: 0.00% | AF20: 276 | AG20: 295 | AH20: -6.44% | AI20: 305 | AJ20: 325 | AK20: -6.15% | AL20: 2892 | AM20: 3449 | AN20: -16.15%
A21: 内分泌代谢科 | B21: 303 | C21: 342 | D21: -11.40% | E21: 41 | F21: 234 | G21: -82.48% | H21: 191 | I21: 396 | J21: -51.77% | K21: 258 | L21: 380 | M21: -32.11% | N21: 271 | O21: 363 | P21: -25.34% | Q21: 314 | R21: 357 | S21: -12.04% | T21: 334 | U21: 356 | V21: -6.18% | W21: 366 | X21: 379 | Y21: -3.43% | Z21: 394 | AA21: 381 | AB21: 3.41% | AC21: 323 | AD21: 321 | AE21: 0.62% | AF21: 364 | AG21: 380 | AH21: -4.21% | AI21: 395 | AJ21: 381 | AK21: 3.67% | AL21: 3554 | AM21: 4270 | AN21: -16.77%
A22: 放射治疗科 | B22: 86 | C22: 71 | D22: 21.13% | E22: 38 | F22: 68 | G22: -44.12% | H22: 34 | I22: 69 | J22: -50.72% | K22: 62 | L22: 85 | M22: -27.06% | N22: 54 | O22: 70 | P22: -22.86% | Q22: 69 | R22: 78 | S22: -11.54% | T22: 89 | U22: 84 | V22: 5.95% | W22: 63 | X22: 95 | Y22: -33.68% | Z22: 94 | AA22: 85 | AB22: 10.59% | AC22: 62 | AD22: 74 | AE22: -16.22% | AF22: 76 | AG22: 95 | AH22: -20.00% | AI22: 75 | AJ22: 106 | AK22: -29.25% | AL22: 802 | AM22: 980 | AN22: -18.16%
A23: 急诊医学科 | B23: 180 | C23: 177 | D23: 1.69% | E23: 109 | F23: 161 | G23: -32.30% | H23: 109 | I23: 179 | J23: -39.11% | K23: 157 | L23: 183 | M23: -14.21% | N23: 130 | O23: 196 | P23: -33.67% | Q23: 125 | R23: 190 | S23: -34.21% | T23: 148 | U23: 190 | V23: -22.11% | W23: 151 | X23: 193 | Y23: -21.76% | Z23: 167 | AA23: 171 | AB23: -2.34% | AC23: 163 | AD23: 183 | AE23: -10.93% | AF23: 145 | AG23: 182 | AH23: -20.33% | AI23: 181 | AJ23: 190 | AK23: -4.74% | AL23: 1765 | AM23: 2195 | AN23: -19.59%
A24: 神经外科 | B24: 294 | C24: 335 | D24: -12.24% | E24: 90 | F24: 237 | G24: -62.03% | H24: 194 | I24: 365 | J24: -46.85% | K24: 284 | L24: 401 | M24: -29.18% | N24: 269 | O24: 353 | P24: -23.80% | Q24: 293 | R24: 329 | S24: -10.94% | T24: 287 | U24: 353 | V24: -18.70% | W24: 278 | X24: 346 | Y24: -19.65% | Z24: 323 | AA24: 383 | AB24: -15.67% | AC24: 260 | AD24: 292 | AE24: -10.96% | AF24: 308 | AG24: 353 | AH24: -12.75% | AI24: 293 | AJ24: 339 | AK24: -13.57% | AL24: 3173 | AM24: 4086 | AN24: -22.34%
A25: 心血管外科 | B25: 44 | C25: 69 | D25: -36.23% | E25: 18 | F25: 43 | G25: -58.14% | H25: 27 | I25: 78 | J25: -65.38% | K25: 61 | L25: 73 | M25: -16.44% | N25: 55 | O25: 57 | P25: -3.51% | Q25: 49 | R25: 66 | S25: -25.76% | T25: 63 | U25: 69 | V25: -8.70% | W25: 58 | X25: 88 | Y25: -34.09% | Z25: 73 | AA25: 77 | AB25: -5.19% | AC25: 58 | AD25: 71 | AE25: -18.31% | AF25: 69 | AG25: 78 | AH25: -11.54% | AI25: 75 | AJ25: 73 | AK25: 2.74% | AL25: 650 | AM25: 842 | AN25: -22.80%
A26: 妇产科 | B26: 615 | C26: 707 | D26: -13.01% | E26: 304 | F26: 549 | G26: -44.63% | H26: 437 | I26: 758 | J26: -42.35% | K26: 464 | L26: 702 | M26: -33.90% | N26: 438 | O26: 703 | P26: -37.70% | Q26: 531 | R26: 713 | S26: -25.53% | T26: 607 | U26: 756 | V26: -19.71% | W26: 621 | X26: 666 | Y26: -6.76% | Z26: 588 | AA26: 696 | AB26: -15.52% | AC26: 541 | AD26: 668 | AE26: -19.01% | AF26: 598 | AG26: 714 | AH26: -16.25% | AI26: 635 | AJ26: 704 | AK26: -9.80% | AL26: 6379 | AM26: 8336 | AN26: -23.48%
A27: 耳鼻咽喉科 | B27: 121 | C27: 153 | D27: -20.92% | E27: 1 | F27: 102 | G27: -99.02% | H27: 70 | I27: 176 | J27: -60.23% | K27: 156 | L27: 179 | M27: -12.85% | N27: 132 | O27: 197 | P27: -32.99% | Q27: 130 | R27: 159 | S27: -18.24% | T27: 140 | U27: 199 | V27: -29.65% | W27: 152 | X27: 186 | Y27: -18.28% | Z27: 138 | AA27: 192 | AB27: -28.13% | AC27: 112 | AD27: 134 | AE27: -16.42% | AF27: 133 | AG27: 149 | AH27: -10.74% | AI27: 163 | AJ27: 140 | AK27: 16.43% | AL27: 1448 | AM27: 1966 | AN27: -26.35%
A28: 风湿免疫科 | B28: 197 | C28: 217 | D28: -9.22% | E28: 45 | F28: 163 | G28: -72.39% | H28: 144 | I28: 206 | J28: -30.10% | K28: 184 | L28: 261 | M28: -29.50% | N28: 208 | O28: 258 | P28: -19.38% | Q28: 181 | R28: 257 | S28: -29.57% | T28: 207 | U28: 276 | V28: -25.00% | W28: 171 | X28: 285 | Y28: -40.00% | Z28: 178 | AA28: 244 | AB28: -27.05% | AC28: 174 | AD28: 226 | AE28: -23.01% | AF28: 176 | AG28: 211 | AH28: -16.59% | AI28: 193 | AJ28: 217 | AK28: -11.06% | AL28: 2058 | AM28: 2821 | AN28: -27.05%
A29: 中医科 | B29: 60 | C29: 78 | D29: -23.08% | E29: 7 | F29: 49 | G29: -85.71% | H29: 42 | I29: 85 | J29: -50.59% | K29: 69 | L29: 85 | M29: -18.82% | N29: 44 | O29: 76 | P29: -42.11% | Q29: 55 | R29: 77 | S29: -28.57% | T29: 59 | U29: 76 | V29: -22.37% | W29: 69 | X29: 79 | Y29: -12.66% | Z29: 75 | AA29: 82 | AB29: -8.54% | AC29: 49 | AD29: 60 | AE29: -18.33% | AF29: 72 | AG29: 98 | AH29: -26.53% | AI29: 58 | AJ29: 82 | AK29: -29.27% | AL29: 659 | AM29: 927 | AN29: -28.91%
A30: 小儿外科 | B30: 46 | C30: 28 | D30: 64.29% | E30: 0 | F30: 17 | G30: -100.00% | H30: 12 | I30: 27 | J30: -55.56% | K30: 24 | L30: 27 | M30: -11.11% | N30: 21 | O30: 35 | P30: -40.00% | Q30: 23 | R30: 53 | S30: -56.60% | T30: 52 | U30: 72 | V30: -27.78% | W30: 54 | X30: 63 | Y30: -14.29% | Z30: 28 | AA30: 54 | AB30: -48.15% | AC30: 24 | AD30: 42 | AE30: -42.86% | AF30: 23 | AG30: 39 | AH30: -41.03% | AI30: 25 | AJ30: 29 | AK30: -13.79% | AL30: 332 | AM30: 486 | AN30: -31.69%
A31: 保健医疗部 | B31: 282 | C31: 323 | D31: -12.69% | E31: 64 | F31: 258 | G31: -75.19% | H31: 100 | I31: 346 | J31: -71.10% | K31: 158 | L31: 320 | M31: -50.63% | N31: 186 | O31: 336 | P31: -44.64% | Q31: 218 | R31: 321 | S31: -32.09% | T31: 180 | U31: 318 | V31: -43.40% | W31: 213 | X31: 302 | Y31: -29.47% | Z31: 262 | AA31: 312 | AB31: -16.03% | AC31: 213 | AD31: 308 | AE31: -30.84% | AF31: 222 | AG31: 360 | AH31: -38.33% | AI31: 244 | AJ31: 313 | AK31: -22.04% | AL31: 2342 | AM31: 3817 | AN31: -38.64%
A32: 感染科 | B32: 42 | C32: 40 | D32: 5.00% | E32: 0 | F32: 35 | G32: -100.00% | H32: 8 | I32: 40 | J32: -80.00% | K32: 25 | L32: 46 | M32: -45.65% | N32: 26 | O32: 45 | P32: -42.22% | Q32: 29 | R32: 46 | S32: -36.96% | T32: 36 | U32: 48 | V32: -25.00% | W32: 33 | X32: 54 | Y32: -38.89% | Z32: 33 | AA32: 45 | AB32: -26.67% | AC32: 14 | AD32: 38 | AE32: -63.16% | AF32: 34 | AG32: 47 | AH32: -27.66% | AI32: 35 | AJ32: 49 | AK32: -28.57% | AL32: 315 | AM32: 533 | AN32: -40.90%
A33: 康复医学科 | B33: 66 | C33: 59 | D33: 11.86% | E33: 7 | F33: 48 | G33: -85.42% | H33: 30 | I33: 73 | J33: -58.90% | K33: 44 | L33: 68 | M33: -35.29% | N33: 32 | O33: 53 | P33: -39.62% | Q33: 37 | R33: 65 | S33: -43.08% | T33: 52 | U33: 67 | V33: -22.39% | W33: 38 | X33: 75 | Y33: -49.33% | Z33: 52 | AA33: 58 | AB33: -10.34% | AC33: 21 | AD33: 64 | AE33: -67.19% | AF33: 20 | AG33: 81 | AH33: -75.31% | AI33: 27 | AJ33: 64 | AK33: -57.81% | AL33: 426 | AM33: 775 | AN33: -45.03%
A34: 儿科 | B34: 309 | C34: 355 | D34: -12.96% | E34: 92 | F34: 286 | G34: -67.83% | H34: 111 | I34: 340 | J34: -67.35% | K34: 116 | L34: 354 | M34: -67.23% | N34: 104 | O34: 304 | P34: -65.79% | Q34: 101 | R34: 265 | S34: -61.89% | T34: 98 | U34: 290 | V34: -66.21% | W34: 121 | X34: 309 | Y34: -60.84% | Z34: 112 | AA34: 285 | AB34: -60.70% | AC34: 159 | AD34: 297 | AE34: -46.46% | AF34: 237 | AG34: 338 | AH34: -29.88% | AI34: 231 | AJ34: 328 | AK34: -29.57% | AL34: 1791 | AM34: 3751 | AN34: -52.25%
A35: 全科医学科 | AC35: 5 | AD35: — | AE35: — | AF35: 50 | AH35: — | AI35: 42 | AJ35: — | AK35: — | AL35: 97 | AM35: — | AN35: —
A36: 全院 | B36: 6836 | C36: 7222 | D36: -5.34% | E36: 1990 | F36: 5285 | G36: -62.35% | H36: 4321 | I36: 7829 | J36: -44.81% | K36: 6252 | L36: 7818 | M36: -20.03% | N36: 6081 | O36: 7665 | P36: -20.67% | Q36: 6709 | R36: 7519 | S36: -10.77% | T36: 7196 | U36: 8233 | V36: -12.60% | W36: 7259 | X36: 8016 | Y36: -9.44% | Z36: 7953 | AA36: 8066 | AB36: -1.40% | AC36: 6889 | AD36: 7323 | AE36: -5.93% | AF36: 7789 | AG36: 8325 | AH36: -6.44% | AI36: 8134 | AJ36: 8301 | AK36: -2.01% | AL36: 77409 | AM36: 91602 | AN36: -15.49%

Sheet Sheet5 (hidden)
A1: 四、全院2020年12月平均住院日完成情况
A2: 科室 | B2: 2019-01-01 | C2: 2019-02-01 | D2: 2019-03-01 | E2: 2019-04-01 | F2: 2019-05-01 | G2: 2019-06-01 | H2: 2019年上半年 | I2: 2019-07-01 | J2: 2019-08-01 | K2: 2019-09-01 | L2: 2019-10-01 | M2: 2019-11-01 | N2: 2019-12-01 | O2: 2019年全年 | P2: 2020-01-01 | Q2: 同期比较 | R2: 2020-02-01 | S2: 同期比较 | T2: 2020-03-01 | U2: 同期比较 | V2: 2020-04-01 | W2: 同期比较 | X2: 2020-05-01 | Y2: 同期比较 | Z2: 2020-06-01 | AA2: 同期比较 | AB2: 2019年上半年 | AC2: 2020年上半年 | AD2: 同期比较 | AE2: 2020-07-01 | AF2: 同期比较 | AG2: 2020-08-01 | AH2: 同期比较 | AI2: 2020-09-01 | AJ2: 同期比较 | AK2: 2020-10-01 | AL2: 同期比较 | AM2: 2020-11-01 | AN2: 同期比较 | AO2: 2020-12-01 | AP2: 同期比较 | AQ2: 2019年全年 | AR2: 2020年全年 | AS2: 同期比较 | AW2: 2
A3: 放射治疗科 | B3: 23.3 | C3: 26.4 | D3: 19.6 | E3: 26.9 | F3: 26.3 | G3: 26.9 | H3: 25.0 | I3: 22.2 | J3: 22.7 | K3: 19.2 | L3: 23.8 | M3: 18.5 | N3: 17.8 | O3: 22.5 | P3: 19.8 | Q3: -3.5 | R3: 23.6 | S3: -2.8 | T3: 14.7 | U3: -4.9 | V3: 18.1 | W3: -8.8 | X3: 21.3 | Y3: -5.0 | Z3: 19.5 | AA3: -7.4 | AB3: 25.0 | AC3: 19.6 | AD3: -5.4 | AE3: 21.0 | AF3: -1.2 | AG3: 19.1 | AH3: -3.6 | AI3: 20.0 | AJ3: 0.8 | AK3: 19.8 | AL3: -4.0 | AM3: 20.3 | AN3: 1.8 | AO3: 17.8 | AP3: 0.0 | AQ3: 22.5 | AR3: 19.7 | AS3: -2.8 | AW3: 1
A4: 肺部肿瘤外科 | B4: 9.6 | C4: 9.7 | D4: 10.6 | E4: 10.8 | F4: 10.8 | G4: 9.8 | H4: 10.3 | I4: 9.1 | J4: 8.9 | K4: 9.3 | L4: 8.3 | M4: 8.7 | N4: 8.2 | O4: 9.4 | P4: 8.7 | Q4: -0.9 | R4: 5.8 | S4: -3.9 | T4: 8.2 | U4: -2.4 | V4: 9.8 | W4: -1.0 | X4: 7.9 | Y4: -2.9 | Z4: 7.7 | AA4: -2.1 | AB4: 10.3 | AC4: 8.3 | AD4: -2.0 | AE4: 7.2 | AF4: -1.9 | AG4: 7.1 | AH4: -1.8 | AI4: 6.6 | AJ4: -2.7 | AK4: 5.8 | AL4: -2.5 | AM4: 6.7 | AN4: -2.0 | AO4: 6.6 | AP4: -1.6 | AQ4: 9.4 | AR4: 7.3 | AS4: -2.1 | AW4: 3
A5: 血液内科 | B5: 17.6 | C5: 19.8 | D5: 18.5 | E5: 15.5 | F5: 17.4 | G5: 16.0 | H5: 17.3 | I5: 14.8 | J5: 15.4 | K5: 16.6 | L5: 18.0 | M5: 16.6 | N5: 16.7 | O5: 16.7 | P5: 14.6 | Q5: -3.0 | R5: 21.2 | S5: 1.4 | T5: 19.4 | U5: 0.9 | V5: 16.1 | W5: 0.6 | X5: 16.2 | Y5: -1.2 | Z5: 14.0 | AA5: -2.0 | AB5: 17.3 | AC5: 16.2 | AD5: -1.1 | AE5: 13.8 | AF5: -1.0 | AG5: 12.6 | AH5: -2.8 | AI5: 13.4 | AJ5: -3.2 | AK5: 15.2 | AL5: -2.8 | AM5: 14.4 | AN5: -2.2 | AO5: 14.1 | AP5: -2.6 | AQ5: 16.7 | AR5: 14.8 | AS5: -1.9 | AW5: 1
A6: 肿瘤内科 | B6: 8.1 | C6: 7.3 | D6: 6.8 | E6: 7.2 | F6: 7.1 | G6: 6.8 | H6: 7.2 | I6: 6.6 | J6: 6.0 | K6: 6.3 | L6: 6.2 | M6: 5.8 | N6: 5.7 | O6: 6.6 | P6: 5.8 | Q6: -2.3 | R6: 6.9 | S6: -0.4 | T6: 6.9 | U6: 0.1 | V6: 5.8 | W6: -1.4 | X6: 5.6 | Y6: -1.5 | Z6: 5.0 | AA6: -1.8 | AB6: 7.2 | AC6: 5.9 | AD6: -1.3 | AE6: 5.0 | AF6: -1.6 | AG6: 4.5 | AH6: -1.5 | AI6: 4.2 | AJ6: -2.1 | AK6: 4.3 | AL6: -1.9 | AM6: 4.5 | AN6: -1.3 | AO6: 4.2 | AP6: -1.5 | AQ6: 6.6 | AR6: 5.0 | AS6: -1.6 | AW6: 1
A7: 泌尿外科 | B7: 12.8 | C7: 10.3 | D7: 12.9 | E7: 12.4 | F7: 12.1 | G7: 12.3 | H7: 12.3 | I7: 12.3 | J7: 12.4 | K7: 11.0 | L7: 10.9 | M7: 11.2 | N7: 11.4 | O7: 11.9 | P7: 10.5 | Q7: -2.3 | R7: 20.6 | S7: 10.3 | T7: 11.1 | U7: -1.8 | V7: 11.3 | W7: -1.1 | X7: 11.0 | Y7: -1.1 | Z7: 11.8 | AA7: -0.5 | AB7: 12.3 | AC7: 11.2 | AD7: -1.1 | AE7: 11.3 | AF7: -1.0 | AG7: 10.8 | AH7: -1.6 | AI7: 10.2 | AJ7: -0.8 | AK7: 9.3 | AL7: -1.6 | AM7: 9.7 | AN7: -1.5 | AO7: 10.1 | AP7: -1.3 | AQ7: 11.9 | AR7: 10.6 | AS7: -1.3 | AW7: 1
A8: 重症医学科 | B8: 16.5 | C8: 13.8 | D8: 10.2 | E8: 13.7 | F8: 12.4 | G8: 17.1 | H8: 14.2 | I8: 10.0 | J8: 14.6 | K8: 15.6 | L8: 20.2 | M8: 12.5 | N8: 12.9 | O8: 14.2 | P8: 13.7 | Q8: -2.8 | R8: 13.7 | S8: -0.1 | T8: 12.4 | U8: 2.2 | V8: 12.5 | W8: -1.2 | X8: 15.2 | Y8: 2.8 | Z8: 13.9 | AA8: -3.2 | AB8: 14.2 | AC8: 13.6 | AD8: -0.6 | AE8: 10.2 | AF8: 0.2 | AG8: 16.4 | AH8: 1.8 | AI8: 12.5 | AJ8: -3.1 | AK8: 15.2 | AL8: -5.0 | AM8: 12.7 | AN8: 0.2 | AO8: 13.8 | AP8: 0.9 | AQ8: 14.2 | AR8: 13.6 | AS8: -0.6 | AW8: 1
A9: 疼痛诊疗中心 | B9: 9.6 | C9: 9.3 | D9: 8.2 | E9: 9.7 | F9: 9.5 | G9: 9.8 | H9: 9.4 | I9: 9.7 | J9: 10.0 | K9: 9.2 | L9: 9.4 | M9: 9.4 | N9: 10.2 | O9: 9.5 | P9: 9.1 | Q9: -0.5 | R9: 13.3 | S9: 4.0 | T9: 10.4 | U9: 2.2 | V9: 9.0 | W9: -0.7 | X9: 9.3 | Y9: -0.2 | Z9: 8.6 | AA9: -1.2 | AB9: 9.4 | AC9: 9.3 | AD9: -0.1 | AE9: 8.8 | AF9: -0.9 | AG9: 8.8 | AH9: -1.2 | AI9: 8.8 | AJ9: -0.4 | AK9: 9.7 | AL9: 0.3 | AM9: 9.3 | AN9: -0.1 | AO9: 8.0 | AP9: -2.2 | AQ9: 9.5 | AR9: 9.0 | AS9: -0.5 | AW9: 2
A10: 皮肤性病科 | B10: 9.0 | C10: 8.7 | D10: 7.6 | E10: 7.8 | F10: 7.8 | G10: 5.9 | H10: 7.7 | I10: 6.2 | J10: 5.8 | K10: 6.6 | L10: 7.0 | M10: 7.1 | N10: 7.0 | O10: 7.0 | P10: 5.8 | Q10: -3.2 | R10: 4.3 | S10: -4.4 | T10: 4.6 | U10: -3.0 | V10: 5.0 | W10: -2.8 | X10: 6.8 | Y10: -1.0 | Z10: 7.1 | AA10: 1.2 | AB10: 7.7 | AC10: 5.7 | AD10: -2.0 | AE10: 7.4 | AF10: 1.2 | AG10: 7.9 | AH10: 2.1 | AI10: 7.3 | AJ10: 0.7 | AK10: 6.6 | AL10: -0.4 | AM10: 7.2 | AN10: 0.1 | AO10: 7.8 | AP10: 0.8 | AQ10: 7.0 | AR10: 6.5 | AS10: -0.5 | AW10: 1
A11: 耳鼻咽喉科 | B11: 8.6 | C11: 9.1 | D11: 8.5 | E11: 7.6 | F11: 7.2 | G11: 7.2 | H11: 7.9 | I11: 7.4 | J11: 7.3 | K11: 7.6 | L11: 7.2 | M11: 7.9 | N11: 9.2 | O11: 7.8 | P11: 8.3 | Q11: -0.3 | R11: 13.0 | S11: 3.9 | T11: 8.7 | U11: 0.2 | V11: 7.8 | W11: 0.2 | X11: 7.8 | Y11: 0.6 | Z11: 7.3 | AA11: 0.1 | AB11: 7.9 | AC11: 7.9 | AD11: 0.0 | AE11: 7.3 | AF11: -0.1 | AG11: 6.4 | AH11: -0.9 | AI11: 7.1 | AJ11: -0.5 | AK11: 6.3 | AL11: -0.9 | AM11: 6.7 | AN11: -1.2 | AO11: 7.7 | AP11: -1.5 | AQ11: 7.8 | AR11: 7.4 | AS11: -0.4 | AW11: 1
A12: 心胸外科 | B12: 13.4 | C12: 11.1 | D12: 13.8 | E12: 12.6 | F12: 12.8 | G12: 14.3 | H12: 13.2 | I12: 12.5 | J12: 12.1 | K12: 10.5 | L12: 13.5 | M12: 12.7 | N12: 12.3 | O12: 12.7 | P12: 12.8 | Q12: -0.6 | R12: 9.3 | S12: -1.8 | T12: 9.9 | U12: -3.9 | V12: 12.7 | W12: 0.1 | X12: 12.3 | Y12: -0.5 | Z12: 13.4 | AA12: -0.9 | AB12: 13.2 | AC12: 12.1 | AD12: -1.1 | AE12: 12.0 | AF12: -0.5 | AG12: 9.9 | AH12: -2.2 | AI12: 14.2 | AJ12: 3.7 | AK12: 11.7 | AL12: -1.8 | AM12: 13.3 | AN12: 0.6 | AO12: 13.8 | AP12: 1.5 | AQ12: 12.7 | AR12: 12.3 | AS12: -0.4 | AW12: 1
A13: 眼科 | B13: 5.1 | C13: 5.1 | D13: 4.6 | E13: 4.7 | F13: 4.5 | G13: 4.7 | H13: 4.7 | I13: 4.7 | J13: 4.9 | K13: 4.3 | L13: 3.7 | M13: 3.7 | N13: 4.4 | O13: 4.5 | P13: 4.4 | Q13: -0.7 | R13: 9.6 | S13: 4.5 | T13: 4.8 | U13: 0.2 | V13: 5.1 | W13: 0.4 | X13: 4.5 | Y13: 0.0 | Z13: 4.4 | AA13: -0.3 | AB13: 4.7 | AC13: 4.7 | AD13: 0.0 | AE13: 4.3 | AF13: -0.4 | AG13: 4.1 | AH13: -0.8 | AI13: 4.1 | AJ13: -0.2 | AK13: 3.6 | AL13: -0.1 | AM13: 3.5 | AN13: -0.2 | AO13: 3.5 | AP13: -0.9 | AQ13: 4.5 | AR13: 4.2 | AS13: -0.3 | AW13: 1
A14: 肾脏内科 | B14: 9.6 | C14: 9.4 | D14: 8.9 | E14: 8.3 | F14: 8.2 | G14: 7.7 | H14: 8.6 | I14: 7.5 | J14: 7.1 | K14: 6.5 | L14: 6.4 | M14: 5.9 | N14: 6.5 | O14: 7.5 | P14: 6.6 | Q14: -3.0 | R14: 14.4 | S14: 5.0 | T14: 11.5 | U14: 2.6 | V14: 9.1 | W14: 0.8 | X14: 9.0 | Y14: 0.8 | Z14: 8.6 | AA14: 0.9 | AB14: 8.6 | AC14: 8.8 | AD14: 0.2 | AE14: 6.8 | AF14: -0.7 | AG14: 7.4 | AH14: 0.3 | AI14: 5.8 | AJ14: -0.7 | AK14: 6.5 | AL14: 0.1 | AM14: 6.5 | AN14: 0.6 | AO14: 6.2 | AP14: -0.3 | AQ14: 7.5 | AR14: 7.3 | AS14: -0.2 | AW14: 1
A15: 儿科 | B15: 8.1 | C15: 7.6 | D15: 7.3 | E15: 8.0 | F15: 8.0 | G15: 7.5 | H15: 7.8 | I15: 8.5 | J15: 8.5 | K15: 9.3 | L15: 9.2 | M15: 8.6 | N15: 8.1 | O15: 8.2 | P15: 7.8 | Q15: -0.3 | R15: 10.9 | S15: 3.3 | T15: 8.9 | U15: 1.6 | V15: 7.9 | W15: -0.1 | X15: 9.3 | Y15: 1.3 | Z15: 7.0 | AA15: -0.5 | AB15: 7.8 | AC15: 8.4 | AD15: 0.6 | AE15: 7.7 | AF15: -0.8 | AG15: 7.9 | AH15: -0.6 | AI15: 7.1 | AJ15: -2.2 | AK15: 8.9 | AL15: -0.3 | AM15: 7.1 | AN15: -1.5 | AO15: 7.7 | AP15: -0.4 | AQ15: 8.2 | AR15: 8.0 | AS15: -0.2 | AW15: 1
A16: 心血管外科 | B16: 14.2 | C16: 18.4 | D16: 15.7 | E16: 18.0 | F16: 16.9 | G16: 13.5 | H16: 16.0 | I16: 18.3 | J16: 16.1 | K16: 14.3 | L16: 16.0 | M16: 17.1 | N16: 15.1 | O16: 16.0 | P16: 19.0 | Q16: 4.8 | R16: 31.8 | S16: 13.4 | T16: 15.4 | U16: -0.3 | V16: 14.7 | W16: -3.3 | X16: 18.5 | Y16: 1.6 | Z16: 18.8 | AA16: 5.3 | AB16: 16.0 | AC16: 18.4 | AD16: 2.4 | AE16: 16.6 | AF16: -1.7 | AG16: 16.6 | AH16: 0.5 | AI16: 10.5 | AJ16: -3.8 | AK16: 12.5 | AL16: -3.5 | AM16: 14.8 | AN16: -2.3 | AO16: 15.4 | AP16: 0.3 | AQ16: 16.0 | AR16: 15.9 | AS16: -0.1 | AW16: 1
A17: 普通外科 | B17: 10.6 | C17: 11.0 | D17: 10.7 | E17: 11.7 | F17: 11.1 | G17: 11.3 | H17: 11.1 | I17: 10.5 | J17: 11.3 | K17: 11.6 | L17: 10.5 | M17: 10.3 | N17: 10.8 | O17: 10.9 | P17: 10.6 | Q17: 0.0 | R17: 17.5 | S17: 6.5 | T17: 11.3 | U17: 0.6 | V17: 12.3 | W17: 0.6 | X17: 11.9 | Y17: 0.8 | Z17: 11.5 | AA17: 0.2 | AB17: 11.1 | AC17: 11.8 | AD17: 0.7 | AE17: 10.5 | AF17: 0.0 | AG17: 10.7 | AH17: -0.6 | AI17: 10.3 | AJ17: -1.3 | AK17: 10.2 | AL17: -0.3 | AM17: 9.7 | AN17: -0.6 | AO17: 9.7 | AP17: -1.1 | AQ17: 10.9 | AR17: 10.8 | AS17: -0.1 | AW17: 1
A18: 心血管内科 | B18: 5.4 | C18: 5.1 | D18: 5 | E18: 5.5 | F18: 5.0 | G18: 4.9 | H18: 5.1 | I18: 4.8 | J18: 5.0 | K18: 4.9 | L18: 5.2 | M18: 4.8 | N18: 4.8 | O18: 5.0 | P18: 4.9 | Q18: -0.5 | R18: 6.5 | S18: 1.4 | T18: 5.2 | U18: 0.2 | V18: 5.1 | W18: -0.4 | X18: 5.1 | Y18: 0.1 | Z18: 5.0 | AA18: 0.1 | AB18: 5.1 | AC18: 5.1 | AD18: 0.0 | AE18: 4.9 | AF18: 0.1 | AG18: 5.0 | AH18: 0.0 | AI18: 4.7 | AJ18: -0.2 | AK18: 4.7 | AL18: -0.5 | AM18: 4.4 | AN18: -0.4 | AO18: 4.7 | AP18: -0.1 | AQ18: 5.0 | AR18: 4.9 | AS18: -0.1 | AW18: 1
A19: 口腔科 | B19: 14.4 | C19: 13.5 | D19: 12.5 | E19: 14.8 | F19: 13.5 | G19: 11.3 | H19: 13.3 | I19: 15.1 | J19: 14.5 | K19: 12.2 | L19: 13.8 | M19: 14.5 | N19: 12.4 | O19: 13.5 | P19: 13.1 | Q19: -1.3 | R19: 15.2 | S19: 1.7 | T19: 14.7 | U19: 2.2 | V19: 15.0 | W19: 0.2 | X19: 17.0 | Y19: 3.5 | Z19: 12.0 | AA19: 0.7 | AB19: 13.3 | AC19: 14.2 | AD19: 0.9 | AE19: 15.4 | AF19: 0.3 | AG19: 13.0 | AH19: -1.5 | AI19: 11.6 | AJ19: -0.6 | AK19: 9.2 | AL19: -4.6 | AM19: 14.4 | AN19: -0.1 | AO19: 11.8 | AP19: -0.6 | AQ19: 13.5 | AR19: 13.4 | AS19: -0.1 | AW19: 65
A20: 中医科 | B20: 11.6 | C20: 10.0 | D20: 10.6 | E20: 11.0 | F20: 11.2 | G20: 10.8 | H20: 10.9 | I20: 11.2 | J20: 11.4 | K20: 11.0 | L20: 10.7 | M20: 11.0 | N20: 10.8 | O20: 11.0 | P20: 10.7 | Q20: -0.9 | R20: 11.1 | S20: 1.1 | T20: 10.9 | U20: 0.3 | V20: 10.8 | W20: -0.2 | X20: 11.9 | Y20: 0.7 | Z20: 10.7 | AA20: -0.1 | AB20: 10.9 | AC20: 10.9 | AD20: 0.0 | AE20: 11.8 | AF20: 0.6 | AG20: 11.0 | AH20: -0.4 | AI20: 10.5 | AJ20: -0.5 | AK20: 11.0 | AL20: 0.3 | AM20: 11.0 | AN20: 0.0 | AO20: 11.3 | AP20: 0.5 | AQ20: 11.0 | AR20: 11.0 | AS20: 0.0 | AW20: 1
A21: 骨外科 | B21: 16.2 | C21: 13.1 | D21: 14.6 | E21: 14.7 | F21: 14.1 | G21: 14.4 | H21: 14.7 | I21: 14.5 | J21: 14.2 | K21: 13.9 | L21: 12.7 | M21: 13.6 | N21: 14.4 | O21: 14.2 | P21: 16.9 | Q21: 0.7 | R21: 20.3 | S21: 7.2 | T21: 14.9 | U21: 0.3 | V21: 13.1 | W21: -1.6 | X21: 14.9 | Y21: 0.8 | Z21: 13.9 | AA21: -0.5 | AB21: 14.7 | AC21: 14.8 | AD21: 0.1 | AE21: 13.8 | AF21: -0.7 | AG21: 15.6 | AH21: 1.4 | AI21: 14.2 | AJ21: 0.3 | AK21: 13.3 | AL21: 0.6 | AM21: 13.7 | AN21: 0.1 | AO21: 12.4 | AP21: -2.0 | AQ21: 14.2 | AR21: 14.2 | AS21: 0.0 | AW21: =SUM(AW2:AW20) -> 87
A22: 核医学科 | B22: 4.9 | C22: 4.7 | D22: 4.1 | E22: 4.3 | F22: 5.0 | G22: 4.4 | H22: 4.5 | I22: 4.0 | J22: 4.4 | K22: 4.7 | L22: 4.3 | M22: 4.4 | N22: 4.7 | O22: 4.5 | P22: 4.6 | Q22: -0.3 | R22: 4.0 | S22: -0.7 | T22: 4.9 | U22: 0.8 | V22: 4.0 | W22: -0.3 | X22: 4.2 | Y22: -0.8 | Z22: 4.4 | AA22: 0.0 | AB22: 4.5 | AC22: 4.3 | AD22: -0.2 | AE22: 4.4 | AF22: 0.4 | AG22: 5.0 | AH22: 0.6 | AI22: 4.9 | AJ22: 0.2 | AK22: 4.7 | AL22: 0.4 | AM22: 4.8 | AN22: 0.4 | AO22: 4.6 | AP22: -0.1 | AQ22: 4.5 | AR22: 4.5 | AS22: 0.0 | AW22: 2
A23: 内分泌代谢科 | B23: 10.3 | C23: 9.8 | D23: 9.6 | E23: 10.1 | F23: 10.0 | G23: 10.1 | H23: 10.0 | I23: 10.0 | J23: 10.0 | K23: 9.5 | L23: 9.9 | M23: 9.2 | N23: 9.6 | O23: 9.9 | P23: 9.2 | Q23: -1.1 | R23: 11.3 | S23: 1.5 | T23: 10.2 | U23: 0.6 | V23: 10.4 | W23: 0.3 | X23: 10.5 | Y23: 0.5 | Z23: 11.0 | AA23: 0.9 | AB23: 10.0 | AC23: 10.3 | AD23: 0.3 | AE23: 10.5 | AF23: 0.5 | AG23: 9.6 | AH23: -0.4 | AI23: 9.7 | AJ23: 0.2 | AK23: 10.1 | AL23: 0.2 | AM23: 9.4 | AN23: 0.2 | AO23: 9.7 | AP23: 0.1 | AQ23: 9.9 | AR23: 10.0 | AS23: 0.1
A24: 妇产科 | B24: 6.8 | C24: 5.6 | D24: 6.6 | E24: 6.8 | F24: 6.4 | G24: 6.5 | H24: 6.5 | I24: 6.9 | J24: 6.9 | K24: 7.0 | L24: 6.7 | M24: 6.7 | N24: 6.8 | O24: 6.7 | P24: 6.9 | Q24: 0.1 | R24: 4.7 | S24: -0.9 | T24: 5.8 | U24: -0.8 | V24: 7.5 | W24: 0.7 | X24: 6.7 | Y24: 0.3 | Z24: 7.2 | AA24: 0.7 | AB24: 6.5 | AC24: 6.6 | AD24: 0.1 | AE24: 7.0 | AF24: 0.1 | AG24: 7.1 | AH24: 0.2 | AI24: 7.5 | AJ24: 0.5 | AK24: 7.1 | AL24: 0.4 | AM24: 7.4 | AN24: 0.7 | AO24: 7.3 | AP24: 0.5 | AQ24: 6.7 | AR24: 7.0 | AS24: 0.3
A25: 消化内科 | B25: 8.9 | C25: 9.8 | D25: 9.1 | E25: 9.2 | F25: 9.3 | G25: 8.8 | H25: 9.2 | I25: 9.0 | J25: 8.1 | K25: 6.9 | L25: 8.0 | M25: 7.8 | N25: 7.2 | O25: 8.4 | P25: 7.7 | Q25: -1.2 | R25: 12.7 | S25: 2.9 | T25: 10.2 | U25: 1.1 | V25: 9.7 | W25: 0.5 | X25: 9.4 | Y25: 0.1 | Z25: 8.8 | AA25: 0.0 | AB25: 9.2 | AC25: 9.3 | AD25: 0.1 | AE25: 8.5 | AF25: -0.5 | AG25: 8.2 | AH25: 0.1 | AI25: 8.7 | AJ25: 1.8 | AK25: 8.6 | AL25: 0.6 | AM25: 8.1 | AN25: 0.3 | AO25: 8.4 | AP25: 1.2 | AQ25: 8.4 | AR25: 8.8 | AS25: 0.4
A26: 神经内科 | B26: 11.4 | C26: 12.1 | D26: 12.2 | E26: 11.8 | F26: 11.6 | G26: 11.9 | H26: 11.8 | I26: 12.1 | J26: 11.7 | K26: 11.8 | L26: 11.8 | M26: 11.6 | N26: 11.4 | O26: 11.8 | P26: 10.8 | Q26: -0.6 | R26: 12.6 | S26: 0.5 | T26: 12.3 | U26: 0.1 | V26: 12.1 | W26: 0.3 | X26: 12.4 | Y26: 0.8 | Z26: 12.6 | AA26: 0.7 | AB26: 11.8 | AC26: 12.0 | AD26: 0.2 | AE26: 12.9 | AF26: 0.8 | AG26: 13.5 | AH26: 1.8 | AI26: 11.6 | AJ26: -0.2 | AK26: 13.0 | AL26: 1.2 | AM26: 11.9 | AN26: 0.3 | AO26: 12.1 | AP26: 0.7 | AQ26: 11.8 | AR26: 12.3 | AS26: 0.5
A27: 风湿免疫科 | B27: 8.4 | C27: 9.7 | D27: 8.9 | E27: 7.5 | F27: 8.0 | G27: 6.9 | H27: 8.1 | I27: 7.3 | J27: 6.3 | K27: 6.8 | L27: 7.4 | M27: 7.4 | N27: 7.7 | O27: 7.6 | P27: 8.0 | Q27: -0.4 | R27: 8.4 | S27: -1.3 | T27: 6.5 | U27: -2.4 | V27: 8.7 | W27: 1.2 | X27: 7.5 | Y27: -0.5 | Z27: 7.8 | AA27: 0.9 | AB27: 8.1 | AC27: 7.8 | AD27: -0.3 | AE27: 7.9 | AF27: 0.6 | AG27: 8.4 | AH27: 2.1 | AI27: 9.0 | AJ27: 2.2 | AK27: 8.4 | AL27: 1.0 | AM27: 8.6 | AN27: 1.2 | AO27: 9.2 | AP27: 1.5 | AQ27: 7.6 | AR27: 8.2 | AS27: 0.6
A28: 呼吸内科 | B28: 9.4 | C28: 10.0 | D28: 9.3 | E28: 8.4 | F28: 9.3 | G28: 8.4 | H28: 9.1 | I28: 7.8 | J28: 8.0 | K28: 8.5 | L28: 8.5 | M28: 8.7 | N28: 8.5 | O28: 8.7 | P28: 8.2 | Q28: -1.2 | R28: 11.4 | S28: 1.4 | T28: 10.5 | U28: 1.2 | V28: 10.0 | W28: 1.6 | X28: 10.7 | Y28: 1.4 | Z28: 10.2 | AA28: 1.8 | AB28: 9.1 | AC28: 9.9 | AD28: 0.8 | AE28: 9.4 | AF28: 1.6 | AG28: 9.4 | AH28: 1.4 | AI28: 8.5 | AJ28: 0.0 | AK28: 9.5 | AL28: 1.0 | AM28: 8.3 | AN28: -0.4 | AO28: 8.7 | AP28: 0.2 | AQ28: 8.7 | AR28: 9.4 | AS28: 0.7
A29: 小儿外科 | B29: 6.9 | C29: 6.1 | D29: 7.3 | E29: 8.6 | F29: 7.7 | G29: 6.1 | H29: 7.1 | I29: 5.1 | J29: 5.9 | K29: 6.4 | L29: 6.6 | M29: 6.9 | N29: 7.1 | O29: 6.5 | P29: 7.7 | Q29: 0.8 | R29: 0.0 | S29: -6.1 | T29: 4.5 | U29: -2.8 | V29: 7.7 | W29: -0.9 | X29: 9.5 | Y29: 1.8 | Z29: 8.6 | AA29: 2.5 | AB29: 7.1 | AC29: 7.8 | AD29: 0.7 | AE29: 6.5 | AF29: 1.4 | AG29: 6.2 | AH29: 0.3 | AI29: 10.3 | AJ29: 3.9 | AK29: 6.5 | AL29: -0.1 | AM29: 9.4 | AN29: 2.5 | AO29: 9.8 | AP29: 2.7 | AQ29: 6.5 | AR29: 7.7 | AS29: 1.2
A30: 感染科 | B30: 10.5 | C30: 12.4 | D30: 11.2 | E30: 8.8 | F30: 10.2 | G30: 10.4 | H30: 10.5 | I30: 8.6 | J30: 9.9 | K30: 10.1 | L30: 11.3 | M30: 9.9 | N30: 10.1 | O30: 10.2 | P30: 10.3 | Q30: -0.2 | R30: 0.0 | S30: -12.4 | T30: 8.1 | U30: -3.1 | V30: 12.8 | W30: 4.0 | X30: 11.7 | Y30: 1.5 | Z30: 14.9 | AA30: 4.5 | AB30: 10.5 | AC30: 11.9 | AD30: 1.4 | AE30: 12.4 | AF30: 3.8 | AG30: 13.2 | AH30: 3.3 | AI30: 11.3 | AJ30: 1.2 | AK30: 11.6 | AL30: 0.3 | AM30: 11.3 | AN30: 1.4 | AO30: 10.6 | AP30: 0.5 | AQ30: 10.2 | AR30: 11.8 | AS30: 1.6
A31: 急诊医学科 | B31: 12.3 | C31: 13.8 | D31: 12.7 | E31: 13.1 | F31: 11.9 | G31: 11.8 | H31: 12.5 | I31: 12.1 | J31: 12.7 | K31: 12.1 | L31: 11.9 | M31: 12.5 | N31: 12.7 | O31: 12.5 | P31: 12.6 | Q31: 0.3 | R31: 14.3 | S31: 0.5 | T31: 14.8 | U31: 2.1 | V31: 14.8 | W31: 1.7 | X31: 14.6 | Y31: 2.7 | Z31: 16.4 | AA31: 4.6 | AB31: 12.5 | AC31: 14.5 | AD31: 2.0 | AE31: 16.9 | AF31: 4.8 | AG31: 14.5 | AH31: 1.8 | AI31: 13.9 | AJ31: 1.8 | AK31: 13.4 | AL31: 1.5 | AM31: 13.8 | AN31: 1.3 | AO31: 12.6 | AP31: -0.1 | AQ31: 12.5 | AR31: 14.3 | AS31: 1.8
A32: 神经外科 | B32: 16.6 | C32: 15.1 | D32: 15.7 | E32: 16.6 | F32: 16.8 | G32: 17.2 | H32: 16.4 | I32: 16.6 | J32: 16.8 | K32: 15.9 | L32: 15.0 | M32: 16.2 | N32: 16.5 | O32: 16.3 | P32: 16.8 | Q32: 0.2 | R32: 17.8 | S32: 2.7 | T32: 18.6 | U32: 2.9 | V32: 17.8 | W32: 1.2 | X32: 17.5 | Y32: 0.7 | Z32: 19.2 | AA32: 2.0 | AB32: 16.4 | AC32: 17.9 | AD32: 1.5 | AE32: 18.8 | AF32: 2.2 | AG32: 18.3 | AH32: 1.5 | AI32: 19.3 | AJ32: 3.4 | AK32: 16.2 | AL32: 1.2 | AM32: 18.2 | AN32: 2.0 | AO32: 18.8 | AP32: 2.3 | AQ32: 16.3 | AR32: 18.1 | AS32: 1.8
A33: 康复医学科 | B33: 20.0 | C33: 24.2 | D33: 22.2 | E33: 21.5 | F33: 23.9 | G33: 23.3 | H33: 22.4 | I33: 20.7 | J33: 22.9 | K33: 21.3 | L33: 24.4 | M33: 22.8 | N33: 23.5 | O33: 22.5 | P33: 22.5 | Q33: 2.5 | R33: 26.9 | S33: 2.7 | T33: 39.7 | U33: 17.5 | V33: 25.6 | W33: 4.1 | X33: 28.1 | Y33: 4.2 | Z33: 27.4 | AA33: 4.1 | AB33: 22.4 | AC33: 27.3 | AD33: 4.9 | AE33: 28.7 | AF33: 8.0 | AG33: 22.8 | AH33: -0.1 | AI33: 28.3 | AJ33: 7.0 | AK33: 28.0 | AL33: 3.6 | AM33: 35.6 | AN33: 12.8 | AO33: 42.4 | AP33: 18.9 | AQ33: 22.5 | AR33: 28.6 | AS33: 6.1
A34: 全科医学科 | L34: — | M34: — | N34: — | AK34: 6.8 | AL34: — | AM34: 11.4 | AN34: — | AO34: 12.5 | AP34: — | AQ34: — | AR34: 11.6 | AS34: —
A35: 全院合计 | B35: 9.8 | C35: 9.5 | D35: 9.6 | E35: 9.8 | F35: 9.6 | G35: 9.4 | H35: 9.6 | I35: 9.2 | J35: 9.3 | K35: 9.2 | L35: 9.1 | M35: 9.0 | N35: 9.2 | O35: 9.4 | P35: 9.2 | Q35: -0.6 | R35: 11.3 | S35: 1.8 | T35: 9.9 | U35: 0.3 | V35: 10.0 | W35: 0.2 | X35: 9.8 | Y35: 0.2 | Z35: 9.6 | AA35: 0.2 | AB35: 9.6 | AC35: 9.8 | AD35: 0.2 | AE35: 9.5 | AF35: 0.3 | AG35: 9.2 | AH35: -0.1 | AI35: 9.2 | AJ35: 0.0 | AK35: 8.9 | AL35: -0.2 | AM35: 8.9 | AN35: -0.1 | AO35: 8.9 | AP35: -0.3 | AQ35: 9.4 | AR35: 9.4 | AS35: 0.0
A36: 保健医疗部 | B36: 35.6 | C36: 27.9 | D36: 19.3 | E36: 25.9 | F36: 22.1 | G36: 29.0 | H36: 26.5 | I36: 26.2 | J36: 25.0 | K36: 23.0 | L36: 28.4 | M36: 27.6 | N36: 24.6 | O36: 26.2 | P36: 21.2 | Q36: -14.4 | R36: 37.2 | S36: 9.3 | T36: 47.5 | U36: 28.2 | V36: 31.4 | W36: 5.5 | X36: 53.5 | Y36: 31.4 | Z36: 34.6 | AA36: 5.6 | AB36: 26.5 | AC36: 35.3 | AD36: 8.8 | AE36: 33.4 | AF36: 7.2 | AG36: 31.2 | AH36: 6.2 | AI36: 28.7 | AJ36: 5.7 | AK36: 29.1 | AL36: 0.7 | AM36: 29.3 | AN36: 1.7 | AO36: 46.4 | AP36: 21.8 | AQ36: 26.2 | AR36: 34.1 | AS36: 7.9

Sheet Sheet6 (hidden)
A1: 科别 | B1: 今年诊疗人数 | C1: 编制床位数 | D1: 出院人数 | E1: 平均病床周转次数 | F1: 实际病床使用率 % | G1: 出院者平均住院日 | H1: 本期完成数 | I1: 科室医生在岗人员
A2: 心血管内科 | B2: 253980 | C2: 106 | D2: 7898 | E2: 74.3 | F2: 1.06 | G2: 5 | H2: 9984 | I2: 48
A3: 肾脏内科 | B3: 160016 | C3: 64 | D3: 3379 | E3: 52.8 | F3: 1.077 | G3: 7.5 | I3: 30
A4: 呼吸内科 | B4: 142280 | C4: 72 | D4: 3449 | E4: 47.9 | F4: 1.148 | G4: 8.7 | I4: 31
A5: 血液内科 | B5: 47610 | C5: 92 | D5: 4261 | E5: 46.3 | F5: 2.202 | G5: 16.7 | I5: 51
A6: 内分泌代谢科 | B6: 327092 | C6: 114 | D6: 4270 | E6: 37.5 | F6: 1.025 | G6: 9.9 | I6: 47 | K6: 2
A7: 消化内科 | B7: 218510 | C7: 92 | D7: 4056 | E7: 44.1 | F7: 1.018 | G7: 8.4 | H7: 4075 | I7: 41 | K7: 1
A8: 急诊医学科 | B8: 184132 | C8: 69 | D8: 2195 | E8: 31.8 | F8: 1.166 | G8: 12.5 | I8: 57 | K8: 3
A9: 风湿免疫科 | B9: 103543 | C9: 48 | D9: 2821 | E9: 58.8 | F9: 1.212 | G9: 7.6 | I9: 25 | K9: 1
A10: 感染科 | B10: 67134 | C10: 14 | D10: 533 | E10: 38.1 | F10: 1.071 | G10: 10.2 | I10: 9 | K10: 1
A11: 肿瘤内科 | B11: 50679 | C11: 42 | D11: 3370 | E11: 80.2 | F11: 1.439 | G11: 6.6 | I11: 22 | K11: 1
A12: 放射治疗科 | B12: 6105 | C12: 42 | D12: 980 | E12: 23.3 | F12: 1.443 | G12: 22.5 | I12: 13 | K12: 1
A13: 重症医学科 | B13: 50101 | C13: 38 | D13: 443 | E13: 11.7 | F13: 1.04 | G13: 14.2 | I13: 28 | K13: 2
A14: 妇科 | B14: 175342 | C14: 84 | D14: 3808 | E14: 45.3 | F14: 1.065 | G14: 8.5 | H14: 3959 | I14: 86 | K14: 1
A15: 产科 | B15: 36249 | C15: 68 | D15: 4528 | E15: 66.6 | F15: 0.982 | G15: 5.1 | H15: 2880 | K15: 1
A16: 计划生育科 | B16: 9548 | K16: 1
B17: 221139 | D17: 8336 | K17: 1
A18: 肺部肿瘤外科 | B18: 16658 | C18: 70 | D18: 3166 | E18: 45.2 | F18: 1.165 | G18: 9.4 | H18: 1282 | I18: 18 | K18: 1
A19: 心胸外科 | B19: 15294 | C19: 42 | D19: 1170 | E19: 27.9 | F19: 1.017 | G19: 12.7 | H19: 648 | I19: 16 | K19: 1
A20: 心血管外科 | B20: 4300 | C20: 42 | D20: 842 | E20: 20 | F20: 0.891 | G20: 16 | H20: 349 | I20: 11 | K20: 1
A21: 泌尿外科 | B21: 74447 | C21: 84 | D21: 2813 | E21: 33.5 | F21: 1.105 | G21: 11.9 | H21: 2443 | I21: 26 | K21: 1
A22: 骨外科 | B22: 107896 | C22: 126 | D22: 2647 | E22: 21 | F22: 0.974 | G22: 14.2 | H22: 3432 | I22: 43 | K22: 1
A23: 普通外科 | B23: 146076 | C23: 208 | D23: 7681 | E23: 36.9 | F23: 1.135 | G23: 10.9 | H23: 10242 | I23: 89 | K23: 65
A24: 儿外科 | B24: 6284 | C24: 9 | D24: 486 | E24: 54 | F24: 0.987 | G24: 6.5 | H24: 484 | I24: 5 | K24: 1
A25: 儿科 | B25: 216548 | C25: 80 | D25: 3751 | E25: 46.9 | F25: 1.055 | G25: 8.2 | I25: 41 | K25: 2
A26: 神经内科 | B26: 341804 | C26: 168 | D26: 5177 | E26: 30.8 | F26: 1.004 | G26: 11.8 | I26: 71 | K26: =SUM(K6:K25) -> 89
A27: 神经外科 | B27: 32459 | C27: 222 | D27: 4086 | E27: 18.4 | F27: 0.935 | G27: 16.3 | H27: 2868 | I27: 60
A28: 眼科 | B28: 83186 | C28: 42 | D28: 2982 | E28: 71 | F28: 0.886 | G28: 4.5 | H28: 5281 | I28: 20
A29: 耳鼻咽喉科 | B29: 147429 | C29: 40 | D29: 1966 | E29: 49.2 | F29: 1.043 | G29: 7.8 | H29: 2192 | I29: 26
A30: 口腔科 | B30: 65883 | C30: 24 | D30: 601 | E30: 25 | F30: 0.974 | G30: 13.5 | H30: 729 | I30: 38
A31: 中医科 | B31: 185896 | C31: 24 | D31: 927 | E31: 38.6 | F31: 1.149 | G31: 11 | I31: 28
A32: 皮肤性病科 | B32: 168677 | C32: 18 | D32: 974 | E32: 54.1 | F32: 1.042 | G32: 7 | I32: 23
A33: 核医学科 | B33: 93393 | C33: 14 | D33: 1267 | E33: 90.5 | F33: 1.127 | G33: 4.5 | I33: 18
A34: 康复医学科 | B34: 5926 | C34: 54 | D34: 775 | E34: 14.4 | F34: 1.217 | G34: 22.5 | I34: 17
A35: 干部保健部 | B35: 108951 | C35: 242 | D35: 3817 | E35: 15.8 | F35: 1.075 | G35: 26.2 | I35: 69
A36: 麻醉科（疼痛病房） | B36: 37121 | C36: 14 | D36: 502 | E36: 35.9 | F36: 0.904 | G36: 9.5 | I36: 52
A37: 医学影像科 | H37: 1268 | I37: 53
A38: 变态反应科 | B38: 9366 | I38: 3
A39: 临床心理科 | B39: 45058 | I39: 7
A40: 健康中心 | B40: 69171 | I40: 11
A41: 职工保健 | B41: 1131
A42: 综合科 | B42: 13934

Sheet Sheet3 (hidden)
A1: 五、全院2020年12月病床使用率完成情况
A2: 科室 | B2: 编制 病床数 | C2: 2019-01-01 | D2: 2019-02-01 | E2: 2019-03-01 | F2: 2019-04-01 | G2: 2019-05-01 | H2: 2019-06-01 | I2: 2019年上半年 | J2: 2019-07-01 | K2: 2019-08-01 | L2: 2019-09-01 | M2: 2019-10-01 | N2: 2019-11-01 | O2: 2019-12-01 | P2: 2019年全年 | Q2: 2020-01-01 | R2: 同期比较 | S2: 2020-02-01 | T2: 同期比较 | U2: 2020-03-01 | V2: 同期比较 | W2: 2020-04-01 | X2: 同期比较 | Y2: 2020-05-01 | Z2: 同期比较 | AA2: 2020-06-01 | AB2: 同期比较 | AC2: 2019年 上半年 | AD2: 2020年 上半年 | AE2: 同期比较 | AF2: 2020-07-01 | AG2: 同期比较 | AH2: 2020-08-01 | AI2: 同期比较 | AJ2: 2020-09-01 | AK2: 同期比较 | AL2: 2020-10-01 | AM2: 同期比较 | AN2: 2020-11-01 | AO2: 同期比较 | AP2: 2020-12-01 | AQ2: 同期 比较 | AR2: 2019年 全年 | AS2: 2020年 全年 | AU2: 同期 比较
A3: 血液内科 | B3: 92 | C3: 215.5% | D3: 183.0% | E3: 228.4% | F3: 230.00% | G3: 225.7% | H3: 213.6% | I3: 216.5% | J3: 233.5% | K3: 226.4% | L3: 215.3% | M3: 214.7% | N3: 228.0% | O3: 224.4% | P3: 220.2% | Q3: 184.7% | R3: =Q3-C3 -> -30.8% | S3: 125.1% | T3: =S3-D3 -> -57.9% | U3: 164.7% | V3: =U3-E3 -> -63.7% | W3: 201.3% | X3: =W3-F3 -> -28.7% | Y3: 168.1% | Z3: =Y3-G3 -> -57.6% | AA3: 194.7% | AB3: =AA3-H3 -> -18.9% | AC3: 216.5% | AD3: 173.4% | AE3: =AD3-AC3 -> -43.1% | AF3: 191.8% | AG3: =AF3-J3 -> -41.7% | AH3: 209.8% | AI3: =AH3-K3 -> -16.6% | AJ3: 236.4% | AK3: =AJ3-L3 -> 21.1% | AL3: 213.9% | AM3: =AL3-M3 -> -0.8% | AN3: 221.1% | AO3: =AN3-N3 -> -6.9% | AP3: 226.3% | AQ3: =AP3-O3 -> 1.9% | AR3: 220.2% | AS3: 195.0% | AU3: =AS3-AR3 -> -25.2%
A4: 康复医学科 | B4: 54 | C4: 121.3% | D4: 102.1% | E4: 122.6% | F4: 116.70% | G4: 120.4% | H4: 122.3% | I4: 117.8% | J4: 127.0% | K4: 118.5% | L4: 124.3% | M4: 128.2% | N4: 128.4% | O4: 127.3% | P4: 121.7% | Q4: 108.3% | R4: -13.0% | S4: 84.7% | T4: -17.4% | U4: 109.8% | V4: -12.8% | W4: 110.6% | X4: -6.1% | Y4: 111.6% | Z4: -8.8% | AA4: 115.4% | AB4: -6.9% | AC4: 117.8% | AD4: 106.9% | AE4: -10.9% | AF4: 117.4% | AG4: -9.6% | AH4: 117.4% | AI4: -1.1% | AJ4: 123.4% | AK4: -0.9% | AL4: 118.9% | AM4: -9.3% | AN4: 122.3% | AO4: -6.1% | AP4: 117.6% | AQ4: -9.7% | AR4: 121.7% | AS4: 113.2% | AU4: -8.5%
A5: 普通外科 | B5: 208 | C5: 104.5% | D5: 88.2% | E5: 117.9% | F5: 114.90% | G5: 116.9% | H5: 111.8% | I5: 109.3% | J5: 111.0% | K5: 113.7% | L5: 113.4% | M5: 113.6% | N5: 131.5% | O5: 122.3% | P5: 113.5% | Q5: 90.4% | R5: -14.1% | S5: 32.8% | T5: -55.4% | U5: 80.6% | V5: -37.3% | W5: 115.9% | X5: 1.0% | Y5: 114.9% | Z5: -2.0% | AA5: 131.4% | AB5: 19.6% | AC5: 109.3% | AD5: 94.7% | AE5: -14.6% | AF5: 122.6% | AG5: 11.6% | AH5: 115.9% | AI5: 2.2% | AJ5: 122.1% | AK5: 8.7% | AL5: 122.0% | AM5: 8.4% | AN5: 148.9% | AO5: 17.4% | AP5: 111.4% | AQ5: -10.9% | AR5: 113.5% | AS5: 109.3% | AU5: -4.2%
A6: 急诊医学科 | B6: 69 | C6: 118.6% | D6: 120.0% | E6: 113.1% | F6: 114.10% | G6: 116.9% | H6: 117.1% | I6: 116.6% | J6: 114.4% | K6: 120.4% | L6: 114.5% | M6: 117.8% | N6: 116.1% | O6: 116.9% | P6: 116.6% | Q6: 113.9% | R6: -4.7% | S6: 89.9% | T6: -30.1% | U6: 103.2% | V6: -9.9% | W6: 106.3% | X6: -7.8% | Y6: 104.6% | Z6: -12.3% | AA6: 110.0% | AB6: -7.1% | AC6: 116.6% | AD6: 104.8% | AE6: -11.8% | AF6: 107.7% | AG6: -6.7% | AH6: 109.3% | AI6: -11.1% | AJ6: 113.0% | AK6: -1.5% | AL6: 112.0% | AM6: -5.8% | AN6: 109.2% | AO6: -6.9% | AP6: 109.9% | AQ6: -7.0% | AR6: 116.6% | AS6: 107.5% | AU6: -9.1%
A7: 肿瘤内科 | B7: 42 | C7: 146.1% | D7: 117.8% | E7: 149.8% | F7: 145.60% | G7: 151.1% | H7: 150.2% | I7: 143.8% | J7: 146.0% | K7: 148.7% | L7: 144.2% | M7: 136.5% | N7: 146.2% | O7: 143.1% | P7: 143.9% | Q7: 106.1% | R7: -40.0% | S7: 80.3% | T7: -37.5% | U7: 107.5% | V7: -42.3% | W7: 111.6% | X7: -34.0% | Y7: 110.6% | Z7: -40.5% | AA7: 112.3% | AB7: -37.9% | AC7: 143.8% | AD7: 104.9% | AE7: -38.9% | AF7: 105.1% | AG7: -40.9% | AH7: 106.4% | AI7: -42.3% | AJ7: 110.1% | AK7: -34.1% | AL7: 103.0% | AM7: -33.5% | AN7: 110.8% | AO7: -35.4% | AP7: 111.7% | AQ7: -31.4% | AR7: 143.9% | AS7: 106.4% | AU7: -37.5%
A8: 肺部肿瘤外科 | B8: 70 | C8: 108.8% | D8: 82.3% | E8: 123.6% | F8: 125.40% | G8: 127.9% | H8: 113.4% | I8: 114.0% | J8: 128.4% | K8: 109.5% | L8: 115.9% | M8: 110.1% | N8: 123.5% | O8: 125.7% | P8: 116.5% | Q8: 70.8% | R8: -38.0% | S8: 18.5% | T8: -63.8% | U8: 88.0% | V8: -35.6% | W8: 114.8% | X8: -10.6% | Y8: 116.9% | Z8: -11.0% | AA8: 129.6% | AB8: 16.2% | AC8: 114.0% | AD8: 90.2% | AE8: -23.8% | AF8: 117.9% | AG8: -10.5% | AH8: 116.0% | AI8: 6.5% | AJ8: 128.7% | AK8: 12.8% | AL8: 115.5% | AM8: 5.4% | AN8: 143.4% | AO8: 19.9% | AP8: 107.7% | AQ8: -18.0% | AR8: 116.5% | AS8: 105.9% | AU8: -10.6%
A9: 重症医学科 | B9: 38 | C9: 116.2% | D9: 105.2% | E9: 107.2% | F9: 100.40% | G9: 100.7% | H9: 102.5% | I9: 105.4% | J9: 92.4% | K9: 98.6% | L9: 106.4% | M9: 106.7% | N9: 109.2% | O9: 102.5% | P9: 104.0% | Q9: 97.5% | R9: -18.7% | S9: 66.4% | T9: -38.8% | U9: 97.7% | V9: -9.5% | W9: 115.6% | X9: 15.2% | Y9: 110.2% | Z9: 9.5% | AA9: 105.1% | AB9: 2.6% | AC9: 105.4% | AD9: 99.0% | AE9: -6.4% | AF9: 99.1% | AG9: 6.7% | AH9: 126.2% | AI9: 27.6% | AJ9: 103.7% | AK9: -2.7% | AL9: 111.6% | AM9: 4.9% | AN9: 110.1% | AO9: 0.9% | AP9: 103.3% | AQ9: 0.8% | AR9: 104.0% | AS9: 104.0% | AU9: 0.0%
A10: 放射治疗科 | B10: 42 | C10: 146.9% | D10: 117.4% | E10: 157.4% | F10: 163.70% | G10: 159.2% | H10: 149.4% | I10: 149.4% | J10: 147.8% | K10: 138.2% | L10: 131.2% | M10: 135.9% | N10: 148.4% | O10: 134.5% | P10: 144.3% | Q10: 98.1% | R10: -48.8% | S10: 52.5% | T10: -64.9% | U10: 60.4% | V10: -97.0% | W10: 106.0% | X10: -57.7% | Y10: 110.5% | Z10: -48.7% | AA10: 114.9% | AB10: -34.5% | AC10: 149.4% | AD10: 90.6% | AE10: -58.8% | AF10: 120.1% | AG10: -27.7% | AH10: 121.5% | AI10: -16.7% | AJ10: 115.4% | AK10: -15.8% | AL10: 105.1% | AM10: -30.8% | AN10: 117.5% | AO10: -30.9% | AP10: 120.1% | AQ10: -14.4% | AR10: 144.3% | AS10: 103.7% | AU10: -40.6%
A11: 呼吸内科 | B11: 72 | C11: 114.0% | D11: 117.3% | E11: 122.7% | F11: 119.70% | G11: 116.4% | H11: 108.4% | I11: 116.4% | J11: 111.0% | K11: 105.2% | L11: 113.5% | M11: 114.0% | N11: 114.8% | O11: 120.3% | P11: 114.8% | Q11: 96.9% | R11: -17.1% | S11: 59.2% | T11: -58.1% | U11: 99.1% | V11: -23.6% | W11: 103.3% | X11: -16.4% | Y11: 103.9% | Z11: -12.5% | AA11: 105.5% | AB11: -2.9% | AC11: 116.4% | AD11: 94.9% | AE11: -21.5% | AF11: 104.7% | AG11: -6.3% | AH11: 103.9% | AI11: -1.3% | AJ11: 114.4% | AK11: 0.9% | AL11: 113.8% | AM11: -0.2% | AN11: 112.3% | AO11: -2.5% | AP11: 117.4% | AQ11: -2.9% | AR11: 114.8% | AS11: 103.0% | AU11: -11.8%
A12: 核医学科 | B12: 14 | C12: 111.1% | D12: 81.1% | E12: 118.2% | F12: 111.90% | G12: 109.7% | H12: 112.1% | I12: 107.7% | J12: 114.1% | K12: 115.2% | L12: 112.6% | M12: 109.7% | N12: 114.0% | O12: 139.4% | P12: 112.7% | Q12: 107.1% | R12: -4.0% | S12: 50.0% | T12: -31.1% | U12: 82.0% | V12: -36.2% | W12: 120.7% | X12: 8.8% | Y12: 132.0% | Z12: 22.3% | AA12: 112.6% | AB12: 0.5% | AC12: 107.7% | AD12: 101.1% | AE12: -6.6% | AF12: 105.8% | AG12: -8.3% | AH12: 102.5% | AI12: -12.7% | AJ12: 103.8% | AK12: -8.8% | AL12: 97.0% | AM12: -12.7% | AN12: 109.0% | AO12: -5.0% | AP12: 105.5% | AQ12: -33.9% | AR12: 112.7% | AS12: 102.5% | AU12: -10.2%
A13: 肾脏内科 | B13: 64 | C13: 102.2% | D13: 97.8% | E13: 107.8% | F13: 109.00% | G13: 109.2% | H13: 109.0% | I13: 105.9% | J13: 110.0% | K13: 109.1% | L13: 109.4% | M13: 109.2% | N13: 110.1% | O13: 109.4% | P13: 107.7% | Q13: 91.0% | R13: -11.2% | S13: 36.8% | T13: -61.0% | U13: 83.9% | V13: -23.9% | W13: 106.6% | X13: -2.4% | Y13: 110.8% | Z13: 1.6% | AA13: 110.3% | AB13: 1.3% | AC13: 105.9% | AD13: 90.3% | AE13: -15.6% | AF13: 110.4% | AG13: 0.4% | AH13: 111.6% | AI13: 2.5% | AJ13: 113.1% | AK13: 3.7% | AL13: 114.3% | AM13: 5.1% | AN13: 115.9% | AO13: 5.8% | AP13: 114.5% | AQ13: 5.1% | AR13: 107.7% | AS13: 101.8% | AU13: -5.9%
A14: 心胸外科 | B14: 42 | C14: 90.2% | D14: 71.8% | E14: 110.4% | F14: 105.00% | G14: 109.8% | H14: 111.4% | I14: 100.1% | J14: 110.3% | K14: 100.2% | L14: 101.0% | M14: 96.8% | N14: 101.4% | O14: 109.4% | P14: 101.7% | Q14: 69.7% | R14: -20.5% | S14: 45.4% | T14: -26.4% | U14: 80.1% | V14: -30.3% | W14: 109.8% | X14: 4.8% | Y14: 110.1% | Z14: 0.3% | AA14: 106.3% | AB14: -5.1% | AC14: 100.1% | AD14: 87.1% | AE14: -13.0% | AF14: 118.1% | AG14: 7.8% | AH14: 102.0% | AI14: 1.8% | AJ14: 103.6% | AK14: 2.6% | AL14: 101.9% | AM14: 5.1% | AN14: 116.4% | AO14: 15.0% | AP14: 111.4% | AQ14: 2.0% | AR14: 101.7% | AS14: 98.1% | AU14: -3.6%
A15: 风湿免疫科 | B15: 48 | C15: 117.0% | D15: 116.6% | E15: 127.1% | F15: 139.20% | G15: 132.4% | H15: 127.8% | I15: 126.8% | J15: 127.6% | K15: 121.4% | L15: 117.1% | M15: 112.0% | N15: 107.1% | O15: 108.7% | P15: 121.2% | Q15: 96.0% | R15: -21.0% | S15: 21.1% | T15: -95.5% | U15: 85.0% | V15: -42.1% | W15: 106.4% | X15: -32.8% | Y15: 105.4% | Z15: -27.0% | AA15: 103.9% | AB15: -23.9% | AC15: 126.8% | AD15: 86.8% | AE15: -40.0% | AF15: 105.1% | AG15: -22.5% | AH15: 104.0% | AI15: -17.4% | AJ15: 107.2% | AK15: -9.9% | AL15: 106.9% | AM15: -5.1% | AN15: 105.3% | AO15: -1.8% | AP15: 104.6% | AQ15: -4.1% | AR15: 121.2% | AS15: 96.2% | AU15: -25.0%
A16: 泌尿外科 | B16: 84 | C16: 95.2% | D16: 76.1% | E16: 114.7% | F16: 114.80% | G16: 112.7% | H16: 111.1% | I16: 104.5% | J16: 119.3% | K16: 122.7% | L16: 114.6% | M16: 112.1% | N16: 116.5% | O16: 112.9% | P16: 110.5% | Q16: 63.4% | R16: -31.8% | S16: 8.9% | T16: -67.2% | U16: 72.1% | V16: -42.6% | W16: 107.4% | X16: -7.4% | Y16: 101.9% | Z16: -10.8% | AA16: 110.0% | AB16: -1.1% | AC16: 104.5% | AD16: 77.7% | AE16: -26.8% | AF16: 112.3% | AG16: -7.0% | AH16: 112.9% | AI16: -9.8% | AJ16: 110.5% | AK16: -4.1% | AL16: 92.5% | AM16: -19.6% | AN16: 109.0% | AO16: -7.5% | AP16: 102.4% | AQ16: -10.5% | AR16: 110.5% | AS16: 92.2% | AU16: -18.3%
A17: 保健医疗部 | B17: 242 | C17: 110.5% | D17: 103.0% | E17: 112.4% | F17: 111.70% | G17: 109.0% | H17: 106.6% | I17: 108.9% | J17: 105.4% | K17: 103.4% | L17: 105.9% | M17: 109.2% | N17: 108.7% | O17: 104.3% | P17: 107.5% | Q17: 92.4% | R17: -18.1% | S17: 69.2% | T17: -33.8% | U17: 73.4% | V17: -39.0% | W17: 90.0% | X17: -21.7% | Y17: 90.3% | Z17: -18.7% | AA17: 94.4% | AB17: -12.2% | AC17: 108.9% | AD17: 85.0% | AE17: -23.9% | AF17: 93.0% | AG17: -12.4% | AH17: 95.9% | AI17: -7.5% | AJ17: 100.5% | AK17: -5.4% | AL17: 97.3% | AM17: -11.9% | AN17: 93.8% | AO17: -14.9% | AP17: 94.5% | AQ17: -9.8% | AR17: 107.5% | AS17: 90.5% | AU17: -17.0%
A18: 皮肤性病科 | B18: 18 | C18: 99.3% | D18: 90.5% | E18: 100.9% | F18: 101.30% | G18: 103.2% | H18: 105.9% | I18: 100.3% | J18: 110.0% | K18: 109.5% | L18: 107.8% | M18: 107.0% | N18: 105.7% | O18: 108.2% | P18: 104.2% | Q18: 92.3% | R18: -7.0% | S18: 23.4% | T18: -67.1% | U18: 68.3% | V18: -32.6% | W18: 93.7% | X18: -7.6% | Y18: 89.6% | Z18: -13.6% | AA18: 104.8% | AB18: -1.1% | AC18: 100.3% | AD18: 79.1% | AE18: -21.2% | AF18: 103.8% | AG18: -6.2% | AH18: 102.9% | AI18: -6.6% | AJ18: 102.4% | AK18: -5.4% | AL18: 102.2% | AM18: -4.8% | AN18: 96.5% | AO18: -9.2% | AP18: 100.7% | AQ18: -7.5% | AR18: 104.2% | AS18: 90.3% | AU18: -13.9%
A19: 消化内科 | B19: 92 | C19: 99.5% | D19: 90.3% | E19: 103.2% | F19: 105.50% | G19: 107.2% | H19: 104.3% | I19: 101.8% | J19: 104.6% | K19: 104.9% | L19: 100.2% | M19: 96.0% | N19: 103.2% | O19: 102.2% | P19: 101.8% | Q19: 88.8% | R19: -10.7% | S19: 39.4% | T19: -50.9% | U19: 70.4% | V19: -32.8% | W19: 92.2% | X19: -13.3% | Y19: 99.9% | Z19: -7.3% | AA19: 85.6% | AB19: -18.7% | AC19: 101.8% | AD19: 79.7% | AE19: -22.1% | AF19: 98.8% | AG19: -5.8% | AH19: 101.9% | AI19: -3.0% | AJ19: 102.2% | AK19: 2.0% | AL19: 93.2% | AM19: -2.8% | AN19: 103.4% | AO19: 0.2% | AP19: 104.5% | AQ19: 2.3% | AR19: 101.8% | AS19: 90.2% | AU19: -11.6%
A20: 心血管内科 | B20: 106 | C20: 106.9% | D20: 88.4% | E20: 110.6% | F20: 104.60% | G20: 109.6% | H20: 104.7% | I20: 104.4% | J20: 107.0% | K20: 106.0% | L20: 108.8% | M20: 104.2% | N20: 114.8% | O20: 105.2% | P20: 106.0% | Q20: 73.2% | R20: -33.7% | S20: 18.5% | T20: -69.9% | U20: 82.3% | V20: -28.3% | W20: 93.1% | X20: -11.5% | Y20: 99.1% | Z20: -10.5% | AA20: 98.6% | AB20: -6.1% | AC20: 104.4% | AD20: 77.9% | AE20: -26.5% | AF20: 98.8% | AG20: -8.2% | AH20: 103.7% | AI20: -2.3% | AJ20: 107.8% | AK20: -1.0% | AL20: 97.3% | AM20: -6.9% | AN20: 107.2% | AO20: -7.6% | AP20: 98.7% | AQ20: -6.5% | AR20: 106.0% | AS20: 90.1% | AU20: -15.9%
A21: 神经内科 | B21: 168 | C21: 98.6% | D21: 95.0% | E21: 92.5% | F21: 96.80% | G21: 102.5% | H21: 100.7% | I21: 97.7% | J21: 101.0% | K21: 103.4% | L21: 103.8% | M21: 102.7% | N21: 103.6% | O21: 103.7% | P21: 100.4% | Q21: 89.0% | R21: -9.6% | S21: 54.1% | T21: -40.9% | U21: 71.1% | V21: -21.4% | W21: 76.4% | X21: -20.4% | Y21: 79.8% | Z21: -22.7% | AA21: 93.7% | AB21: -7.0% | AC21: 97.7% | AD21: 77.5% | AE21: -20.2% | AF21: 99.6% | AG21: -1.4% | AH21: 97.8% | AI21: -5.6% | AJ21: 95.7% | AK21: -8.1% | AL21: 100.8% | AM21: -1.9% | AN21: 99.3% | AO21: -4.3% | AP21: 97.1% | AQ21: -6.6% | AR21: 100.4% | AS21: 88.0% | AU21: -12.4%
A22: 儿外科 | B22: 9 | C22: 79.9% | D22: 29.8% | E22: 77.1% | F22: 85.90% | G22: 111.1% | H22: 112.2% | I22: 83.4% | J22: 133.7% | K22: 129.4% | L22: 117.8% | M22: 101.1% | N22: 101.9% | O22: 98.2% | P22: 98.7% | Q22: 93.9% | R22: 14.0% | S22: 0.0% | T22: -29.8% | U22: 39.8% | V22: -37.3% | W22: 76.3% | X22: -9.6% | Y22: 57.0% | Z22: -54.1% | AA22: 68.9% | AB22: -43.3% | AC22: 83.4% | AD22: 56.4% | AE22: -27.0% | AF22: 155.2% | AG22: 21.5% | AH22: 145.2% | AI22: 15.8% | AJ22: 86.7% | AK22: -31.1% | AL22: 67.7% | AM22: -33.4% | AN22: 87.0% | AO22: -14.9% | AP22: 78.5% | AQ22: -19.7% | AR22: 98.7% | AS22: 87.9% | AU22: -10.8%
A23: 内分泌代谢科 | B23: 114 | C23: 100.4% | D23: 78.5% | E23: 110.5% | F23: 107.80% | G23: 107.6% | H23: 107.5% | I23: 102.4% | J23: 106.8% | K23: 105.0% | L23: 100.8% | M23: 98.4% | N23: 104.6% | O23: 100.1% | P23: 102.5% | Q23: 69.7% | R23: -30.7% | S23: 15.0% | T23: -63.5% | U23: 90.0% | V23: -20.5% | W23: 104.8% | X23: -3.0% | Y23: 96.0% | Z23: -11.6% | AA23: 96.2% | AB23: -11.3% | AC23: 102.4% | AD23: 80.9% | AE23: -21.5% | AF23: 100.3% | AG23: -6.5% | AH23: 105.2% | AI23: 0.2% | AJ23: 105.7% | AK23: 4.9% | AL23: 98.0% | AM23: -0.4% | AN23: 107.0% | AO23: 2.4% | AP23: 103.1% | AQ23: 3.0% | AR23: 102.5% | AS23: 87.2% | AU23: -15.3%
A24: 口腔科 | B24: 24 | C24: 72.0% | D24: 48.1% | E24: 109.5% | F24: 101.90% | G24: 108.1% | H24: 101.0% | I24: 90.7% | J24: 111.6% | K24: 106.7% | L24: 106.5% | M24: 92.3% | N24: 107.1% | O24: 100.4% | P24: 97.4% | Q24: 62.0% | R24: -10.0% | S24: 19.3% | T24: -28.8% | U24: 74.1% | V24: -35.4% | W24: 99.6% | X24: -2.3% | Y24: 98.0% | Z24: -10.1% | AA24: 111.8% | AB24: 10.8% | AC24: 90.7% | AD24: 77.8% | AE24: -12.9% | AF24: 106.3% | AG24: -5.3% | AH24: 106.7% | AI24: 0.0% | AJ24: 93.1% | AK24: -13.4% | AL24: 66.9% | AM24: -25.4% | AN24: 108.3% | AO24: 1.2% | AP24: 86.0% | AQ24: -14.4% | AR24: 97.4% | AS24: 86.2% | AU24: -11.2%
A25: 疼痛诊疗中心 | B25: 14 | C25: 85.3% | D25: 50.4% | E25: 78.8% | F25: 97.90% | G25: 97.0% | H25: 93.3% | I25: 82.9% | J25: 99.1% | K25: 101.6% | L25: 95.7% | M25: 93.1% | N25: 104.5% | O25: 96.8% | P25: 90.4% | Q25: 63.4% | R25: -21.9% | S25: 18.5% | T25: -31.9% | U25: 73.3% | V25: -5.5% | W25: 94.8% | X25: -3.1% | Y25: 87.1% | Z25: -9.9% | AA25: 89.0% | AB25: -4.3% | AC25: 82.9% | AD25: 71.4% | AE25: -11.5% | AF25: 113.6% | AG25: 14.5% | AH25: 96.1% | AI25: -5.5% | AJ25: 100.2% | AK25: 4.5% | AL25: 88.0% | AM25: -5.1% | AN25: 102.4% | AO25: -2.1% | AP25: 85.0% | AQ25: -11.8% | AR25: 90.4% | AS25: 84.5% | AU25: -5.9%
A26: 中医科 | B26: 24 | C26: 118.5% | D26: 81.7% | E26: 125.8% | F26: 123.20% | G26: 113.8% | H26: 113.9% | I26: 113.3% | J26: 115.1% | K26: 123.0% | L26: 114.9% | M26: 101.5% | N26: 137.8% | O26: 107.5% | P26: 114.9% | Q26: 78.5% | R26: -40.0% | S26: 13.2% | T26: -68.5% | U26: 75.3% | V26: -50.5% | W26: 96.4% | X26: -26.8% | Y26: 71.4% | Z26: -42.4% | AA26: 88.3% | AB26: -25.6% | AC26: 113.3% | AD26: 70.9% | AE26: -42.4% | AF26: 99.3% | AG26: -15.8% | AH26: 99.5% | AI26: -23.5% | AJ26: 94.4% | AK26: -20.5% | AL26: 92.1% | AM26: -9.4% | AN26: 103.6% | AO26: -34.2% | AP26: 78.9% | AQ26: -28.6% | AR26: 114.9% | AS26: 82.8% | AU26: -32.1%
A27: 神经外科 | B27: 222 | C27: 85.7% | D27: 77.6% | E27: 103.2% | F27: 102.00% | G27: 101.5% | H27: 96.2% | I27: 94.6% | J27: 95.7% | K27: 92.8% | L27: 87.6% | M27: 90.7% | N27: 94.9% | O27: 92.2% | P27: 93.5% | Q27: 68.2% | R27: -17.5% | S27: 42.0% | T27: -35.6% | U27: 71.3% | V27: -31.9% | W27: 86.9% | X27: -15.1% | Y27: 86.7% | Z27: -14.8% | AA27: 91.5% | AB27: -4.7% | AC27: 94.6% | AD27: 74.6% | AE27: -20.0% | AF27: 85.7% | AG27: -10.0% | AH27: 89.8% | AI27: -3.0% | AJ27: 88.9% | AK27: 1.3% | AL27: 85.0% | AM27: -5.7% | AN27: 98.5% | AO27: 3.6% | AP27: 91.8% | AQ27: -0.4% | AR27: 93.5% | AS27: 82.3% | AU27: -11.2%
A28: 妇产科 | B28: 152 | C28: 102.8% | D28: 87.1% | E28: 110.8% | F28: 104.30% | G28: 102.5% | H28: 105.5% | I28: 102.4% | J28: 109.3% | K28: 104.2% | L28: 103.9% | M28: 99.2% | N28: 103.4% | O28: 99.2% | P28: 102.8% | Q28: 79.8% | R28: -23.0% | S28: 36.0% | T28: -51.1% | U28: 64.6% | V28: -46.2% | W28: 72.0% | X28: -32.3% | Y28: 73.2% | Z28: -29.3% | AA28: 85.1% | AB28: -20.4% | AC28: 102.4% | AD28: 68.7% | AE28: -33.7% | AF28: 90.9% | AG28: -18.4% | AH28: 95.2% | AI28: -9.0% | AJ28: 98.7% | AK28: -5.2% | AL28: 85.8% | AM28: -13.4% | AN28: 106.3% | AO28: 2.9% | AP28: 97.1% | AQ28: -2.1% | AR28: 102.8% | AS28: 82.2% | AU28: -20.6%
A29: 眼科 | B29: 42 | C29: 74.7% | D29: 61.7% | E29: 104.0% | F29: 100.70% | G29: 93.0% | H29: 93.8% | I29: 88.3% | J29: 102.8% | K29: 85.8% | L29: 84.8% | M29: 88.4% | N29: 89.9% | O29: 81.5% | P29: 88.6% | Q29: 54.7% | R29: -20.0% | S29: 9.4% | T29: -52.3% | U29: 62.7% | V29: -41.3% | W29: 97.4% | X29: -3.3% | Y29: 97.6% | Z29: 4.6% | AA29: 97.5% | AB29: 3.7% | AC29: 88.3% | AD29: 70.3% | AE29: -18.0% | AF29: 80.6% | AG29: -22.2% | AH29: 85.9% | AI29: 0.1% | AJ29: 93.1% | AK29: 8.3% | AL29: 78.8% | AM29: -9.6% | AN29: 91.8% | AO29: 1.9% | AP29: 81.6% | AQ29: 0.1% | AR29: 88.6% | AS29: 77.8% | AU29: -10.8%
A30: 感染科 | B30: 14 | C30: 104.1% | D30: 100.0% | E30: 103.2% | F30: 101.90% | G30: 112.9% | H30: 104.8% | I30: 104.6% | J30: 112.7% | K30: 105.5% | L30: 111.4% | M30: 108.1% | N30: 111.0% | O30: 109.0% | P30: 107.1% | Q30: 77.0% | R30: -27.1% | S30: 0.0% | T30: -100.0% | U30: 29.7% | V30: -73.5% | W30: 81.0% | X30: -20.9% | Y30: 90.1% | Z30: -22.8% | AA30: 97.4% | AB30: -7.4% | AC30: 104.6% | AD30: 93.9% | AE30: -10.7% | AF30: 94.9% | AG30: -17.8% | AH30: 100.5% | AI30: -5.0% | AJ30: 76.7% | AK30: -34.7% | AL30: 62.4% | AM30: -45.7% | AN30: 84.5% | AO30: -26.5% | AP30: 88.7% | AQ30: -20.3% | AR30: 107.1% | AS30: 73.8% | AU30: -33.3%
A31: 儿科 | B31: 60 | C31: 110.1% | D31: 99.6% | E31: 111.6% | F31: 107.30% | G31: 99.2% | H31: 87.2% | I31: 102.6% | J31: 106.0% | K31: 106.4% | L31: 110.3% | M31: 113.5% | N31: 106.7% | O31: 107.1% | P31: 105.5% | Q31: 95.2% | R31: -14.9% | S31: 36.8% | T31: -62.8% | U31: 45.2% | V31: -66.4% | W31: 73.2% | X31: -34.1% | Y31: 68.6% | Z31: -30.6% | AA31: 62.8% | AB31: -24.4% | AC31: 102.6% | AD31: 78.7% | AE31: -23.9% | AF31: 63.0% | AG31: -43.0% | AH31: 63.0% | AI31: -43.4% | AJ31: 83.4% | AK31: -26.9% | AL31: 109.4% | AM31: -4.1% | AN31: 102.4% | AO31: -4.3% | AP31: 106.9% | AQ31: -0.2% | AR31: 105.5% | AS31: 73.1% | AU31: -32.4%
A32: 骨外科 | B32: 126 | C32: 85.8% | D32: 77.9% | E32: 103.5% | F32: 99.40% | G32: 105.1% | H32: 98.8% | I32: 95.3% | J32: 98.1% | K32: 94.8% | L32: 99.4% | M32: 100.7% | N32: 100.5% | O32: 103.2% | P32: 97.4% | Q32: 49.1% | R32: -36.7% | S32: 16.7% | T32: -61.2% | U32: 44.1% | V32: -59.4% | W32: 78.9% | X32: -20.5% | Y32: 75.3% | Z32: -29.8% | AA32: 80.4% | AB32: -18.4% | AC32: 95.3% | AD32: 57.6% | AE32: -37.7% | AF32: 84.2% | AG32: -13.9% | AH32: 82.9% | AI32: -11.9% | AJ32: 89.2% | AK32: -10.2% | AL32: 90.2% | AM32: -10.5% | AN32: 97.0% | AO32: -3.5% | AP32: 82.5% | AQ32: -20.7% | AR32: 97.4% | AS32: 72.7% | AU32: -24.7%
A33: 耳鼻咽喉科 | B33: 40 | C33: 109.6% | D33: 79.6% | E33: 117.6% | F33: 117.90% | G33: 103.4% | H33: 108.3% | I33: 106.4% | J33: 113.1% | K33: 111.1% | L33: 106.5% | M33: 89.6% | N33: 98.3% | O33: 94.8% | P33: 104.3% | Q33: 68.5% | R33: -41.1% | S33: 2.5% | T33: -77.1% | U33: 60.6% | V33: -57.0% | W33: 97.5% | X33: -20.4% | Y33: 90.1% | Z33: -13.3% | AA33: 68.0% | AB33: -40.3% | AC33: 106.4% | AD33: 65.0% | AE33: -41.4% | AF33: 82.8% | AG33: -30.3% | AH33: 81.6% | AI33: -29.5% | AJ33: 76.0% | AK33: -30.5% | AL33: 64.8% | AM33: -24.8% | AN33: 82.7% | AO33: -15.6% | AP33: 84.7% | AQ33: -10.1% | AR33: 104.3% | AS33: 71.9% | AU33: -32.4%
A34: 心血管外科 | B34: 42 | C34: 86.3% | D34: 62.7% | E34: 93.6% | F34: 91.50% | G34: 75.7% | H34: 80.0% | I34: 81.9% | J34: 100.2% | K34: 97.5% | L34: 83.7% | M34: 97.4% | N34: 102.3% | O34: 96.2% | P34: 89.1% | Q34: 53.7% | R34: -32.6% | S34: 23.7% | T34: -39.0% | U34: 51.5% | V34: -42.1% | W34: 84.4% | X34: -7.1% | Y34: 81.3% | Z34: 5.6% | AA34: 70.1% | AB34: -9.9% | AC34: 81.9% | AD34: 61.0% | AE34: -20.9% | AF34: 67.9% | AG34: -32.3% | AH34: 73.5% | AI34: -24.0% | AJ34: 66.7% | AK34: -17.0% | AL34: 75.6% | AM34: -21.8% | AN34: 85.8% | AO34: -16.5% | AP34: 88.2% | AQ34: -8.0% | AR34: 89.1% | AS34: 68.7% | AU34: -20.4%
A35: 全科医学科 | B35: 20 | M35: — | N35: — | O35: — | AL35: 60.6% | AM35: — | AN35: 85.8% | AO35: — | AP35: 83.9% | AQ35: — | AR35: — | AS35: 66.8% | AU35: —
A36: 全院合计 | B36: 2468 | C36: 107.2% | D36: 93.4% | E36: 115.6% | F36: 114.40% | G36: 114.2% | H36: 110.8% | I36: 109.5% | J36: 113.7% | K36: 111.4% | L36: 110.4% | M36: 109.7% | N36: 114.9% | O36: 111.8% | P36: 110.7% | Q36: 85.6% | R36: =Q36-C36 -> -21.6% | S36: 42.7% | T36: =S36-D36 -> -50.7% | U36: 77.1% | V36: =U36-E36 -> -38.5% | W36: 96.6% | X36: =W36-F36 -> -17.8% | Y36: 96.2% | Z36: =Y36-G36 -> -18.0% | AA36: 101.4% | AB36: =AA36-H36 -> -9.4% | AC36: 109.5% | AD36: 83.5% | AE36: =AD36-AC36 -> -26.0% | AF36: 101.7% | AG36: =AF36-J36 -> -12.0% | AH36: 103.3% | AI36: =AH36-K36 -> -8.1% | AJ36: 106.1% | AK36: =AJ36-L36 -> -4.3% | AL36: 101.4% | AM36: =AL36-M36 -> -8.3% | AN36: 112.2% | AO36: =AN36-N36 -> -2.7% | AP36: 104.8% | AQ36: =AP36-O36 -> -7.0% | AR36: 110.7% | AS36: 94.3% | AU36: =AS36-AR36 -> -16.4%

Sheet Sheet7 (hidden)
A1: 二、全院2020年12月出院病人完成情况
A2: 科 室 | B2: 1月 | C2: 2019-01-01 | D2: 同期比较 | E2: 2月 | F2: 2019-02-01 | G2: 同期比较 | H2: 3月 | I2: 2019-03-01 | J2: 同期比较 | K2: 4月 | L2: 2019-04-01 | M2: 同期比较 | N2: 5月 | O2: 2019-05-01 | P2: 同期比较 | Q2: 6月 | R2: 2019-06-01 | S2: 同期比较 | T2: 7月 | U2: 2019-07-01 | V2: 去年同期 | W2: 8月 | X2: 2019-08-01 | Y2: 同期比较 | Z2: 9月 | AA2: 2019-09-01 | AB2: 同期比较 | AC2: 10月 | AD2: 2019-10-01 | AE2: 同期比较 | AF2: 11月 | AG2: 2019-11-01 | AH2: 同期比较 | AI2: 12月 | AJ2: 2019-12-01 | AK2: 同期比较 | AL2: 2020年 累计完成 | AM2: 2019年 累计完成 | AN2: 累计比较
A3: 肺部肿瘤外科 | B3: 230 | C3: 250 | D3: =(B3-C3)/C3 -> -8.00% | E3: 52 | F3: 138 | G3: =(E3-F3)/F3 -> -62.32% | H3: 182 | I3: 259 | J3: =(H3-I3)/I3 -> -29.73% | K3: 253 | L3: 236 | M3: =(K3-L3)/L3 -> 7.20% | N3: 315 | O3: 266 | P3: =(N3-O3)/O3 -> 18.42% | Q3: 326 | R3: 259 | S3: =(Q3-R3)/R3 -> 25.87% | T3: 347 | U3: 296 | V3: =(T3-U3)/U3 -> 17.23% | W3: 352 | X3: 258 | Y3: =(W3-X3)/X3 -> 36.43% | Z3: 395 | AA3: 301 | AB3: =(Z3-AA3)/AA3 -> 31.23% | AC3: 337 | AD3: 254 | AE3: =(AC3-AD3)/AD3 -> 32.68% | AF3: 371 | AG3: 304 | AH3: =(AF3-AG3)/AG3 -> 22.04% | AI3: 360 | AJ3: 345 | AK3: =(AI3-AJ3)/AJ3 -> 4.35% | AL3: =B3+E3+H3+K3+N3+Q3+T3+W3+Z3+AC3+AF3+AI3 -> 3520 | AM3: =C3+F3+I3+L3+O3+R3+U3+X3+AA3+AD3+AG3+AJ3 -> 3166 | AN3: =(AL3-AM3)/AM3 -> 11.18%
A4: 重症医学科 | B4: 35 | C4: 52 | D4: -32.69% | E4: 30 | F4: 33 | G4: -9.09% | H4: 40 | I4: 32 | J4: 25.00% | K4: 45 | L4: 33 | M4: 36.36% | N4: 46 | O4: 38 | P4: 21.05% | Q4: 38 | R4: 37 | S4: 2.70% | T4: 38 | U4: 42 | V4: -9.52% | W4: 54 | X4: 34 | Y4: 58.82% | Z4: 43 | AA4: 32 | AB4: 34.38% | AC4: 34 | AD4: 36 | AE4: -5.56% | AF4: 46 | AG4: 37 | AH4: 24.32% | AI4: 36 | AJ4: 37 | AK4: -2.70% | AL4: 485 | AM4: 443 | AN4: 9.48%
A5: 血液内科 | B5: 339 | C5: 304 | D5: 11.51% | E5: 126 | F5: 189 | G5: -33.33% | H5: 249 | I5: 384 | J5: -35.16% | K5: 353 | L5: 388 | M5: -9.02% | N5: 289 | O5: 349 | P5: -17.19% | Q5: 370 | R5: 360 | S5: 2.78% | T5: 386 | U5: 452 | V5: -14.60% | W5: 422 | X5: 382 | Y5: 10.47% | Z5: 479 | AA5: 354 | AB5: 35.31% | AC5: 388 | AD5: 332 | AE5: 16.87% | AF5: 418 | AG5: 369 | AH5: 13.28% | AI5: 461 | AJ5: 398 | AK5: 15.83% | AL5: 4280 | AM5: 4261 | AN5: 0.45%
A6: 心胸外科 | B6: 102 | C6: 90 | D6: 13.33% | E6: 38 | F6: 57 | G6: -33.33% | H6: 70 | I6: 99 | J6: -29.29% | K6: 94 | L6: 108 | M6: -12.96% | N6: 101 | O6: 95 | P6: 6.32% | Q6: 102 | R6: 102 | S6: 0.00% | T6: 128 | U6: 120 | V6: 6.67% | W6: 108 | X6: 100 | Y6: 8.00% | Z6: 112 | AA6: 103 | AB6: 8.74% | AC6: 88 | AD6: 94 | AE6: -6.38% | AF6: 99 | AG6: 103 | AH6: -3.88% | AI6: 117 | AJ6: 99 | AK6: 18.18% | AL6: 1159 | AM6: 1170 | AN6: -0.94%
A7: 口腔科 | B7: 52 | C7: 40 | D7: 30.00% | E7: 9 | F7: 17 | G7: -47.06% | H7: 20 | I7: 60 | J7: -66.67% | K7: 54 | L7: 58 | M7: -6.90% | N7: 43 | O7: 52 | P7: -17.31% | Q7: 59 | R7: 52 | S7: 13.46% | T7: 62 | U7: 56 | V7: 10.71% | W7: 63 | X7: 55 | Y7: 14.55% | Z7: 70 | AA7: 62 | AB7: 12.90% | AC7: 29 | AD7: 38 | AE7: -23.68% | AF7: 62 | AG7: 51 | AH7: 21.57% | AI7: 56 | AJ7: 60 | AK7: -6.67% | AL7: 579 | AM7: 601 | AN7: -3.66%
A8: 肿瘤内科 | B8: 257 | C8: 244 | D8: 5.33% | E8: 128 | F8: 202 | G8: -36.63% | H8: 213 | I8: 290 | J8: -26.55% | K8: 233 | L8: 258 | M8: -9.69% | N8: 252 | O8: 271 | P8: -7.01% | Q8: 281 | R8: 268 | S8: 4.85% | T8: 278 | U8: 298 | V8: -6.71% | W8: 298 | X8: 303 | Y8: -1.65% | Z8: 331 | AA8: 314 | AB8: 5.41% | AC8: 297 | AD8: 277 | AE8: 7.22% | AF8: 323 | AG8: 307 | AH8: 5.21% | AI8: 352 | AJ8: 338 | AK8: 4.14% | AL8: 3243 | AM8: 3370 | AN8: -3.77%
A9: 疼痛诊疗中心 | B9: 36 | C9: 55 | D9: -34.55% | E9: 6 | F9: 20 | G9: -70.00% | H9: 26 | I9: 41 | J9: -36.59% | K9: 42 | L9: 46 | M9: -8.70% | N9: 39 | O9: 42 | P9: -7.14% | Q9: 50 | R9: 38 | S9: 31.58% | T9: 45 | U9: 44 | V9: 2.27% | W9: 48 | X9: 44 | Y9: 9.09% | Z9: 49 | AA9: 47 | AB9: 4.26% | AC9: 39 | AD9: 35 | AE9: 11.43% | AF9: 48 | AG9: 50 | AH9: -4.00% | AI9: 49 | AJ9: 40 | AK9: 22.50% | AL9: 477 | AM9: 502 | AN9: -4.98%
A10: 普通外科 | B10: 587 | C10: 609 | D10: -3.61% | E10: 128 | F10: 419 | G10: -69.45% | H10: 322 | I10: 691 | J10: -53.40% | K10: 565 | L10: 613 | M10: -7.83% | N10: 598 | O10: 652 | P10: -8.28% | Q10: 647 | R10: 641 | S10: 0.94% | T10: 722 | U10: 658 | V10: 9.73% | W10: 710 | X10: 642 | Y10: 10.59% | Z10: 750 | AA10: 676 | AB10: 10.95% | AC10: 678 | AD10: 577 | AE10: 17.50% | AF10: 762 | AG10: 780 | AH10: -2.31% | AI10: 780 | AJ10: 723 | AK10: 7.88% | AL10: 7249 | AM10: 7681 | AN10: -5.62%
A11: 眼科 | B11: 165 | C11: 172 | D11: -4.07% | E11: 9 | F11: 135 | G11: -93.33% | H11: 120 | I11: 282 | J11: -57.45% | K11: 263 | L11: 272 | M11: -3.31% | N11: 249 | O11: 251 | P11: -0.80% | Q11: 279 | R11: 256 | S11: 8.98% | T11: 253 | U11: 266 | V11: -4.89% | W11: 253 | X11: 237 | Y11: 6.75% | Z11: 303 | AA11: 256 | AB11: 18.36% | AC11: 261 | AD11: 285 | AE11: -8.42% | AF11: 312 | AG11: 317 | AH11: -1.58% | AI11: 334 | AJ11: 253 | AK11: 32.02% | AL11: 2801 | AM11: 2982 | AN11: -6.07%
A12: 泌尿外科 | B12: 197 | C12: 227 | D12: -13.22% | E12: 7 | F12: 112 | G12: -93.75% | H12: 118 | I12: 229 | J12: -48.47% | K12: 241 | L12: 248 | M12: -2.82% | N12: 222 | O12: 231 | P12: -3.90% | Q12: 235 | R12: 230 | S12: 2.17% | T12: 264 | U12: 229 | V12: 15.28% | W12: 279 | X12: 269 | Y12: 3.72% | Z12: 289 | AA12: 266 | AB12: 8.65% | AC12: 243 | AD12: 238 | AE12: 2.10% | AF12: 267 | AG12: 263 | AH12: 1.52% | AI12: 268 | AJ12: 271 | AK12: -1.11% | AL12: 2630 | AM12: 2813 | AN12: -6.51%
A13: 皮肤性病科 | B13: 86 | C13: 59 | D13: 45.76% | E13: 45 | F13: 58 | G13: -22.41% | H13: 73 | I13: 66 | J13: 10.61% | K13: 97 | L13: 68 | M13: 42.65% | N13: 70 | O13: 81 | P13: -13.58% | Q13: 80 | R13: 85 | S13: -5.88% | T13: 78 | U13: 101 | V13: -22.77% | W13: 68 | X13: 107 | Y13: -36.45% | Z13: 86 | AA13: 90 | AB13: -4.44% | AC13: 77 | AD13: 80 | AE13: -3.75% | AF13: 72 | AG13: 80 | AH13: -10.00% | AI13: 77 | AJ13: 99 | AK13: -22.22% | AL13: 909 | AM13: 974 | AN13: -6.67%
A14: 肾脏内科 | B14: 286 | C14: 231 | D14: 23.81% | E14: 45 | F14: 175 | G14: -74.29% | H14: 112 | I14: 234 | J14: -52.14% | K14: 224 | L14: 250 | M14: -10.40% | N14: 213 | O14: 282 | P14: -24.47% | Q14: 249 | R14: 247 | S14: 0.81% | T14: 296 | U14: 316 | V14: -6.33% | W14: 297 | X14: 289 | Y14: 2.77% | Z14: 364 | AA14: 321 | AB14: 13.40% | AC14: 314 | AD14: 347 | AE14: -9.51% | AF14: 315 | AG14: 356 | AH14: -11.52% | AI14: 388 | AJ14: 331 | AK14: 17.22% | AL14: 3103 | AM14: 3379 | AN14: -8.17%
A15: 心血管内科 | B15: 528 | C15: 622 | D15: -15.11% | E15: 69 | F15: 480 | G15: -85.63% | H15: 460 | I15: 673 | J15: -31.65% | K15: 590 | L15: 644 | M15: -8.39% | N15: 596 | O15: 659 | P15: -9.56% | Q15: 636 | R15: 659 | S15: -3.49% | T15: 652 | U15: 726 | V15: -10.19% | W15: 683 | X15: 692 | Y15: -1.30% | Z15: 746 | AA15: 679 | AB15: 9.87% | AC15: 676 | AD15: 596 | AE15: 13.42% | AF15: 776 | AG15: 731 | AH15: 6.16% | AI15: 721 | AJ15: 718 | AK15: 0.42% | AL15: 7133 | AM15: 7879 | AN15: -9.47%
A16: 核医学科 | B16: 83 | C16: 103 | D16: -19.42% | E16: 52 | F16: 67 | G16: -22.39% | H16: 64 | I16: 119 | J16: -46.22% | K16: 125 | L16: 113 | M16: 10.62% | N16: 109 | O16: 94 | P16: 15.96% | Q16: 116 | R16: 103 | S16: 12.62% | T16: 99 | U16: 128 | V16: -22.66% | W16: 90 | X16: 113 | Y16: -20.35% | Z16: 93 | AA16: 106 | AB16: -12.26% | AC16: 83 | AD16: 108 | AE16: -23.15% | AF16: 98 | AG16: 106 | AH16: -7.55% | AI16: 101 | AJ16: 107 | AK16: -5.61% | AL16: 1113 | AM16: 1267 | AN16: -12.15%
A17: 消化内科 | B17: 333 | C17: 303 | D17: 9.90% | E17: 92 | F17: 236 | G17: -61.02% | H17: 179 | I17: 318 | J17: -43.71% | K17: 273 | L17: 335 | M17: -18.51% | N17: 279 | O17: 324 | P17: -13.89% | Q17: 306 | R17: 309 | S17: -0.97% | T17: 326 | U17: 348 | V17: -6.32% | W17: 332 | X17: 385 | Y17: -13.77% | Z17: 336 | AA17: 409 | AB17: -17.85% | AC17: 308 | AD17: 315 | AE17: -2.22% | AF17: 328 | AG17: 386 | AH17: -15.03% | AI17: 370 | AJ17: 388 | AK17: -4.64% | AL17: 3462 | AM17: 4056 | AN17: -14.64%
A18: 骨外科 | B18: 167 | C18: 209 | D18: -20.10% | E18: 19 | F18: 107 | G18: -82.24% | H18: 95 | I18: 217 | J18: -56.22% | K18: 188 | L18: 266 | M18: -29.32% | N18: 184 | O18: 218 | P18: -15.60% | Q18: 200 | R18: 190 | S18: 5.26% | T18: 214 | U18: 244 | V18: -12.30% | W18: 185 | X18: 212 | Y18: -12.74% | Z18: 255 | AA18: 258 | AB18: -1.16% | AC18: 215 | AD18: 225 | AE18: -4.44% | AF18: 271 | AG18: 233 | AH18: 16.31% | AI18: 243 | AJ18: 268 | AK18: -9.33% | AL18: 2236 | AM18: 2647 | AN18: -15.53%
A19: 神经内科 | B19: 427 | C19: 430 | D19: -0.70% | E19: 222 | F19: 366 | G19: -39.34% | H19: 270 | I19: 403 | J19: -33.00% | K19: 323 | L19: 406 | M19: -20.44% | N19: 314 | O19: 436 | P19: -27.98% | Q19: 333 | R19: 437 | S19: -23.80% | T19: 401 | U19: 434 | V19: -7.60% | W19: 385 | X19: 474 | Y19: -18.78% | Z19: 431 | AA19: 430 | AB19: 0.23% | AC19: 379 | AD19: 443 | AE19: -14.45% | AF19: 418 | AG19: 432 | AH19: -3.24% | AI19: 444 | AJ19: 486 | AK19: -8.64% | AL19: 4347 | AM19: 5177 | AN19: -16.03%
A20: 呼吸内科 | B20: 281 | C20: 268 | D20: 4.85% | E20: 97 | F20: 224 | G20: -56.70% | H20: 199 | I20: 294 | J20: -32.31% | K20: 227 | L20: 312 | M20: -27.24% | N20: 192 | O20: 278 | P20: -30.94% | Q20: 247 | R20: 270 | S20: -8.52% | T20: 255 | U20: 321 | V20: -20.56% | W20: 244 | X20: 300 | Y20: -18.67% | Z20: 304 | AA20: 297 | AB20: 2.36% | AC20: 265 | AD20: 265 | AE20: 0.00% | AF20: 276 | AG20: 295 | AH20: -6.44% | AI20: 305 | AJ20: 325 | AK20: -6.15% | AL20: 2892 | AM20: 3449 | AN20: -16.15%
A21: 内分泌代谢科 | B21: 303 | C21: 342 | D21: -11.40% | E21: 41 | F21: 234 | G21: -82.48% | H21: 191 | I21: 396 | J21: -51.77% | K21: 258 | L21: 380 | M21: -32.11% | N21: 271 | O21: 363 | P21: -25.34% | Q21: 314 | R21: 357 | S21: -12.04% | T21: 334 | U21: 356 | V21: -6.18% | W21: 366 | X21: 379 | Y21: -3.43% | Z21: 394 | AA21: 381 | AB21: 3.41% | AC21: 323 | AD21: 321 | AE21: 0.62% | AF21: 364 | AG21: 380 | AH21: -4.21% | AI21: 395 | AJ21: 381 | AK21: 3.67% | AL21: 3554 | AM21: 4270 | AN21: -16.77%
A22: 放射治疗科 | B22: 86 | C22: 71 | D22: 21.13% | E22: 38 | F22: 68 | G22: -44.12% | H22: 34 | I22: 69 | J22: -50.72% | K22: 62 | L22: 85 | M22: -27.06% | N22: 54 | O22: 70 | P22: -22.86% | Q22: 69 | R22: 78 | S22: -11.54% | T22: 89 | U22: 84 | V22: 5.95% | W22: 63 | X22: 95 | Y22: -33.68% | Z22: 94 | AA22: 85 | AB22: 10.59% | AC22: 62 | AD22: 74 | AE22: -16.22% | AF22: 76 | AG22: 95 | AH22: -20.00% | AI22: 75 | AJ22: 106 | AK22: -29.25% | AL22: 802 | AM22: 980 | AN22: -18.16%
A23: 急诊医学科 | B23: 180 | C23: 177 | D23: 1.69% | E23: 109 | F23: 161 | G23: -32.30% | H23: 109 | I23: 179 | J23: -39.11% | K23: 157 | L23: 183 | M23: -14.21% | N23: 130 | O23: 196 | P23: -33.67% | Q23: 125 | R23: 190 | S23: -34.21% | T23: 148 | U23: 190 | V23: -22.11% | W23: 151 | X23: 193 | Y23: -21.76% | Z23: 167 | AA23: 171 | AB23: -2.34% | AC23: 163 | AD23: 183 | AE23: -10.93% | AF23: 145 | AG23: 182 | AH23: -20.33% | AI23: 181 | AJ23: 190 | AK23: -4.74% | AL23: 1765 | AM23: 2195 | AN23: -19.59%
A24: 神经外科 | B24: 294 | C24: 335 | D24: -12.24% | E24: 90 | F24: 237 | G24: -62.03% | H24: 194 | I24: 365 | J24: -46.85% | K24: 284 | L24: 401 | M24: -29.18% | N24: 269 | O24: 353 | P24: -23.80% | Q24: 293 | R24: 329 | S24: -10.94% | T24: 287 | U24: 353 | V24: -18.70% | W24: 278 | X24: 346 | Y24: -19.65% | Z24: 323 | AA24: 383 | AB24: -15.67% | AC24: 260 | AD24: 292 | AE24: -10.96% | AF24: 308 | AG24: 353 | AH24: -12.75% | AI24: 293 | AJ24: 339 | AK24: -13.57% | AL24: 3173 | AM24: 4086 | AN24: -22.34%
A25: 心血管外科 | B25: 44 | C25: 69 | D25: -36.23% | E25: 18 | F25: 43 | G25: -58.14% | H25: 27 | I25: 78 | J25: -65.38% | K25: 61 | L25: 73 | M25: -16.44% | N25: 55 | O25: 57 | P25: -3.51% | Q25: 49 | R25: 66 | S25: -25.76% | T25: 63 | U25: 69 | V25: -8.70% | W25: 58 | X25: 88 | Y25: -34.09% | Z25: 73 | AA25: 77 | AB25: -5.19% | AC25: 58 | AD25: 71 | AE25: -18.31% | AF25: 69 | AG25: 78 | AH25: -11.54% | AI25: 75 | AJ25: 73 | AK25: 2.74% | AL25: 650 | AM25: 842 | AN25: -22.80%
A26: 妇产科 | B26: 615 | C26: 707 | D26: -13.01% | E26: 304 | F26: 549 | G26: -44.63% | H26: 437 | I26: 758 | J26: -42.35% | K26: 464 | L26: 702 | M26: -33.90% | N26: 438 | O26: 703 | P26: -37.70% | Q26: 531 | R26: 713 | S26: -25.53% | T26: 607 | U26: 756 | V26: -19.71% | W26: 621 | X26: 666 | Y26: -6.76% | Z26: 588 | AA26: 696 | AB26: -15.52% | AC26: 541 | AD26: 668 | AE26: -19.01% | AF26: 598 | AG26: 714 | AH26: -16.25% | AI26: 635 | AJ26: 704 | AK26: -9.80% | AL26: 6379 | AM26: 8336 | AN26: -23.48%
A27: 耳鼻咽喉科 | B27: 121 | C27: 153 | D27: -20.92% | E27: 1 | F27: 102 | G27: -99.02% | H27: 70 | I27: 176 | J27: -60.23% | K27: 156 | L27: 179 | M27: -12.85% | N27: 132 | O27: 197 | P27: -32.99% | Q27: 130 | R27: 159 | S27: -18.24% | T27: 140 | U27: 199 | V27: -29.65% | W27: 152 | X27: 186 | Y27: -18.28% | Z27: 138 | AA27: 192 | AB27: -28.13% | AC27: 112 | AD27: 134 | AE27: -16.42% | AF27: 133 | AG27: 149 | AH27: -10.74% | AI27: 163 | AJ27: 140 | AK27: 16.43% | AL27: 1448 | AM27: 1966 | AN27: -26.35%
A28: 风湿免疫科 | B28: 197 | C28: 217 | D28: -9.22% | E28: 45 | F28: 163 | G28: -72.39% | H28: 144 | I28: 206 | J28: -30.10% | K28: 184 | L28: 261 | M28: -29.50% | N28: 208 | O28: 258 | P28: -19.38% | Q28: 181 | R28: 257 | S28: -29.57% | T28: 207 | U28: 276 | V28: -25.00% | W28: 171 | X28: 285 | Y28: -40.00% | Z28: 178 | AA28: 244 | AB28: -27.05% | AC28: 174 | AD28: 226 | AE28: -23.01% | AF28: 176 | AG28: 211 | AH28: -16.59% | AI28: 193 | AJ28: 217 | AK28: -11.06% | AL28: 2058 | AM28: 2821 | AN28: -27.05%
A29: 中医科 | B29: 60 | C29: 78 | D29: -23.08% | E29: 7 | F29: 49 | G29: -85.71% | H29: 42 | I29: 85 | J29: -50.59% | K29: 69 | L29: 85 | M29: -18.82% | N29: 44 | O29: 76 | P29: -42.11% | Q29: 55 | R29: 77 | S29: -28.57% | T29: 59 | U29: 76 | V29: -22.37% | W29: 69 | X29: 79 | Y29: -12.66% | Z29: 75 | AA29: 82 | AB29: -8.54% | AC29: 49 | AD29: 60 | AE29: -18.33% | AF29: 72 | AG29: 98 | AH29: -26.53% | AI29: 58 | AJ29: 82 | AK29: -29.27% | AL29: 659 | AM29: 927 | AN29: -28.91%
A30: 小儿外科 | B30: 46 | C30: 28 | D30: 64.29% | E30: 0 | F30: 17 | G30: -100.00% | H30: 12 | I30: 27 | J30: -55.56% | K30: 24 | L30: 27 | M30: -11.11% | N30: 21 | O30: 35 | P30: -40.00% | Q30: 23 | R30: 53 | S30: -56.60% | T30: 52 | U30: 72 | V30: -27.78% | W30: 54 | X30: 63 | Y30: -14.29% | Z30: 28 | AA30: 54 | AB30: -48.15% | AC30: 24 | AD30: 42 | AE30: -42.86% | AF30: 23 | AG30: 39 | AH30: -41.03% | AI30: 25 | AJ30: 29 | AK30: -13.79% | AL30: 332 | AM30: 486 | AN30: -31.69%
A31: 保健医疗部 | B31: 282 | C31: 323 | D31: -12.69% | E31: 64 | F31: 258 | G31: -75.19% | H31: 100 | I31: 346 | J31: -71.10% | K31: 158 | L31: 320 | M31: -50.63% | N31: 186 | O31: 336 | P31: -44.64% | Q31: 218 | R31: 321 | S31: -32.09% | T31: 180 | U31: 318 | V31: -43.40% | W31: 213 | X31: 302 | Y31: -29.47% | Z31: 262 | AA31: 312 | AB31: -16.03% | AC31: 213 | AD31: 308 | AE31: -30.84% | AF31: 222 | AG31: 360 | AH31: -38.33% | AI31: 244 | AJ31: 313 | AK31: -22.04% | AL31: 2342 | AM31: 3817 | AN31: -38.64%
A32: 感染科 | B32: 42 | C32: 40 | D32: 5.00% | E32: 0 | F32: 35 | G32: -100.00% | H32: 8 | I32: 40 | J32: -80.00% | K32: 25 | L32: 46 | M32: -45.65% | N32: 26 | O32: 45 | P32: -42.22% | Q32: 29 | R32: 46 | S32: -36.96% | T32: 36 | U32: 48 | V32: -25.00% | W32: 33 | X32: 54 | Y32: -38.89% | Z32: 33 | AA32: 45 | AB32: -26.67% | AC32: 14 | AD32: 38 | AE32: -63.16% | AF32: 34 | AG32: 47 | AH32: -27.66% | AI32: 35 | AJ32: 49 | AK32: -28.57% | AL32: 315 | AM32: 533 | AN32: -40.90%
A33: 康复医学科 | B33: 66 | C33: 59 | D33: 11.86% | E33: 7 | F33: 48 | G33: -85.42% | H33: 30 | I33: 73 | J33: -58.90% | K33: 44 | L33: 68 | M33: -35.29% | N33: 32 | O33: 53 | P33: -39.62% | Q33: 37 | R33: 65 | S33: -43.08% | T33: 52 | U33: 67 | V33: -22.39% | W33: 38 | X33: 75 | Y33: -49.33% | Z33: 52 | AA33: 58 | AB33: -10.34% | AC33: 21 | AD33: 64 | AE33: -67.19% | AF33: 20 | AG33: 81 | AH33: -75.31% | AI33: 27 | AJ33: 64 | AK33: -57.81% | AL33: 426 | AM33: 775 | AN33: -45.03%
A34: 儿科 | B34: 309 | C34: 355 | D34: -12.96% | E34: 92 | F34: 286 | G34: -67.83% | H34: 111 | I34: 340 | J34: -67.35% | K34: 116 | L34: 354 | M34: -67.23% | N34: 104 | O34: 304 | P34: -65.79% | Q34: 101 | R34: 265 | S34: -61.89% | T34: 98 | U34: 290 | V34: -66.21% | W34: 121 | X34: 309 | Y34: -60.84% | Z34: 112 | AA34: 285 | AB34: -60.70% | AC34: 159 | AD34: 297 | AE34: -46.46% | AF34: 237 | AG34: 338 | AH34: -29.88% | AI34: 231 | AJ34: 328 | AK34: -29.57% | AL34: 1791 | AM34: 3751 | AN34: -52.25%
A35: 全科医学科 | AC35: 5 | AD35: — | AE35: — | AF35: 50 | AH35: — | AI35: 42 | AJ35: — | AK35: — | AL35: 97 | AM35: — | AN35: —
A36: 全院 | B36: =SUM(B3:B34) -> 6836 | C36: =SUM(C3:C34) -> 7222 | D36: =(B36-C36)/C36 -> -5.34% | E36: =SUM(E3:E34) -> 1990 | F36: =SUM(F3:F34) -> 5285 | G36: =(E36-F36)/F36 -> -62.35% | H36: =SUM(H3:H34) -> 4321 | I36: =SUM(I3:I34) -> 7829 | J36: =(H36-I36)/I36 -> -44.81% | K36: =SUM(K3:K34) -> 6252 | L36: =SUM(L3:L34) -> 7818 | M36: =(K36-L36)/L36 -> -20.03% | N36: =SUM(N3:N34) -> 6081 | O36: =SUM(O3:O34) -> 7665 | P36: =(N36-O36)/O36 -> -20.67% | Q36: =SUM(Q3:Q34) -> 6709 | R36: =SUM(R3:R34) -> 7519 | S36: =(Q36-R36)/R36 -> -10.77% | T36: =SUM(T3:T34) -> 7196 | U36: =SUM(U3:U34) -> 8233 | V36: =(T36-U36)/U36 -> -12.60% | W36: =SUM(W3:W34) -> 7259 | X36: =SUM(X3:X34) -> 8016 | Y36: =(W36-X36)/X36 -> -9.44% | Z36: =SUM(Z3:Z34) -> 7953 | AA36: =SUM(AA3:AA34) -> 8066 | AB36: =(Z36-AA36)/AA36 -> -1.40% | AC36: =SUM(AC3:AC35) -> 6889 | AD36: =SUM(AD3:AD35) -> 7323 | AE36: =(AC36-AD36)/AD36 -> -5.93% | AF36: =SUM(AF3:AF35) -> 7789 | AG36: =SUM(AG3:AG34) -> 8325 | AH36: =(AF36-AG36)/AG36 -> -6.44% | AI36: =SUM(AI3:AI35) -> 8134 | AJ36: =SUM(AJ3:AJ34) -> 8301 | AK36: =(AI36-AJ36)/AJ36 -> -2.01% | AL36: =SUM(AL3:AL35) -> 77409 | AM36: =SUM(AM3:AM35) -> 91602 | AN36: =(AL36-AM36)/AM36 -> -15.49%

Sheet Sheet2 (hidden)
A1: 一、全院2020年12月门急诊完成情况
A2: 科室 | B2: 1月 | C2: 2019-01-01 | D2: 同期比较 | E2: 2月 | F2: 2019-02-01 | G2: 同期比较 | H2: 3月 | I2: 2019-03-01 | J2: 同期比较 | K2: 4月 | L2: 2019-04-01 | M2: 同期比较 | N2: 5月 | O2: 2019-05-01 | P2: 同期比较 | Q2: 6月 | R2: 2019-06-01 | S2: 同期比较 | T2: 7月 | U2: 2019-07-01 | V2: 同期比较 | W2: 8月 | X2: 2019-08-01 | Y2: 同期比较 | Z2: 9月 | AA2: 2019-09-01 | AB2: 同期比较 | AC2: 10月 | AD2: 2019-10-01 | AE2: 同期比较 | AF2: 11月 | AG2: 2019-11-01 | AH2: 同期比较 | AI2: 12月 | AJ2: 2019-12-01 | AK2: 同期比较 | AL2: 2020年 全年完成 | AM2: 2019年 累计完成 | AN2: 累计比较
A3: 感染科 | B3: 6730 | C3: 10920 | D3: -38.37% | E3: 2995 | F3: 4474 | G3: -33.06% | H3: 1896 | I3: 5302 | J3: -64.24% | K3: 4733 | L3: 5252 | M3: -9.88% | N3: 11115 | O3: 4308 | P3: 158.01% | Q3: 13069 | R3: 4150 | S3: 214.92% | T3: 13613 | U3: 4050 | V3: 236.12% | W3: 13330 | X3: 5162 | Y3: 158.23% | Z3: 12305 | AA3: 5044 | AB3: 143.95% | AC3: 10517 | AD3: 4111 | AE3: 155.83% | AF3: 17318 | AG3: 4994 | AH3: 246.78% | AI3: 16819 | AJ3: 9367 | AK3: 79.56% | AL3: 124440 | AM3: 67134 | AN3: 85.36%
A4: 放射治疗科 | B4: 509 | C4: 373 | D4: 36.46% | E4: 366 | F4: 266 | G4: 37.59% | H4: 552 | I4: 359 | J4: 53.76% | K4: 685 | L4: 455 | M4: 50.55% | N4: 616 | O4: 462 | P4: 33.33% | Q4: 662 | R4: 435 | S4: 52.18% | T4: 834 | U4: 558 | V4: 49.46% | W4: 799 | X4: 541 | Y4: 47.69% | Z4: 911 | AA4: 606 | AB4: 50.33% | AC4: 851 | AD4: 633 | AE4: 34.44% | AF4: 906 | AG4: 680 | AH4: 33.24% | AI4: 925 | AJ4: 737 | AK4: 25.51% | AL4: 8616 | AM4: 6105 | AN4: 41.13%
A5: 临床心理科 | B5: 4041 | C5: 3114 | D5: 29.77% | E5: 1929 | F5: 2306 | G5: -16.35% | H5: 3373 | I5: 3312 | J5: 1.84% | K5: 3435 | L5: 3534 | M5: -2.80% | N5: 3965 | O5: 3556 | P5: 11.50% | Q5: 4067 | R5: 3261 | S5: 24.72% | T5: 4685 | U5: 3600 | V5: 30.14% | W5: 4725 | X5: 3808 | Y5: 24.08% | Z5: 5849 | AA5: 4024 | AB5: 45.35% | AC5: 5472 | AD5: 4033 | AE5: 35.68% | AF5: 6789 | AG5: 4918 | AH5: 38.04% | AI5: 8190 | AJ5: 5592 | AK5: 46.46% | AL5: 56520 | AM5: 45058 | AN5: 25.44%
A6: 肺部肿瘤外科 | B6: 1090 | C6: 1289 | D6: -15.44% | E6: 463 | F6: 980 | G6: -52.76% | H6: 1130 | I6: 1387 | J6: -18.53% | K6: 1460 | L6: 1402 | M6: 4.14% | N6: 1433 | O6: 1446 | P6: -0.90% | Q6: 1538 | R6: 1333 | S6: 15.38% | T6: 1846 | U6: 1498 | V6: 23.23% | W6: 1763 | X6: 1367 | Y6: 28.97% | Z6: 1832 | AA6: 1412 | AB6: 29.75% | AC6: 1744 | AD6: 1411 | AE6: 23.60% | AF6: 2377 | AG6: 1425 | AH6: 66.81% | AI6: 2807 | AJ6: 1708 | AK6: 64.34% | AL6: 19483 | AM6: 16658 | AN6: 16.96%
A7: 麻醉科 | B7: 2469 | C7: 2821 | D7: -12.48% | E7: 1012 | F7: 2127 | G7: -52.42% | H7: 2295 | I7: 3098 | J7: -25.92% | K7: 3031 | L7: 2969 | M7: 2.09% | N7: 3143 | O7: 3109 | P7: 1.09% | Q7: 3299 | R7: 2829 | S7: 16.61% | T7: 3766 | U7: 3210 | V7: 17.32% | W7: 3294 | X7: 3237 | Y7: 1.76% | Z7: 3657 | AA7: 3343 | AB7: 9.39% | AC7: 3054 | AD7: 3279 | AE7: -6.86% | AF7: 3427 | AG7: 3491 | AH7: -1.83% | AI7: 3975 | AJ7: 3608 | AK7: 10.17% | AL7: 36422 | AM7: 37121 | AN7: -1.88%
A8: 肿瘤内科 | B8: 3169 | C8: 3788 | D8: -16.34% | E8: 1852 | F8: 3148 | G8: -41.17% | H8: 3512 | I8: 3984 | J8: -11.85% | K8: 3694 | L8: 4078 | M8: -9.42% | N8: 3868 | O8: 4237 | P8: -8.71% | Q8: 4157 | R8: 4049 | S8: 2.67% | T8: 4477 | U8: 4339 | V8: 3.18% | W8: 4264 | X8: 4562 | Y8: -6.53% | Z8: 4743 | AA8: 4697 | AB8: 0.98% | AC8: 3949 | AD8: 4416 | AE8: -10.58% | AF8: 4739 | AG8: 4622 | AH8: 2.53% | AI8: 5238 | AJ8: 4759 | AK8: 10.07% | AL8: 47662 | AM8: 50679 | AN8: -5.95%
A9: 心胸外科 | B9: 1003 | C9: 1351 | D9: -25.76% | E9: 319 | F9: 1075 | G9: -70.33% | H9: 891 | I9: 1417 | J9: -37.12% | K9: 1091 | L9: 1373 | M9: -20.54% | N9: 1089 | O9: 1236 | P9: -11.89% | Q9: 1230 | R9: 1124 | S9: 9.43% | T9: 1363 | U9: 1283 | V9: 6.24% | W9: 1281 | X9: 1248 | Y9: 2.64% | Z9: 1342 | AA9: 1228 | AB9: 9.28% | AC9: 1287 | AD9: 1141 | AE9: 12.80% | AF9: 1491 | AG9: 1373 | AH9: 8.59% | AI9: 1817 | AJ9: 1445 | AK9: 25.74% | AL9: 14204 | AM9: 15294 | AN9: -7.13%
A10: 变态反应科 | B10: 329 | C10: 556 | D10: -40.83% | E10: 89 | F10: 485 | G10: -81.65% | H10: 263 | I10: 815 | J10: -67.73% | K10: 418 | L10: 952 | M10: -56.09% | N10: 435 | O10: 768 | P10: -43.36% | Q10: 518 | R10: 686 | S10: -24.49% | T10: 626 | U10: 698 | V10: -10.32% | W10: 831 | X10: 1142 | Y10: -27.23% | Z10: 1441 | AA10: 1287 | AB10: 11.97% | AC10: 960 | AD10: 746 | AE10: 28.69% | AF10: 1266 | AG10: 642 | AH10: 97.20% | AI10: 1430 | AJ10: 589 | AK10: 142.78% | AL10: 8606 | AM10: 9366 | AN10: -8.11%
A11: 心血管外科 | B11: 286 | C11: 432 | D11: -33.80% | E11: 161 | F11: 297 | G11: -45.79% | H11: 402 | I11: 357 | J11: 12.61% | K11: 434 | L11: 372 | M11: 16.67% | N11: 283 | O11: 405 | P11: -30.12% | Q11: 269 | R11: 320 | S11: -15.94% | T11: 332 | U11: 372 | V11: -10.75% | W11: 305 | X11: 347 | Y11: -12.10% | Z11: 367 | AA11: 349 | AB11: 5.16% | AC11: 324 | AD11: 340 | AE11: -4.71% | AF11: 369 | AG11: 346 | AH11: 6.65% | AI11: 400 | AJ11: 363 | AK11: 10.19% | AL11: 3932 | AM11: 4300 | AN11: -8.56%
A12: 普通外科 | B12: 8960 | C12: 11089 | D12: -19.20% | E12: 3089 | F12: 8969 | G12: -65.56% | H12: 7502 | I12: 11911 | J12: -37.02% | K12: 9029 | L12: 12168 | M12: -25.80% | N12: 10513 | O12: 12816 | P12: -17.97% | Q12: 11107 | R12: 11531 | S12: -3.68% | T12: 12825 | U12: 12182 | V12: 5.28% | W12: 12585 | X12: 12298 | Y12: 2.33% | Z12: 13975 | AA12: 12337 | AB12: 13.28% | AC12: 12390 | AD12: 12633 | AE12: -1.92% | AF12: 14370 | AG12: 13651 | AH12: 5.27% | AI12: 16043 | AJ12: 14491 | AK12: 10.71% | AL12: 132388 | AM12: 146076 | AN12: -9.37%
A13: 肾脏内科 | B13: 11391 | C13: 13419 | D13: -15.11% | E13: 7876 | F13: 10832 | G13: -27.29% | H13: 10305 | I13: 13538 | J13: -23.88% | K13: 10069 | L13: 13157 | M13: -23.47% | N13: 11386 | O13: 13925 | P13: -18.23% | Q13: 11872 | R13: 13669 | S13: -13.15% | T13: 13675 | U13: 13511 | V13: 1.21% | W13: 12685 | X13: 13713 | Y13: -7.50% | Z13: 12956 | AA13: 13079 | AB13: -0.94% | AC13: 12385 | AD13: 12736 | AE13: -2.76% | AF13: 13565 | AG13: 13681 | AH13: -0.85% | AI13: 15181 | AJ13: 14756 | AK13: 2.88% | AL13: 143346 | AM13: 160016 | AN13: -10.42%
A14: 神经外科 | B14: 1960 | C14: 2453 | D14: -20.10% | E14: 823 | F14: 2023 | G14: -59.32% | H14: 1665 | I14: 2830 | J14: -41.17% | K14: 2069 | L14: 2941 | M14: -29.65% | N14: 2365 | O14: 2980 | P14: -20.64% | Q14: 2220 | R14: 2683 | S14: -17.26% | T14: 2700 | U14: 2607 | V14: 3.57% | W14: 2698 | X14: 2770 | Y14: -2.60% | Z14: 3046 | AA14: 2771 | AB14: 9.92% | AC14: 2854 | AD14: 2763 | AE14: 3.29% | AF14: 3051 | AG14: 2704 | AH14: 12.83% | AI14: 3391 | AJ14: 2934 | AK14: 15.58% | AL14: 28842 | AM14: 32459 | AN14: -11.14%
A15: 血液内科 | B15: 3151 | C15: 3893 | D15: -19.06% | E15: 1213 | F15: 2774 | G15: -56.27% | H15: 2264 | I15: 4037 | J15: -43.92% | K15: 2742 | L15: 4130 | M15: -33.61% | N15: 3139 | O15: 4167 | P15: -24.67% | Q15: 3362 | R15: 4004 | S15: -16.03% | T15: 3977 | U15: 4289 | V15: -7.27% | W15: 3856 | X15: 4097 | Y15: -5.88% | Z15: 4453 | AA15: 4114 | AB15: 8.24% | AC15: 3658 | AD15: 3751 | AE15: -2.48% | AF15: 4182 | AG15: 3974 | AH15: 5.23% | AI15: 4737 | AJ15: 4380 | AK15: 8.15% | AL15: 40734 | AM15: 47610 | AN15: -14.44%
A16: 泌尿外科 | B16: 4481 | C16: 6388 | D16: -29.85% | E16: 1716 | F16: 4884 | G16: -64.86% | H16: 3908 | I16: 6698 | J16: -41.65% | K16: 4700 | L16: 6437 | M16: -26.98% | N16: 5218 | O16: 6555 | P16: -20.40% | Q16: 5471 | R16: 5667 | S16: -3.46% | T16: 6152 | U16: 6319 | V16: -2.64% | W16: 5921 | X16: 6384 | Y16: -7.25% | Z16: 6177 | AA16: 6220 | AB16: -0.69% | AC16: 5351 | AD16: 5635 | AE16: -5.04% | AF16: 6543 | AG16: 6458 | AH16: 1.32% | AI16: 7615 | AJ16: 6802 | AK16: 11.95% | AL16: 63253 | AM16: 74447 | AN16: -15.04%
A17: 妇产科 | B17: 12473 | C17: 17859 | D17: -30.16% | E17: 4832 | F17: 13049 | G17: -62.97% | H17: 10375 | I17: 19902 | J17: -47.87% | K17: 13237 | L17: 19904 | M17: -33.50% | N17: 15513 | O17: 19367 | P17: -19.90% | Q17: 16038 | R17: 18002 | S17: -10.91% | T17: 18912 | U17: 19705 | V17: -4.02% | W17: 19253 | X17: 19131 | Y17: 0.64% | Z17: 19048 | AA17: 18781 | AB17: 1.42% | AC17: 16563 | AD17: 17037 | AE17: -2.78% | AF17: 19881 | AG17: 18659 | AH17: 6.55% | AI17: 21330 | AJ17: 19743 | AK17: 8.04% | AL17: 187455 | AM17: 221139 | AN17: -15.23%
A18: 消化内科 | B18: 13686 | C18: 17448 | D18: -21.56% | E18: 4515 | F18: 13038 | G18: -65.37% | H18: 11258 | I18: 18367 | J18: -38.71% | K18: 13688 | L18: 18231 | M18: -24.92% | N18: 15357 | O18: 18221 | P18: -15.72% | Q18: 14914 | R18: 17731 | S18: -15.89% | T18: 16916 | U18: 18989 | V18: -10.92% | W18: 15455 | X18: 19168 | Y18: -19.37% | Z18: 17373 | AA18: 18318 | AB18: -5.16% | AC18: 15576 | AD18: 16824 | AE18: -7.42% | AF18: 19286 | AG18: 19833 | AH18: -2.76% | AI18: 22016 | AJ18: 22342 | AK18: -1.46% | AL18: 180040 | AM18: 218510 | AN18: -17.61%
A19: 皮肤性病科 | B19: 10378 | C19: 12491 | D19: -16.92% | E19: 2724 | F19: 10447 | G19: -73.93% | H19: 7626 | I19: 14260 | J19: -46.52% | K19: 9496 | L19: 13455 | M19: -29.42% | N19: 11562 | O19: 14914 | P19: -22.48% | Q19: 11304 | R19: 13911 | S19: -18.74% | T19: 13284 | U19: 14698 | V19: -9.62% | W19: 13606 | X19: 15349 | Y19: -11.36% | Z19: 13415 | AA19: 15060 | AB19: -10.92% | AC19: 11771 | AD19: 13822 | AE19: -14.84% | AF19: 12953 | AG19: 14811 | AH19: -12.54% | AI19: 15691 | AJ19: 15459 | AK19: 1.50% | AL19: 133810 | AM19: 168677 | AN19: -20.67%
A20: 眼科 | B20: 4441 | C20: 5885 | D20: -24.54% | E20: 1238 | F20: 4710 | G20: -73.72% | H20: 3536 | I20: 7619 | J20: -53.59% | K20: 4666 | L20: 7275 | M20: -35.86% | N20: 5430 | O20: 7313 | P20: -25.75% | Q20: 5531 | R20: 6683 | S20: -17.24% | T20: 6338 | U20: 7023 | V20: -9.75% | W20: 6696 | X20: 7680 | Y20: -12.81% | Z20: 7616 | AA20: 7540 | AB20: 1.01% | AC20: 6007 | AD20: 6636 | AE20: -9.48% | AF20: 6740 | AG20: 7233 | AH20: -6.82% | AI20: 7500 | AJ20: 7589 | AK20: -1.17% | AL20: 65739 | AM20: 83186 | AN20: -20.97%
A21: 骨外科 | B21: 5578 | C21: 7590 | D21: -26.51% | E21: 1491 | F21: 6943 | G21: -78.53% | H21: 4923 | I21: 9714 | J21: -49.32% | K21: 6020 | L21: 9119 | M21: -33.98% | N21: 7584 | O21: 9933 | P21: -23.65% | Q21: 7466 | R21: 9053 | S21: -17.53% | T21: 8361 | U21: 9331 | V21: -10.40% | W21: 8525 | X21: 9269 | Y21: -8.03% | Z21: 8462 | AA21: 9357 | AB21: -9.57% | AC21: 7679 | AD21: 8737 | AE21: -12.11% | AF21: 8593 | AG21: 9396 | AH21: -8.55% | AI21: 9338 | AJ21: 9454 | AK21: -1.23% | AL21: 84020 | AM21: 107896 | AN21: -22.13%
A22: 心血管内科 | B22: 17504 | C22: 21100 | D22: -17.04% | E22: 8290 | F22: 16195 | G22: -48.81% | H22: 14439 | I22: 22275 | J22: -35.18% | K22: 14201 | L22: 22117 | M22: -35.79% | N22: 15011 | O22: 20149 | P22: -25.50% | Q22: 14403 | R22: 19350 | S22: -25.57% | T22: 16422 | U22: 20890 | V22: -21.39% | W22: 15947 | X22: 20936 | Y22: -23.83% | Z22: 17728 | AA22: 20755 | AB22: -14.58% | AC22: 17266 | AD22: 20717 | AE22: -16.66% | AF22: 20478 | AG22: 23050 | AH22: -11.16% | AI22: 25284 | AJ22: 26446 | AK22: -4.39% | AL22: 196973 | AM22: 253980 | AN22: -22.45%
A23: 风湿免疫科 | B23: 6238 | C23: 8334 | D23: -25.15% | E23: 2825 | F23: 6125 | G23: -53.88% | H23: 5417 | I23: 9097 | J23: -40.45% | K23: 6142 | L23: 8739 | M23: -29.72% | N23: 7191 | O23: 9401 | P23: -23.51% | Q23: 6969 | R23: 8620 | S23: -19.15% | T23: 7813 | U23: 9272 | V23: -15.74% | W23: 7289 | X23: 9243 | Y23: -21.14% | Z23: 7282 | AA23: 8764 | AB23: -16.91% | AC23: 6582 | AD23: 8211 | AE23: -19.84% | AF23: 7610 | AG23: 8826 | AH23: -13.78% | AI23: 8527 | AJ23: 8911 | AK23: -4.31% | AL23: 79885 | AM23: 103543 | AN23: -22.85%
A24: 耳鼻咽喉科 | B24: 9066 | C24: 11760 | D24: -22.91% | E24: 2427 | F24: 9395 | G24: -74.17% | H24: 7034 | I24: 13405 | J24: -47.53% | K24: 8196 | L24: 12854 | M24: -36.24% | N24: 8892 | O24: 12831 | P24: -30.70% | Q24: 8294 | R24: 11154 | S24: -25.64% | T24: 9812 | U24: 11181 | V24: -12.24% | W24: 11061 | X24: 13216 | Y24: -16.31% | Z24: 13462 | AA24: 13346 | AB24: 0.87% | AC24: 10171 | AD24: 11476 | AE24: -11.37% | AF24: 11049 | AG24: 12615 | AH24: -12.41% | AI24: 12478 | AJ24: 14196 | AK24: -12.10% | AL24: 111942 | AM24: 147429 | AN24: -24.07%
A25: 保健医疗部 | B25: 5232 | C25: 7618 | D25: -31.32% | E25: 1946 | F25: 4508 | G25: -56.83% | H25: 2493 | I25: 7073 | J25: -64.75% | K25: 4768 | L25: 7277 | M25: -34.48% | N25: 3972 | O25: 6632 | P25: -40.11% | Q25: 4603 | R25: 9288 | S25: -50.44% | T25: 5250 | U25: 12225 | V25: -57.06% | W25: 4999 | X25: 11451 | Y25: -56.34% | Z25: 8912 | AA25: 12561 | AB25: -29.05% | AC25: 10525 | AD25: 10405 | AE25: 1.15% | AF25: 13909 | AG25: 11557 | AH25: 20.35% | AI25: 14746 | AJ25: 8356 | AK25: 76.47% | AL25: 81355 | AM25: 108951 | AN25: -25.33%
A26: 呼吸内科 | B26: 8730 | C26: 12924 | D26: -32.45% | E26: 3885 | F26: 9517 | G26: -59.18% | H26: 5997 | I26: 12290 | J26: -51.20% | K26: 7430 | L26: 12301 | M26: -39.60% | N26: 8329 | O26: 12436 | P26: -33.03% | Q26: 8356 | R26: 11303 | S26: -26.07% | T26: 9518 | U26: 11892 | V26: -19.96% | W26: 9443 | X26: 12425 | Y26: -24.00% | Z26: 10491 | AA26: 11785 | AB26: -10.98% | AC26: 9414 | AD26: 11158 | AE26: -15.63% | AF26: 11272 | AG26: 12077 | AH26: -6.67% | AI26: 12484 | AJ26: 12172 | AK26: 2.56% | AL26: 105349 | AM26: 142280 | AN26: -25.96%
A27: 口腔科 | B27: 4002 | C27: 4995 | D27: -19.88% | E27: 791 | F27: 4266 | G27: -81.46% | H27: 2195 | I27: 6018 | J27: -63.53% | K27: 2922 | L27: 5694 | M27: -48.68% | N27: 3632 | O27: 5842 | P27: -37.83% | Q27: 4328 | R27: 5155 | S27: -16.04% | T27: 5049 | U27: 5535 | V27: -8.78% | W27: 4947 | X27: 5641 | Y27: -12.30% | Z27: 4826 | AA27: 5238 | AB27: -7.87% | AC27: 4470 | AD27: 5235 | AE27: -14.61% | AF27: 5062 | AG27: 6069 | AH27: -16.59% | AI27: 5549 | AJ27: 6195 | AK27: -10.43% | AL27: 47773 | AM27: 65883 | AN27: -27.49%
A28: 内分泌代谢科 | B28: 21748 | C28: 26951 | D28: -19.31% | E28: 8534 | F28: 20824 | G28: -59.02% | H28: 12477 | I28: 27898 | J28: -55.28% | K28: 15859 | L28: 27393 | M28: -42.11% | N28: 17299 | O28: 28453 | P28: -39.20% | Q28: 19261 | R28: 26543 | S28: -27.43% | T28: 22510 | U28: 28471 | V28: -20.94% | W28: 21757 | X28: 28737 | Y28: -24.29% | Z28: 23089 | AA28: 26988 | AB28: -14.45% | AC28: 20352 | AD28: 25655 | AE28: -20.67% | AF28: 23963 | AG28: 28421 | AH28: -15.69% | AI28: 28322 | AJ28: 30758 | AK28: -7.92% | AL28: 235171 | AM28: 327092 | AN28: -28.10%
A29: 核医学科 | B29: 5271 | C29: 7439 | D29: -29.14% | E29: 1065 | F29: 5072 | G29: -79.00% | H29: 3824 | I29: 8234 | J29: -53.56% | K29: 4605 | L29: 7815 | M29: -41.07% | N29: 5396 | O29: 8001 | P29: -32.56% | Q29: 5384 | R29: 7227 | S29: -25.50% | T29: 6438 | U29: 7635 | V29: -15.68% | W29: 5893 | X29: 7993 | Y29: -26.27% | Z29: 6117 | AA29: 7806 | AB29: -21.64% | AC29: 5839 | AD29: 7450 | AE29: -21.62% | AF29: 6505 | AG29: 8246 | AH29: -21.11% | AI29: 8640 | AJ29: 10475 | AK29: -17.52% | AL29: 64977 | AM29: 93393 | AN29: -30.43%
A30: 神经内科 | B30: 21115 | C30: 28510 | D30: -25.94% | E30: 10037 | F30: 23145 | G30: -56.63% | H30: 16122 | I30: 29626 | J30: -45.58% | K30: 17497 | L30: 29628 | M30: -40.94% | N30: 18335 | O30: 29696 | P30: -38.26% | Q30: 18812 | R30: 27707 | S30: -32.10% | T30: 20652 | U30: 29040 | V30: -28.88% | W30: 20193 | X30: 30011 | Y30: -32.71% | Z30: 20514 | AA30: 28653 | AB30: -28.41% | AC30: 19993 | AD30: 26996 | AE30: -25.94% | AF30: 21766 | AG30: 28956 | AH30: -24.83% | AI30: 24180 | AJ30: 29836 | AK30: -18.96% | AL30: 229216 | AM30: 341804 | AN30: -32.94%
A31: 康复医学科 | B31: 327 | C31: 494 | D31: -33.81% | E31: 99 | F31: 345 | G31: -71.30% | H31: 225 | I31: 573 | J31: -60.73% | K31: 290 | L31: 489 | M31: -40.70% | N31: 362 | O31: 524 | P31: -30.92% | Q31: 311 | R31: 444 | S31: -29.95% | T31: 429 | U31: 532 | V31: -19.36% | W31: 392 | X31: 561 | Y31: -30.12% | Z31: 439 | AA31: 466 | AB31: -5.79% | AC31: 315 | AD31: 448 | AE31: -29.69% | AF31: 340 | AG31: 489 | AH31: -30.47% | AI31: 407 | AJ31: 561 | AK31: -27.45% | AL31: 3936 | AM31: 5926 | AN31: -33.58%
A32: 小儿外科 | B32: 349 | C32: 411 | D32: -15.09% | E32: 25 | F32: 333 | G32: -92.49% | H32: 126 | I32: 466 | J32: -72.96% | K32: 190 | L32: 447 | M32: -57.49% | N32: 303 | O32: 563 | P32: -46.18% | Q32: 280 | R32: 547 | S32: -48.81% | T32: 510 | U32: 805 | V32: -36.65% | W32: 586 | X32: 818 | Y32: -28.36% | Z32: 447 | AA32: 606 | AB32: -26.24% | AC32: 402 | AD32: 435 | AE32: -7.59% | AF32: 401 | AG32: 436 | AH32: -8.03% | AI32: 482 | AJ32: 417 | AK32: 15.59% | AL32: 4101 | AM32: 6284 | AN32: -34.74%
A33: 急诊医学科 | B33: 14285 | C33: 16872 | D33: -15.33% | E33: 4875 | F33: 12978 | G33: -62.44% | H33: 7060 | I33: 15357 | J33: -54.03% | K33: 6667 | L33: 15830 | M33: -57.88% | N33: 7870 | O33: 15273 | P33: -48.47% | Q33: 7827 | R33: 14226 | S33: -44.98% | T33: 9718 | U33: 13684 | V33: -28.98% | W33: 10762 | X33: 15419 | Y33: -30.20% | Z33: 10106 | AA33: 15500 | AB33: -34.80% | AC33: 9367 | AD33: 15029 | AE33: -37.67% | AF33: 11075 | AG33: 15501 | AH33: -28.55% | AI33: 11898 | AJ33: 18463 | AK33: -35.56% | AL33: 111510 | AM33: 184132 | AN33: -39.44%
A34: 中医科 | B34: 10661 | C34: 15098 | D34: -29.39% | E34: 3517 | F34: 11794 | G34: -70.18% | H34: 6250 | I34: 16179 | J34: -61.37% | K34: 7957 | L34: 15899 | M34: -49.95% | N34: 9456 | O34: 16558 | P34: -42.89% | Q34: 9796 | R34: 15445 | S34: -36.57% | T34: 9437 | U34: 15042 | V34: -37.26% | W34: 9108 | X34: 16078 | Y34: -43.35% | Z34: 9888 | AA34: 15715 | AB34: -37.08% | AC34: 8641 | AD34: 14624 | AE34: -40.91% | AF34: 10660 | AG34: 16198 | AH34: -34.19% | AI34: 11607 | AJ34: 17266 | AK34: -32.78% | AL34: 106978 | AM34: 185896 | AN34: -42.45%
A35: 重症医学科 | B35: 2478 | C35: 4683 | D35: -47.09% | E35: 455 | F35: 3024 | G35: -84.95% | H35: 31 | I35: 3837 | J35: -99.19% | K35: 2483 | L35: 4907 | M35: -49.40% | N35: 3654 | O35: 4120 | P35: -11.31% | Q35: 968 | R35: 3809 | S35: -74.59% | T35: 25 | U35: 4503 | V35: -99.44% | W35: 64 | X35: 4773 | Y35: -98.66% | Z35: 1174 | AA35: 3888 | AB35: -69.80% | AC35: 1350 | AD35: 3619 | AE35: -62.70% | AF35: 1496 | AG35: 4363 | AH35: -65.71% | AI35: 3831 | AJ35: 4575 | AK35: -16.26% | AL35: 18009 | AM35: 50101 | AN35: -64.05%
A36: 儿科 | B36: 11613 | C36: 23527 | D36: -50.64% | E36: 933 | F36: 10995 | G36: -91.51% | H36: 1799 | I36: 17063 | J36: -89.46% | K36: 2142 | L36: 19985 | M36: -89.28% | N36: 3162 | O36: 16018 | P36: -80.26% | Q36: 3325 | R36: 15072 | S36: -77.94% | T36: 4618 | U36: 13460 | V36: -65.69% | W36: 5354 | X36: 13525 | Y36: -60.41% | Z36: 7081 | AA36: 17739 | AB36: -60.08% | AC36: 8039 | AD36: 17835 | AE36: -54.93% | AF36: 9182 | AG36: 21803 | AH36: -57.89% | AI36: 9574 | AJ36: 29526 | AK36: -67.57% | AL36: 66822 | AM36: 216548 | AN36: -69.14%
A37: 普内门诊 | B37: 83 | C37: 104 | D37: -20.19% | E37: 45 | F37: 112 | G37: -59.82% | H37: 96 | I37: 228 | J37: -57.89% | K37: 89 | L37: 236 | M37: -62.29% | N37: 75 | O37: 223 | P37: -66.37% | Q37: 130 | R37: 182 | S37: -28.57% | T37: 265 | U37: 208 | V37: 27.40% | W37: 227 | X37: 204 | Y37: 11.27% | Z37: 235 | AA37: 177 | AB37: 32.77% | AC37: 195 | AD37: 170 | AE37: 14.71% | AF37: 230 | AG37: 153 | AH37: 50.33% | AI37: 265 | AJ37: 131 | AK37: 102.29% | AL37: 1935 | AM37: 2128 | AN37: -9.07%
A38: 健康管理中心 | B38: 4735 | C38: 6938 | D38: -31.75% | E38: 179 | F38: 5217 | G38: -96.57% | H38: 1436 | I38: 6453 | J38: -77.75% | K38: 3806 | L38: 5418 | M38: -29.75% | N38: 4564 | O38: 5134 | P38: -11.10% | Q38: 5080 | R38: 5191 | S38: -2.14% | T38: 7199 | U38: 5714 | V38: 25.99% | W38: 6833 | X38: 6053 | Y38: 12.89% | Z38: 7749 | AA38: 5282 | AB38: 46.71% | AC38: 5680 | AD38: 4833 | AE38: 17.53% | AF38: 7289 | AG38: 6270 | AH38: 16.25% | AI38: 7562 | AJ38: 6668 | AK38: 13.41% | AL38: 62112 | AM38: 69171 | AN38: -10.21%
A39: 其他 | B39: 3232 | C39: 1118 | D39: 189.09% | E39: 290 | F39: 680 | G39: -57.35% | H39: 597 | I39: 1103 | J39: -45.87% | K39: 2741 | L39: 1294 | M39: 111.82% | N39: 1388 | O39: 1113 | P39: 24.71% | Q39: 527 | R39: 1044 | S39: -49.52% | T39: 801 | U39: 1259 | V39: -36.38% | W39: 1517 | X39: 1329 | Y39: 14.15% | Z39: 1750 | AA39: 1380 | AB39: 26.81% | AC39: 1644 | AD39: 1185 | AE39: 38.73% | AF39: 2074 | AG39: 1322 | AH39: 56.88% | AI39: 3168 | AJ39: 2238 | AK39: 41.55% | AL39: 19729 | AM39: 15065 | AN39: 30.96%
A40: 全 院 | B40: 242794 | C40: 322035 | D40: -24.61% | E40: 88921 | F40: 237352 | G40: -62.54% | H40: 165294 | I40: 326082 | J40: -49.31% | K40: 202682 | L40: 325527 | M40: -37.74% | N40: 232905 | O40: 322685 | P40: -27.82% | Q40: 236748 | R40: 303428 | S40: -21.98% | T40: 271148 | U40: 319610 | V40: -15.16% | W40: 268244 | X40: 329686 | Y40: -18.64% | Z40: 290258 | AA40: 326216 | AB40: -11.02% | AC40: 262637 | AD40: 306165 | AE40: -14.22% | AF40: 312207 | AG40: 339243 | AH40: -7.97% | AI40: 353447 | AJ40: 373308 | AK40: -5.32% | AL40: 2927285 | AM40: 3831337 | AN40: -23.60%

Sheet Sheet1 (hidden)
B1: 天津医科大学总医院二〇二二年人员补充计划表
A2: 科室 | B2: 岗位性质 | C2: 岗位类别 | D2: 计划人数 | E2: 学科专业 | F2: 学历、学位 | G2: 年龄 | H2: 其他要求 | I2: 笔试科目 | J2: 科室补充意见+J:M | K2: 人事处结合主要领导意见 | L2: 2021年辞职或调动 | M2: 2022年退休 | N2: 2021年计划 | O2: 2021年新职工 | P2: 2021年未用指标 | Q2: 2022年计划 | R2: 实际纯增 | S2: 床位数 | T2: 科室应配置人员总数（床位数*1.6）依据 | U2: 科室总人数 | V2: 医师 人数 | W2: 护理人数 | X2: 技研 | Y2: 其他 | Z2: 全年诊疗人数 | AA2: 出院人数 | AB2: 平均病床周转次数 | AC2: 实际病床使用率 % | AD2: 出院者平均住院日 | AE2: 人均门诊量 | AF2: 人均出院数 | AG2: 按床护比（1:0.8） 护理人数 | AH2: 护理人数 （85%或65%） | AI2: 按医护比 （0.8:1） 医师人数 | AJ2: 医师人数 （85%或65%） | AK2: 医师差额 | AL2: 绩效 水平 | AM2: 科室名称
A3: 儿科 | B3: 事业编 | C3: 医疗 | D3: 1 | E3: 儿科学/内科学或临床医学专业（八年制） | F3: 研究生、博士 | G3: ≤45周岁 | I3: 儿科学 | L3: 0 | M3: 0 | N3: 0 | O3: 0 | P3: 0 | Q3: 医2 | R3: 医2 | S3: =VLOOKUP(A:A,Sheet6!A:C,3,0) -> 80 | T3: =S3*1.6 -> 128 | U3: 116 | V3: 40 | W3: 76 | X3: 0 | Y3: 0 | Z3: =VLOOKUP(A:A,Sheet2!A:AL,38,0) -> 66822 | AA3: =VLOOKUP(A:A,Sheet4!A:AL,38,0) -> 1791 | AC3: =VLOOKUP(A:A,Sheet3!A:AS,45,0) -> 73.1% | AD3: =VLOOKUP(A:A,Sheet5!A:AR,44,0) -> 8 | AE3: =Z3/V3 -> 1670.55
B4: 事业编 | C4: 医疗 | D4: 1 | E4: 儿科学/内科学或临床医学（七年制或八年制）专业 | F4: 研究生、硕士及以上 | G4: ≤35周岁 | I4: 儿科学 | S4: =VLOOKUP(A:A,Sheet6!A:C,3,0) ->  | T4: =S4*1.6 -> 
A5: 神经内科 | B5: 事业编 | C5: 医疗 | D5: 3 | E5: 神经病学或临床医学专业（八年制） | F5: 研究生、博士或者博士后 | G5: ≤45周岁 | H5: 拟从事临床医疗岗位 | L5: 医1（讲师） | M5: 0 | N5: 医3技1 | O5: 医3技1 | P5: 0 | Q5: 医3 | R5: 医2 | S5: =VLOOKUP(A:A,Sheet6!A:C,3,0) -> 168 | T5: 268.8 | U5: 178 | V5: 75 | W5: 91 | X5: 11 | Y5: 1 | Z5: =VLOOKUP(A:A,Sheet2!A:AL,38,0) -> 229216 | AA5: =VLOOKUP(A:A,Sheet4!A:AL,38,0) -> 4347 | AC5: =VLOOKUP(A:A,Sheet3!A:AS,45,0) -> 88.0% | AD5: =VLOOKUP(A:A,Sheet5!A:AR,44,0) -> 12.3 | AE5: =Z5/V5 -> 3056.213333
A6: 过敏性疾病科 | B6: 事业编 | C6: 医疗 | D6: 1 | E6: 内科学及相关专业 | F6: 硕士研究生 | G6: ≤35周岁 | H6: 专硕已规培 | I6: 普通内科 | L6: 0 | M6: 0 | N6: 医1 | O6: 医1 | P6: 0 | Q6: 医1 | R6: 医1 | S6: =VLOOKUP(A:A,Sheet6!A:C,3,0) ->  | U6: 5 | V6: 3 | W6: 2 | X6: 0 | Y6: 0 | Z6: =VLOOKUP(A:A,Sheet2!A:AL,38,0) ->  | AA6: =VLOOKUP(A:A,Sheet4!A:AL,38,0) ->  | AC6: =VLOOKUP(A:A,Sheet3!A:AS,45,0) ->  | AD6: =VLOOKUP(A:A,Sheet5!A:AR,44,0) -> 
A7: 康复医学科 | B7: 事业编 | C7: 医疗 | D7: 2 | E7: 康复医学与理疗学/临床医学 | F7: 研究生、硕士及以上 | G7: ≤35周岁 | H7: 全日制研究生学历，具有执业医师资质，本科为临床医学专业，近3年以第一作者身份发表中华或者SCI论文至少2篇 | I7: 康复医学与理疗学 | L7: 医1（医师） | M7: 0 | N7: 医3技2 | O7: 技2 | P7: 医3 | Q7: 医2技3 | R7: 技3 | S7: =VLOOKUP(A:A,Sheet6!A:C,3,0) -> 54 | T7: 86.4 | U7: 73 | V7: 16 | W7: 23 | X7: 34 | Y7: 0 | Z7: =VLOOKUP(A:A,Sheet2!A:AL,38,0) -> 3936 | AA7: =VLOOKUP(A:A,Sheet4!A:AL,38,0) -> 426 | AC7: =VLOOKUP(A:A,Sheet3!A:AS,45,0) -> 113.2% | AD7: =VLOOKUP(A:A,Sheet5!A:AR,44,0) -> 28.6 | AE7: =Z7/V7 -> 246
B8: 事业编 | C8: 技术 | D8: 1 | E8: 康复治疗学 | F8: 研究生、硕士及以上 | G8: ≤35周岁 | H8: 全日制研究生学历，具有康复治疗技术初级证书，近3年以第一作者身份发表中华或者SCI论文至少1篇 | I8: 康复治疗学 | S8: =VLOOKUP(A:A,Sheet6!A:C,3,0) -> 
B9: 代理制 | C9: 技术 | D9: 2 | E9: 康复治疗学 | F9: 本科生 | G9: ≤30周岁 | H9: 全日制本科学历，康复治疗学相关专业 | I9: 康复治疗学 | S9: =VLOOKUP(A:A,Sheet6!A:C,3,0) -> 
A10: 国有资产管理处（设备运维科） | B10: 事业编 | C10: 其他 | D10: 2 | E10: 生物医学工程 | F10: 研究生 | G10: ≤35周岁 | I10: 生物医学工程92 | L10: 0 | M10: 工程师1（高健） | N10: 0 | O10: 0 | P10: 0 | Q10: 其他1 | R10: 其他1 | S10: =VLOOKUP(A:A,Sheet6!A:C,3,0) ->  | U10: 21 | V10: 0 | W10: 0 | X10: 0 | Y10: 21 | Z10: =VLOOKUP(A:A,Sheet2!A:AL,38,0) ->  | AA10: =VLOOKUP(A:A,Sheet4!A:AL,38,0) ->  | AC10: =VLOOKUP(A:A,Sheet3!A:AS,45,0) ->  | AD10: =VLOOKUP(A:A,Sheet5!A:AR,44,0) ->  | AE10: =Z10/V10 -> 
A11: 输血科 | B11: 事业编 | C11: 医疗 | D11: 1 | E11: 临床医学及其下设二级学科 | F11: 研究生、博士及以上 | G11: ≤45周岁 | H11: 应届毕业生，拟从事临床医疗岗位 | I11: 66 | L11: 技1（主管技师） | M11: 0 | N11: 医1技2 | O11: 技2 | P11: 医1 | S11: =VLOOKUP(A:A,Sheet6!A:C,3,0) ->  | U11: 20 | V11: 0 | W11: 0 | X11: 20 | Y11: 0 | Z11: =VLOOKUP(A:A,Sheet2!A:AL,38,0) ->  | AA11: =VLOOKUP(A:A,Sheet4!A:AL,38,0) ->  | AC11: =VLOOKUP(A:A,Sheet3!A:AS,45,0) ->  | AD11: =VLOOKUP(A:A,Sheet5!A:AR,44,0) ->  | AE11: =Z11/V11 -> 
B12: 事业编 | C12: 技术 | D12: 1 | E12: 基础医学、临床医学或生物学及其下设二级学科 | F12: 研究生、硕士及以上 | G12: ≤35周岁 | H12: 入职时须取得卫生专业技术资格证书（输血技术或检验技术），拟从事临床技术岗位 | I12: 66 | S12: =VLOOKUP(A:A,Sheet6!A:C,3,0) -> 
A13: 儿外科 | B13: 事业编 | C13: 医疗 | D13: 1 | E13: 外科学或临床医学专业（八年制） | F13: 研究生、博士 | G13: ≤45周岁 | I13: 免笔试 | L13: 医1（主治医师） | M13: 0 | N13: 医1 | O13: 医1 | P13: 0 | S13: =VLOOKUP(A:A,Sheet6!A:C,3,0) -> 9 | T13: 14.4 | U13: 13 | V13: 5 | W13: 8 | X13: 0 | Y13: 0 | Z13: =VLOOKUP(A:A,Sheet2!A:AL,38,0) ->  | AA13: =VLOOKUP(A:A,Sheet4!A:AL,38,0) ->  | AC13: =VLOOKUP(A:A,Sheet3!A:AS,45,0) -> 87.9% | AD13: =VLOOKUP(A:A,Sheet5!A:AR,44,0) ->  | AE13: =Z13/V13 -> 
B14: 事业编 | C14: 医疗 | D14: 1 | E14: 外科学或临床医学（七年制或八年制）专业 | F14: 研究生、硕士及以上 | G14: ≤35周岁 | I14: 21-小儿外科 | S14: =VLOOKUP(A:A,Sheet6!A:C,3,0) -> 
A15: 心胸外科 | B15: 事业编 | C15: 医疗 | D15: 1 | E15: 外科学（胸心外科学）或临床医学专业（八年制） | F15: 研究生、博士 | G15: ≤35周岁 | L15: 0 | M15: 0 | N15: 医2 | O15: 医2 | P15: 0 | S15: =VLOOKUP(A:A,Sheet6!A:C,3,0) -> 42 | T15: 67.2 | U15: 41 | V15: 17 | W15: 23 | X15: 1 | Y15: 0 | Z15: =VLOOKUP(A:A,Sheet2!A:AL,38,0) -> 14204 | AA15: =VLOOKUP(A:A,Sheet4!A:AL,38,0) -> 1159 | AC15: =VLOOKUP(A:A,Sheet3!A:AS,45,0) -> 98.1% | AD15: =VLOOKUP(A:A,Sheet5!A:AR,44,0) -> 12.3 | AE15: =Z15/V15 -> 835.5294118
A16: 血液内科 | B16: 事业编 | C16: 医疗 | D16: 2 | E16: 内科学或临床医学（血液病）专业 | F16: 研究生、硕士 | G16: ≤30周岁 | I16: 普通内科或血液病科 | L16: 医1（主治医师） | M16: 0 | N16: 医3技1 | O16: 医3技1 | P16: 0 | S16: =VLOOKUP(A:A,Sheet6!A:C,3,0) -> 92 | T16: 147.2 | U16: 122 | V16: 53 | W16: 61 | X16: 8 | Y16: 0 | Z16: =VLOOKUP(A:A,Sheet2!A:AL,38,0) -> 40734 | AA16: =VLOOKUP(A:A,Sheet4!A:AL,38,0) -> 4280 | AC16: =VLOOKUP(A:A,Sheet3!A:AS,45,0) -> 195.0% | AD16: =VLOOKUP(A:A,Sheet5!A:AR,44,0) -> 14.8 | AE16: =Z16/V16 -> 768.5660377
A17: 医学影像科 | B17: 事业编 | C17: 医疗 | D17: 1 | E17: 影像医学与核医学专业 | F17: 研究生、博士 | G17: ≤40周岁 | H17: 至少在有影响力的杂志发表高水平SCI论文1篇 | J17: 后加1人，已与李栋沟通 | L17: 0 | M17: 0 | N17: 医4技3 | O17: 医3技3 | P17: 医1 | S17: =VLOOKUP(A:A,Sheet6!A:C,3,0) -> 0 | T17: 0 | U17: 127 | V17: 57 | W17: 9 | X17: 60 | Y17: 1 | Z17: =VLOOKUP(A:A,Sheet2!A:AL,38,0) ->  | AA17: =VLOOKUP(A:A,Sheet4!A:AL,38,0) ->  | AC17: =VLOOKUP(A:A,Sheet3!A:AS,45,0) ->  | AD17: =VLOOKUP(A:A,Sheet5!A:AR,44,0) ->  | AE17: =Z17/V17 -> 
B18: 事业编 | C18: 医疗 | D18: 3 | E18: 影像医学与核医学专业 | F18: 研究生、硕士 | G18: ≤35周岁 | I18: 医学影像学(医) | S18: =VLOOKUP(A:A,Sheet6!A:C,3,0) -> 
B19: 代理制 | C19: 技术 | D19: 1 | E19: 医学影像技术专业或医学影像学专业（医学影像技术方向) | F19: 研究生、硕士 | G19: ≤35周岁 | I19: 医学影像学(技) | S19: =VLOOKUP(A:A,Sheet6!A:C,3,0) -> 
B20: 代理制 | C20: 技术 | D20: 3 | E20: 医学影像技术专业或医学影像学专业（医学影像技术方向) | F20: 本科、学士 | G20: ≤30周岁 | I20: 医学影像学(技) | S20: =VLOOKUP(A:A,Sheet6!A:C,3,0) -> 
A21: 口腔科 | B21: 事业编 | C21: 医疗 | D21: 1 | E21: 口腔医学 | F21: 研究生、硕士 | G21: ≤40周岁 | H21: 主治及以上职称（需不定期到总医院空港工作）入职时具有住院医师规范化培训合格证书 | I21: 口腔内科 | J21: 已与韩主任沟通修改 | L21: 0 | M21: 医1（嵇希敏） | N21: 0 | O21: 0 | P21: 0 | S21: 24 | T21: 38.4 | U21: 56 | V21: 38 | W21: 18 | X21: 0 | Y21: 0 | Z21: =VLOOKUP(A:A,Sheet2!A:AL,38,0) -> 47773 | AA21: =VLOOKUP(A:A,Sheet4!A:AL,38,0) -> 579 | AC21: =VLOOKUP(A:A,Sheet3!A:AS,45,0) -> 86.2% | AD21: =VLOOKUP(A:A,Sheet5!A:AR,44,0) ->  | AE21: =Z21/V21 -> 1257.184211
A22: 临床心理科 | B22: 事业编 | C22: 医疗 | D22: 1 | E22: 精神病学或临床医学专业（八年制）…… | F22: 研究生、博士 | G22: ≤45周岁 | H22: 本科阶段须精神病学或临床医学专业 | I22: 精神病学 | L22: 0 | M22: 0 | N22: 医1 | O22: 0 | P22: 医1 | S22: =VLOOKUP(A:A,Sheet6!A:C,3,0) -> 0 | T22: 0 | U22: 6 | V22: 1 | W22: 0 | X22: 4 | Y22: 1 | Z22: =VLOOKUP(A:A,Sheet2!A:AL,38,0) -> 56520 | AA22: =VLOOKUP(A:A,Sheet4!A:AL,38,0) ->  | AC22: =VLOOKUP(A:A,Sheet3!A:AS,45,0) ->  | AD22: =VLOOKUP(A:A,Sheet5!A:AR,44,0) ->  | AE22: =Z22/V22 -> 56520
B23: 事业编 | C23: 医疗 | D23: 2 | E23: 精神病学或临床医学（七年制或八年制）专业…… | F23: 研究生、硕士及以上 | G23: ≤35周岁 | H23: 本科阶段须精神病学或临床医学专业 | I23: 精神病学 | S23: =VLOOKUP(A:A,Sheet6!A:C,3,0) -> 
A24: 肾脏内科 | B24: 事业编 | C24: 医疗 | D24: 1 | E24: 内科学或临床医学专业（八年制） | F24: 研究生、博士 | G24: ≤45周岁 | H24: 第一作者SCI论文1篇及以上 | L24: 医1（讲师） | M24: 0 | N24: 医1技1 | O24: 医1技1 | P24: 0 | S24: =VLOOKUP(A:A,Sheet6!A:C,3,0) -> 64 | T24: 102.4 | U24: 96 | V24: 32 | W24: 61 | X24: 3 | Y24: 0 | Z24: =VLOOKUP(A:A,Sheet2!A:AL,38,0) -> 143346 | AA24: =VLOOKUP(A:A,Sheet4!A:AL,38,0) -> 3103 | AC24: =VLOOKUP(A:A,Sheet3!A:AS,45,0) -> 101.8% | AD24: =VLOOKUP(A:A,Sheet5!A:AR,44,0) -> 7.3 | AE24: =Z24/V24 -> 4479.5625
A25: 肺部肿瘤外科 | B25: 代理制 | C25: 技术 | D25: 1 | E25: 医学超声技术专业 | F25: 本科及以上 | G25: 35岁以下 | H25: 无 | I25: 超声技术 | L25: 0 | M25: 0 | N25: 医1 | O25: 医1 | P25: 0 | S25: =VLOOKUP(A:A,Sheet6!A:C,3,0) -> 70 | T25: 112 | U25: 48 | V25: 19 | W25: 29 | X25: 0 | Y25: 0 | Z25: =VLOOKUP(A:A,Sheet2!A:AL,38,0) -> 19483 | AA25: =VLOOKUP(A:A,Sheet4!A:AL,38,0) -> 3520 | AC25: =VLOOKUP(A:A,Sheet3!A:AS,45,0) -> 105.9% | AD25: =VLOOKUP(A:A,Sheet5!A:AR,44,0) -> 7.3 | AE25: =Z25/V25 -> 1025.421053
A26: 急诊医学科 | B26: 事业编 | C26: 医疗 | D26: 3 | E26: 急诊医学或临床医学专业 | F26: 研究生、硕士及以上 | G26: ≤35周岁 | H26: 具有医师资格证 | L26: 医1（医师） | M26: 0 | N26: 医4技4 | O26: 医2技2 | P26: 医2技2 | S26: =VLOOKUP(A:A,Sheet6!A:C,3,0) -> 69 | T26: 110.4 | U26: 171 | V26: 61 | W26: 103 | X26: 7 | Y26: 0 | Z26: =VLOOKUP(A:A,Sheet2!A:AL,38,0) -> 111510 | AA26: =VLOOKUP(A:A,Sheet4!A:AL,38,0) -> 1765 | AC26: =VLOOKUP(A:A,Sheet3!A:AS,45,0) -> 107.5% | AD26: =VLOOKUP(A:A,Sheet5!A:AR,44,0) -> 14.3 | AE26: =Z26/V26 -> 1828.032787
B27: 事业编 | C27: 医疗 | D27: 1 | E27: 急诊医学 | F27: 硕士及以上 | G27: ≤45周岁 | H27: 具有高级职称 | S27: =VLOOKUP(A:A,Sheet6!A:C,3,0) -> 
B28: 事业编 | C28: 技术 | D28: 1 | E28: 影像或相关医学专业 | F28: 研究生、硕士及以上 | G28: ≤35周岁 | H28: 具有医师资格证 | S28: =VLOOKUP(A:A,Sheet6!A:C,3,0) -> 
B29: 事业编 | C29: 技术 | D29: 1 | E29: 医学检验技术或相关临床医学专业 | F29: 硕士及以上 | G29: ≤35周岁 | S29: =VLOOKUP(A:A,Sheet6!A:C,3,0) -> 
B30: 代理制 | C30: 技术 | D30: 1 | E30: 医学检验技术或相关医学专业 | F30: 本科及以上 | G30: ≤30周岁 | S30: =VLOOKUP(A:A,Sheet6!A:C,3,0) -> 
A31: 普通外科 | B31: 事业编 | C31: 医疗 | D31: 1 | E31: 外科学（胃肠肛肠外科） | F31: 研究生、博士 | G31: ≤35周岁 | I31: 无 | L31: 0 | M31: 医3（张乃勤、田伟军、吴双虎） | N31: 医3 | O31: 医1 | S31: =VLOOKUP(A:A,Sheet6!A:C,3,0) -> 208 | T31: 332.8 | U31: 193 | V31: 96 | W31: 94 | X31: 3 | Y31: 0 | Z31: =VLOOKUP(A:A,Sheet2!A:AL,38,0) -> 132388 | AA31: =VLOOKUP(A:A,Sheet4!A:AL,38,0) -> 7249 | AC31: =VLOOKUP(A:A,Sheet3!A:AS,45,0) -> 109.3% | AD31: =VLOOKUP(A:A,Sheet5!A:AR,44,0) -> 10.8 | AE31: =Z31/V31 -> 1379.041667
B32: 事业编 | C32: 医疗 | D32: 1 | E32: 外科学（肝胆胰脾外科） | F32: 研究生、博士 | G32: ≤35周岁 | H32: SCI二区第一作者文章至少1篇，或SCI一区共同第一作者文章至少1篇 | I32: 无 | S32: =VLOOKUP(A:A,Sheet6!A:C,3,0) -> 
B33: 事业编 | C33: 医疗 | D33: 1 | E33: 外科学（血管外科） | F33: 研究生、博士 | G33: ≤35周岁 | H33: SCI第一作者（包括共同第一作者）文章至少2篇，同时中华级医学杂志第一作者文章至少1篇；取得执业医师资格证、完成住院医师规范化培训 | I33: 无 | S33: =VLOOKUP(A:A,Sheet6!A:C,3,0) -> 
B34: 事业编 | C34: 技术 | D34: 1 | E34: 医学影像专业（超声影像） | F34: 研究生、博士 | G34: ≤35周岁 | H34: 取得执业医师资格证、完成住院医师规范化培训 | I34: 无 | S34: =VLOOKUP(A:A,Sheet6!A:C,3,0) -> 
A35: 呼吸与危重症医学科 | B35: 事业编 | C35: 医疗 | D35: 1 | E35: 内科学或临床医学专业 | F35: 研究生、博士 | G35: ≤50周岁 | H35: 单篇SCI文章IF≧5分 | L35: 0 | M35: 0 | N35: 医3 | O35: 医3 | S35: 72 | T35: 115.2 | U35: 94 | V35: 35 | W35: 54 | X35: 5 | Y35: 0 | Z35: =VLOOKUP(A:A,Sheet2!A:AL,38,0) ->  | AA35: =VLOOKUP(A:A,Sheet4!A:AL,38,0) ->  | AC35: =VLOOKUP(A:A,Sheet3!A:AS,45,0) ->  | AD35: =VLOOKUP(A:A,Sheet5!A:AR,44,0) ->  | AE35: =Z35/V35 -> 
B36: 事业编 | C36: 医疗 | D36: 1 | E36: 内科学或临床医学专业 | F36: 研究生、博士 | G36: ≤50周岁 | H36: 单篇SCI文章IF≧2分 | S36: =VLOOKUP(A:A,Sheet6!A:C,3,0) ->  | T36: =S36*1.6 -> 
B37: 事业编 | C37: 医疗 | D37: 1 | E37: 内科学或临床医学专业 | F37: 研究生、博士 | G37: ≤35周岁 | H37: 应届毕业生 | I37: 呼吸内科 | S37: =VLOOKUP(A:A,Sheet6!A:C,3,0) -> 
B38: 事业编 | C38: 医疗 | D38: 1 | E38: 内科学或临床医学专业 | F38: 研究生、硕士及以上 | G38: ≤35周岁 | H38: 有规培证书，主治医生 | I38: 呼吸内科 | S38: =VLOOKUP(A:A,Sheet6!A:C,3,0) -> 
B39: 事业编 | C39: 医疗 | D39: 1 | E39: 内科学或临床医学专业 | F39: 研究生、硕士及以上 | G39: ≤35周岁 | H39: 应届毕业生 | I39: 呼吸内科 | S39: =VLOOKUP(A:A,Sheet6!A:C,3,0) -> 
A40: 骨外科 | B40: 事业编 | C40: 医疗 | D40: 1 | E40: 外科学 | F40: 研究生、博士 | G40: ≤35周岁 | H40: 有国外高水平大学学习经历，有SCI论文 | L40: 医1（主任医师） | M40: 0 | N40: 医3 | O40: 医3 | S40: =VLOOKUP(A:A,Sheet6!A:C,3,0) -> 126 | T40: 201.6 | U40: 103 | V40: 43 | W40: 57 | X40: 3 | Y40: 0 | Z40: =VLOOKUP(A:A,Sheet2!A:AL,38,0) -> 84020 | AA40: =VLOOKUP(A:A,Sheet4!A:AL,38,0) -> 2236 | AC40: =VLOOKUP(A:A,Sheet3!A:AS,45,0) -> 72.7% | AD40: =VLOOKUP(A:A,Sheet5!A:AR,44,0) -> 14.2 | AE40: =Z40/V40 -> 1953.953488
B41: 事业编 | C41: 科研 | D41: 1 | E41: 基础医学或临床医学 | F41: 硕士及以上 | G41: ≤35周岁 | H41: 有生物学或医学背景 | I41: 生物化学 | S41: =VLOOKUP(A:A,Sheet6!A:C,3,0) -> 
B42: 代理制 | C42: 技术 | D42: 1 | E42: 临床医学 | F42: 本科及以上 | G42: ≤35周岁 | H42: 影像学或电生理专业优先 | I42: 影像学 | S42: =VLOOKUP(A:A,Sheet6!A:C,3,0) -> 
A43: 病理科 | B43: 事业编 | C43: 医疗 | D43: 1 | E43: 病理学专业或临床医学专业 | F43: 研究生、硕士、博士 | G43: ≤30周岁 | H43: 外语六级，有执业医师执照 | I43: 病理医45 | L43: 0 | M43: 0 | N43: 医2技1 | O43: 医2技1 | S43: =VLOOKUP(A:A,Sheet6!A:C,3,0) ->  | U43: 9 | V43: 6 | W43: 0 | X43: 3 | Y43: 0 | Z43: =VLOOKUP(A:A,Sheet2!A:AL,38,0) ->  | AA43: =VLOOKUP(A:A,Sheet4!A:AL,38,0) ->  | AC43: =VLOOKUP(A:A,Sheet3!A:AS,45,0) ->  | AD43: =VLOOKUP(A:A,Sheet5!A:AR,44,0) ->  | AE43: =Z43/V43 -> 
B44: 事业编 | C44: 技术 | D44: 2 | E44: 病理学或医学相关专业 | F44: 研究生、硕士及以上 | G44: ≤30周岁 | H44: 应届毕业生，其中1名有熟练外语和计算机能力，满足科室信息化和大数据统计需求 | I44: 病理技46 | S44: =VLOOKUP(A:A,Sheet6!A:C,3,0) -> 
A45: 妇产科 | B45: 事业编 | C45: 医疗 | D45: 5 | E45: 妇产科学或临床医学（八年制）专业 | F45: 研究生、博士 | G45: ≤45周岁 | H45: 应届毕业生。拟从事妇产科临床医疗岗位 | I45: 无 | L45: 医4（医师3，主任医师1） 研1（研究实习员） | M45: 医4（范庆春、刘小玫、顾向应、黄建华） | N45: 医5 | O45: 医3 | S45: 152 | T45: 243.2 | U45: 197 | V45: 85 | W45: 93 | X45: 18 | Y45: 1 | Z45: =VLOOKUP(A:A,Sheet2!A:AL,38,0) -> 187455 | AA45: =VLOOKUP(A:A,Sheet4!A:AL,38,0) -> 6379 | AC45: =VLOOKUP(A:A,Sheet3!A:AS,45,0) -> 82.2% | AD45: =VLOOKUP(A:A,Sheet5!A:AR,44,0) -> 7 | AE45: =Z45/V45 -> 2205.352941
B46: 事业编 | C46: 医疗 | D46: 1 | E46: 病理学与病理生理学专业 | F46: 研究生、硕士及以上 | G46: ≤35周岁 | H46: 取得医师资格证书。拟从事妇产科细胞学、妇科病理及宫颈病变医疗岗位 | I46: 病理（医） | S46: =VLOOKUP(A:A,Sheet6!A:C,3,0) -> 
B47: 事业编 | C47: 医疗 | D47: 1 | E47: 影像医学与核医学专业或临床医学（七年制或八年制）专业 | F47: 研究生、硕士及以上 | G47: ≤35周岁 | H47: 拟从事妇产科超声医疗岗位 | I47: 医学影像学(超声) | S47: =VLOOKUP(A:A,Sheet6!A:C,3,0) -> 
B48: 事业编 | C48: 技术 | D48: 1 | E48: 临床检验诊断学专业 | F48: 研究生、硕士及以上 | G48: ≤35周岁 | H48: 拟从事妇产科相关检验工作 | I48: 检验 | S48: =VLOOKUP(A:A,Sheet6!A:C,3,0) -> 
B49: 事业编 | C49: 技术 | D49: 1 | E49: 妇产科学（辅助生殖技术）、医学遗传学、发育生物学、细胞生物学、医学细胞生物学、生物信息分析、生物统计等相关专业 | F49: 研究生、博士 | G49: ≤45周岁 | H49: 英语六级，拟从事妇产科生殖中心胚胎实验室技术岗位 | I49: 无 | S49: =VLOOKUP(A:A,Sheet6!A:C,3,0) -> 
B50: 事业编 | C50: 技术 | D50: 2 | E50: 生殖医学（辅助生殖技术）、医学细胞生物学、发育生物学、细胞生物学、医学检验学、卫生检验学、生物学等相关专业 | F50: 研究生、硕士及以上 | G50: ≤35周岁 | H50: 拟从事妇产科生殖中心胚胎实验室技术岗位、生殖检验室技术岗位 | I50: 待定 | S50: =VLOOKUP(A:A,Sheet6!A:C,3,0) -> 
B51: 代理制 | C51: 技术 | D51: 1 | E51: 医学实验技术及相关专业 | F51: 本科及以上 | G51: ≤30周岁 | I51: 待定 | S51: =VLOOKUP(A:A,Sheet6!A:C,3,0) -> 
B52: 事业编 | C52: 技术 | D52: 1 | E52: 生殖医学（辅助生殖技术） | F52: 研究生、硕士及以上 | G52: ≤35周岁 | H52: 拟从事妇产科生殖中心男科实验室工作 | I52: 检验 | S52: =VLOOKUP(A:A,Sheet6!A:C,3,0) -> 
A53: 精准医学中心 | B53: 事业编 | C53: 技术 | D53: 1 | E53: 遗传学、细胞生物学、生物化学及分子生物学、医学细胞生物学、医学生物化学及分子生物学 | F53: 研究生、博士 | G53: ≤45周岁 | H53: 拟从事临床技术岗位 | I53: 检验 | L53: 医1（讲师） | M53: 0 | N53: 技1 | O53: 技1 | S53: =VLOOKUP(A:A,Sheet6!A:C,3,0) ->  | U53: 18 | V53: 3 | W53: 1 | X53: 13 | Y53: 1 | Z53: =VLOOKUP(A:A,Sheet2!A:AL,38,0) ->  | AA53: =VLOOKUP(A:A,Sheet4!A:AL,38,0) ->  | AC53: =VLOOKUP(A:A,Sheet3!A:AS,45,0) ->  | AD53: =VLOOKUP(A:A,Sheet5!A:AR,44,0) ->  | AE53: =Z53/V53 -> 
B54: 事业编 | C54: 技术 | D54: 1 | E54: 医学检验及放射医学专业 | F54: 研究生、硕士 | G54: ≤35周岁 | H54: 拟从事临床技术岗位，有5年以上工作经验，取得临床医学检验技术中级职称，有新冠一线抗疫工作经历 | I54: 检验 | S54: =VLOOKUP(A:A,Sheet6!A:C,3,0) -> 
A55: 核医学科 | B55: 事业编 | C55: 医疗 | D55: 1 | E55: 影像医学与核医学 | F55: 研究生、博士 | G55: ≤35周岁 | H55: 发表1篇影响因子大于3分的一作SCI文章（若发表多篇，累计影响因子大于5分），同时参与省市级以上课题研究 | I55: 核医学（医） | L55: 医1（主任医师） | M55: 医1（谭建） | N55: 医1 | O55: 0 | S55: =VLOOKUP(A:A,Sheet6!A:C,3,0) -> 14 | T55: 22.4 | U55: 39 | V55: 17 | W55: 12 | X55: 10 | Y55: 0 | Z55: =VLOOKUP(A:A,Sheet2!A:AL,38,0) -> 64977 | AA55: =VLOOKUP(A:A,Sheet4!A:AL,38,0) -> 1113 | AC55: =VLOOKUP(A:A,Sheet3!A:AS,45,0) -> 102.5% | AD55: =VLOOKUP(A:A,Sheet5!A:AR,44,0) -> 4.5 | AE55: =Z55/V55 -> 3822.176471
B56: 事业编 | C56: 技术 | D56: 1 | E56: 影像医学与核医学（核医学技术）或医学技术（核医学方向） | F56: 研究生、硕士及以上 | G56: ≤30周岁 | H56: 发表1篇影响因子大于2分的一作SCI文章（若发表多篇，累计影响因子大于3分） | I56: 核医学（技） | S56: =VLOOKUP(A:A,Sheet6!A:C,3,0) -> 
A57: 眼科 | B57: 事业编 | C57: 医疗 | D57: 2 | E57: 临床眼科 | F57: 博士 | G57: ≤45周岁 | H57: 应届毕业生 | L57: 0 | M57: 0 | N57: 医1技1 | O57: 0 | S57: =VLOOKUP(A:A,Sheet6!A:C,3,0) -> 42 | T57: 67.2 | U57: 41 | V57: 20 | W57: 16 | X57: 5 | Y57: 0 | Z57: =VLOOKUP(A:A,Sheet2!A:AL,38,0) -> 65739 | AA57: =VLOOKUP(A:A,Sheet4!A:AL,38,0) -> 2801 | AC57: =VLOOKUP(A:A,Sheet3!A:AS,45,0) -> 77.8% | AD57: =VLOOKUP(A:A,Sheet5!A:AR,44,0) -> 4.2 | AE57: =Z57/V57 -> 3286.95
B58: 事业编 | C58: 技术 | D58: 1 | E58: 眼视光 | F58: 硕士 | G58: ≤35周岁 | H58: 应届毕业生 | S58: =VLOOKUP(A:A,Sheet6!A:C,3,0) -> 
A59: 麻醉科 | B59: 事业编 | C59: 医疗 | D59: 1 | E59: 麻醉学、重症医学或临床医学专业（八年制） | F59: 研究生、博士 | G59: ≤45周岁 | I59: 麻醉 | L59: 0 | M59: 医1（苗鲁民） | N59: 医3 | O59: 医3 | S59: 14 | T59: 22.4 | U59: 67 | V59: 54 | W59: 11 | X59: 0 | Y59: 2 | Z59: =VLOOKUP(A:A,Sheet2!A:AL,38,0) -> 36422 | AA59: =VLOOKUP(A:A,Sheet4!A:AL,38,0) ->  | AC59: =VLOOKUP(A:A,Sheet3!A:AS,45,0) ->  | AD59: =VLOOKUP(A:A,Sheet5!A:AR,44,0) ->  | AE59: =Z59/V59 -> 674.4814815
B60: 事业编 | C60: 医疗 | D60: 2 | E60: 麻醉学或临床医学（七年制或八年制）专业 | F60: 研究生、硕士及以上 | G60: ≤35周岁 | I60: 麻醉 | S60: =VLOOKUP(A:A,Sheet6!A:C,3,0) -> 
A61: 感染科 | B61: 事业编 | C61: 医疗 | D61: 2 | E61: 内科学、外科学或临床医学专业（八年制） | F61: 研究生、硕士及以上 | G61: ≤35周岁 | H61: 具有医师资格证 | I61: 普通内科或普通外科 | L61: 0 | N61: 医2 | O61: 0 | S61: =VLOOKUP(A:A,Sheet6!A:C,3,0) -> 14 | T61: 22.4 | U61: 21 | V61: 9 | W61: 11 | X61: 0 | Y61: 1 | Z61: =VLOOKUP(A:A,Sheet2!A:AL,38,0) -> 124440 | AA61: =VLOOKUP(A:A,Sheet4!A:AL,38,0) -> 315 | AC61: =VLOOKUP(A:A,Sheet3!A:AS,45,0) -> 73.8% | AD61: =VLOOKUP(A:A,Sheet5!A:AR,44,0) -> 11.8 | AE61: =Z61/V61 -> 13826.66667
B62: 代理制 | C62: 技术 | D62: 2 | E62: 医学检验技术专业 | F62: 本科、学士及以上 | G62: ≤30周岁 | I62: 检验 | S62: =VLOOKUP(A:A,Sheet6!A:C,3,0) -> 
A63: 医学检验科 | B63: 事业编 | C63: 医技 | D63: 1 | E63: 临床检验诊断学 | F63: 研究生、博士 | G63: ≤35周岁 | H63: 应届毕业生 | L63: 技1（主管技师） | M63: 技1（刘兆利） | N63: 技3 | O63: 技3 | S63: =VLOOKUP(A:A,Sheet6!A:C,3,0) ->  | U63: 86 | V63: 0 | W63: 0 | X63: 86 | Y63: 0 | Z63: =VLOOKUP(A:A,Sheet2!A:AL,38,0) ->  | AA63: =VLOOKUP(A:A,Sheet4!A:AL,38,0) ->  | AC63: =VLOOKUP(A:A,Sheet3!A:AS,45,0) ->  | AD63: =VLOOKUP(A:A,Sheet5!A:AR,44,0) ->  | AE63: =Z63/V63 -> 
B64: 事业编 | C64: 医技 | D64: 1 | E64: 具有临床医学、医学检验、肿瘤学等相关医学科学 | F64: 研究生、博士 | G64: ≤35周岁 | H64: 应届毕业生 | S64: =VLOOKUP(A:A,Sheet6!A:C,3,0) -> 
A65: 神经病学研究所 | B65: 事业编 | C65: 技术 | D65: 1 | E65: 外科学专业 | F65: 研究生、硕士 | G65: ≤35周岁 | H65: 熟悉掌握肿瘤研究的基本操作技能和动物实验操作技巧，发表一区研究论文 | I65: 92生物医学工程 | L65: 0 | M65: 研1（宁宪嘉）、技1（刘丽） | N65: 研5 | O65: 研4 | S65: =VLOOKUP(A:A,Sheet6!A:C,3,0) ->  | U65: 43 | V65: 1 | W65: 0 | X65: 40 | Y65: 2 | Z65: =VLOOKUP(A:A,Sheet2!A:AL,38,0) ->  | AA65: =VLOOKUP(A:A,Sheet4!A:AL,38,0) ->  | AC65: =VLOOKUP(A:A,Sheet3!A:AS,45,0) ->  | AD65: =VLOOKUP(A:A,Sheet5!A:AR,44,0) ->  | AE65: =Z65/V65 -> 
B66: 事业编 | C66: 研究 | D66: 1 | E66: 基础医学 | F66: 研究生、博士（博士后） | G66: ≤35周岁 | H66: 熟悉掌握免疫学和蛋白互作等领域前沿进展，发表一区研究论文 | S66: =VLOOKUP(A:A,Sheet6!A:C,3,0) -> 
A67: 神经外科 | B67: 事业编 | C67: 医疗 | D67: 1 | E67: 外科学或临床医学七年制或八年制）专业（ | F67: 研究生、博士 | G67: ≤45周岁 | L67: 医1（主任医师） | M67: 医1（岳树源） | N67: 医2 | O67: 医1 | S67: =VLOOKUP(A:A,Sheet6!A:C,3,0) -> 222 | T67: 355.2 | U67: 195 | V67: 58 | W67: 132 | X67: 4 | Y67: 1 | Z67: =VLOOKUP(A:A,Sheet2!A:AL,38,0) -> 28842 | AA67: =VLOOKUP(A:A,Sheet4!A:AL,38,0) -> 3173 | AC67: =VLOOKUP(A:A,Sheet3!A:AS,45,0) -> 82.3% | AD67: =VLOOKUP(A:A,Sheet5!A:AR,44,0) -> 18.1 | AE67: =Z67/V67 -> 497.2758621
A68: 心血管外科 | B68: 事业编 | C68: 医疗 | D68: 1 | E68: 外科学或临床医学专业（八年制） | F68: 研究生、硕士 | G68: ≤45周岁 | H68: 具有副高级及以上医师职称。拟从事临床医疗岗位。 | I68: 心血管科外科 | L68: 0 | N68: 医2 | O68: 医2 | S68: =VLOOKUP(A:A,Sheet6!A:C,3,0) -> 42 | T68: =S68*1.6 -> 67.2 | U68: 33 | V68: 15 | W68: 18 | X68: 0 | Y68: 0 | Z68: =VLOOKUP(A:A,Sheet2!A:AL,38,0) -> 3932 | AA68: =VLOOKUP(A:A,Sheet4!A:AL,38,0) -> 650 | AC68: =VLOOKUP(A:A,Sheet3!A:AS,45,0) -> 68.7% | AD68: =VLOOKUP(A:A,Sheet5!A:AR,44,0) -> 15.9 | AE68: =Z68/V68 -> 262.1333333
A69: 皮肤性病科 | B69: 事业编 | C69: 医疗 | D69: 1 | E69: 皮肤病 | F69: 研究生、博士 | G69: ≤45周岁 | H69: 通过住院医师规范化培训，有SCI文章 | L69: 0 | M69: 技1（李春莉） | N69: 医1技1 | O69: 医1技1 | S69: =VLOOKUP(A:A,Sheet6!A:C,3,0) -> 18 | T69: 28.8 | U69: 39 | V69: 24 | W69: 10 | X69: 5 | Y69: 0 | Z69: =VLOOKUP(A:A,Sheet2!A:AL,38,0) -> 133810 | AA69: =VLOOKUP(A:A,Sheet4!A:AL,38,0) -> 909 | AC69: =VLOOKUP(A:A,Sheet3!A:AS,45,0) -> 90.3% | AD69: =VLOOKUP(A:A,Sheet5!A:AR,44,0) -> 6.5 | AE69: 5575.416667
A70: 药剂科 | B70: 事业编 | C70: 技术 | D70: 1 | E70: 药物分析、药理学、药剂学、医学生物化学与分子生物学 | F70: 博士 | G70: ≤45周岁 | H70: 以第一作者发表SCI论文2篇以上，从事过体内药物分析或药物基因组学分析研究 | L70: 药1（主管药师） | M70: 药1（刘万华） | N70: 技2 | O70: 技2 | S70: =VLOOKUP(A:A,Sheet6!A:C,3,0) ->  | U70: 184 | V70: 0 | W70: 11 | X70: 173 | Y70: 0 | Z70: =VLOOKUP(A:A,Sheet2!A:AL,38,0) ->  | AA70: =VLOOKUP(A:A,Sheet4!A:AL,38,0) ->  | AC70: =VLOOKUP(A:A,Sheet3!A:AS,45,0) ->  | AD70: =VLOOKUP(A:A,Sheet5!A:AR,44,0) -> 
A71: 药剂科（司法医学鉴定中心） | B71: 代理制 | C71: 技术 | D71: 1 | E71: 法医临床、物证、病理 | F71: 硕士 | G71: ≤30周岁 | H71: 以第一作者发表核心期刊论文1篇以上，有两年以上工作经验，从事过法医临床工作 | L71: 0 | N71: 0 | O71: 0 | S71: =VLOOKUP(A:A,Sheet6!A:C,3,0) ->  | AC71: =VLOOKUP(A:A,Sheet3!A:AS,45,0) ->  | AD71: =VLOOKUP(A:A,Sheet5!A:AR,44,0) -> 
A72: 医疗安全部 | B72: 代理制 | C72: 其他 | D72: 1 | E72: 临床医学及其下设二级学科或卫生事业管理学专业 | F72: 研究生、硕士 | G72: ≤35周岁 | H72: 拟从事医疗安全管理相关工作 | L72: 0 | N72: 0 | O72: 0 | S72: =VLOOKUP(A:A,Sheet6!A:C,3,0) ->  | U72: 5 | V72: 0 | W72: 0 | X72: 0 | Y72: 5 | Z72: =VLOOKUP(A:A,Sheet2!A:AL,38,0) ->  | AA72: =VLOOKUP(A:A,Sheet4!A:AL,38,0) ->  | AC72: =VLOOKUP(A:A,Sheet3!A:AS,45,0) ->  | AD72: =VLOOKUP(A:A,Sheet5!A:AR,44,0) -> 
A73: 保健医疗部 | B73: 事业编 | C73: 医疗 | D73: 1 | E73: 老年医学、内科学专业 | F73: 研究生、硕士 | G73: ≤35周岁 | H73: 以第一作者发表中华系列期刊论文1篇，或以第一/共同第一作者发表SCI论文1篇，CET六级，取得医师资格证书 | I73: 老年病科 | L73: 0 | N73: 医2 | O73: 医1 | S73: 242 | T73: 387.2 | U73: 238 | V73: 72 | W73: 161 | X73: 4 | Y73: 1 | Z73: =VLOOKUP(A:A,Sheet2!A:AL,38,0) -> 81355 | AA73: =VLOOKUP(A:A,Sheet4!A:AL,38,0) -> 2342 | AC73: =VLOOKUP(A:A,Sheet3!A:AS,45,0) -> 90.5% | AD73: =VLOOKUP(A:A,Sheet5!A:AR,44,0) -> 34.1 | AE73: 1129.930556
A74: 放射治疗科 | B74: 事业编 | C74: 医疗 | D74: 1 | E74: 肿瘤放疗专业 | F74: 博士 | G74: ≤30周岁 | H74: 应届，国内大的肿瘤中心学习经历 | L74: 0 | M74: 工人1（郭志超） | N74: 医1技1 | O74: 医1技1 | S74: =VLOOKUP(A:A,Sheet6!A:C,3,0) -> 42 | T74: 67.2 | U74: 34 | V74: 13 | W74: 12 | X74: 8 | Y74: 1 | Z74: =VLOOKUP(A:A,Sheet2!A:AL,38,0) -> 8616 | AA74: =VLOOKUP(A:A,Sheet4!A:AL,38,0) -> 802 | AC74: =VLOOKUP(A:A,Sheet3!A:AS,45,0) -> 103.7% | AD74: =VLOOKUP(A:A,Sheet5!A:AR,44,0) -> 19.7 | AE74: 662.7692308
A75: 财务物价处 | B75: 代理制 | C75: 其他 | D75: 1 | E75: 财务管理或会计学专业 | F75: 本科、学士及以上 | G75: ≤30周岁 | H75: 熟悉财税制度、熟练掌握财务核算软件系统、办公软件、会计核算方法 | L75: 1（研究实习员） | M75: 财务科2，其他部门2 | N75: 2 | O75: 2 | S75: =VLOOKUP(A:A,Sheet6!A:C,3,0) ->  | U75: 102 | V75: 0 | W75: 0 | X75: 0 | Y75: 102 | Z75: =VLOOKUP(A:A,Sheet2!A:AL,38,0) ->  | AA75: =VLOOKUP(A:A,Sheet4!A:AL,38,0) ->  | AC75: =VLOOKUP(A:A,Sheet3!A:AS,45,0) ->  | AD75: =VLOOKUP(A:A,Sheet5!A:AR,44,0) -> 
A76: 病案统计科 | B76: 代理制 | C76: 技术 | D76: 1 | E76: 编码员 | F76: 本科 | G76: 22 | H76: 热爱本职工作、有相关培训证书 | L76: 0 | M76: 4（杨琳、王莉、关惟、李鸿梅) | N76: 2 | O76: 2 | S76: =VLOOKUP(A:A,Sheet6!A:C,3,0) ->  | U76: 28 | V76: 2 | W76: 7 | X76: 0 | Y76: 19 | Z76: =VLOOKUP(A:A,Sheet2!A:AL,38,0) ->  | AA76: =VLOOKUP(A:A,Sheet4!A:AL,38,0) ->  | AC76: =VLOOKUP(A:A,Sheet3!A:AS,45,0) ->  | AD76: =VLOOKUP(A:A,Sheet5!A:AR,44,0) -> 
B77: 代理制 | C77: 技术 | D77: 1 | E77: 统计学 | F77: 本科 | G77: 22 | H77: 热爱本职工作、有相关培训证书 | S77: =VLOOKUP(A:A,Sheet6!A:C,3,0) -> 
A78: 泌尿外科 | B78: 事业编 | C78: 医疗 | D78: 1 | E78: 外科学或临床医学专业（八年制） | F78: 研究生、博士 | G78: ≤45周岁 | L78: 0 | M78: 医1（张辉） | N78: 医2 | O78: 医1 | S78: =VLOOKUP(A:A,Sheet6!A:C,3,0) -> 84 | T78: 134.4 | U78: 71 | V78: 27 | W78: 39 | X78: 5 | Y78: 0 | Z78: =VLOOKUP(A:A,Sheet2!A:AL,38,0) -> 63253 | AA78: =VLOOKUP(A:A,Sheet4!A:AL,38,0) -> 2630 | AC78: =VLOOKUP(A:A,Sheet3!A:AS,45,0) -> 92.2% | AD78: =VLOOKUP(A:A,Sheet5!A:AR,44,0) -> 10.6 | AE78: 2342.703704
B79: 事业编 | C79: 医疗 | D79: 1 | E79: 外科学或临床医学（七年制或八年制）专业 | F79: 研究生、硕士及以上 | G79: ≤35周岁 | S79: =VLOOKUP(A:A,Sheet6!A:C,3,0) -> 
A80: 内分泌代谢科 | B80: 事业编 | C80: 医疗 | D80: 1 | E80: 内科学或临床医学（八年制）专业 | F80: 研究生、博士 | G80: ≤35周岁 | H80: 诚实、主动、努力、上进，在有重要影响的学术期刊发表高水平研究论文 | L80: 0 | N80: 医2 | O80: 医2 | S80: =VLOOKUP(A:A,Sheet6!A:C,3,0) -> 114 | T80: 182.4 | U80: 95 | V80: 49 | W80: 42 | X80: 4 | Y80: 0 | Z80: =VLOOKUP(A:A,Sheet2!A:AL,38,0) -> 235171 | AA80: =VLOOKUP(A:A,Sheet4!A:AL,38,0) -> 3554 | AC80: =VLOOKUP(A:A,Sheet3!A:AS,45,0) -> 87.2% | AD80: =VLOOKUP(A:A,Sheet5!A:AR,44,0) -> 10 | AE80: 4799.408163
A81: 保卫处 | B81: 派遣制 | C81: 其他 | D81: 1 | E81: 行政管理相关专业 | F81: 专科及以上 | G81: ≤30周岁 | H81: 消防退役人员，有从事消防专业工作经验和技能 | I81: 消防专业知识 | N81: 1 | O81: 1 | S81: =VLOOKUP(A:A,Sheet6!A:C,3,0) ->  | U81: 19 | V81: 0 | W81: 0 | X81: 0 | Y81: 19 | Z81: =VLOOKUP(A:A,Sheet2!A:AL,38,0) ->  | AA81: =VLOOKUP(A:A,Sheet4!A:AL,38,0) ->  | AC81: =VLOOKUP(A:A,Sheet3!A:AS,45,0) ->  | AD81: =VLOOKUP(A:A,Sheet5!A:AR,44,0) -> 
A82: PET-CT影像诊断科 | B82: 事业编 | C82: 医疗 | D82: 1 | E82: 影像医学与核医学专业；肿瘤学及相关专业 | F82: 研究生、博士 | G82: ≤45周岁 | H82: 具有分子影像（如PET或相关）的研究经历或该领域2年以上临床工作经验；主持或承担省部级及以上本领域课题，并发表过论文。 | L82: 0 | N82: 技1 | O82: 技1 | S82: =VLOOKUP(A:A,Sheet6!A:C,3,0) ->  | U82: 11 | V82: 4 | W82: 3 | X82: 4 | Y82: 0 | Z82: =VLOOKUP(A:A,Sheet2!A:AL,38,0) ->  | AA82: =VLOOKUP(A:A,Sheet4!A:AL,38,0) ->  | AC82: =VLOOKUP(A:A,Sheet3!A:AS,45,0) ->  | AD82: =VLOOKUP(A:A,Sheet5!A:AR,44,0) -> 
A83: 心血管内科 | B83: 事业编 | C83: 医疗 | D83: 2 | E83: 内科学或临床医学（八年制）专业 | F83: 研究生、博士 | G83: ≤35周岁 | H83: 以第一作者发表SCI论文1篇及以上 | L83: 0 | M83: 医1（孙跃民） | N83: 医4技2 | O83: 医3技2 | S83: =VLOOKUP(A:A,Sheet6!A:C,3,0) -> 106 | T83: 169.6 | U83: 138 | V83: 51 | W83: 75 | X83: 12 | Y83: 0 | Z83: =VLOOKUP(A:A,Sheet2!A:AL,38,0) -> 196973 | AA83: =VLOOKUP(A:A,Sheet4!A:AL,38,0) -> 7133 | AC83: =VLOOKUP(A:A,Sheet3!A:AS,45,0) -> 90.1% | AD83: =VLOOKUP(A:A,Sheet5!A:AR,44,0) -> 4.9 | AE83: 3862.215686
B84: 事业编 | C84: 医疗 | D84: 3 | E84: 内科学或临床医学（七年制或八年制）专业 | F84: 研究生、硕士及以上 | G84: ≤35周岁 | H84: 临床方向 | I84: 内科学 | S84: =VLOOKUP(A:A,Sheet6!A:C,3,0) -> 
B85: 事业编 | C85: 医疗 | D85: 1 | E85: 内科学、影像医学与核医学或临床医学（七年制或八年制）专业 | F85: 研究生、硕士及以上 | G85: ≤30周岁 | H85: 具有超声医学或影像医学规培证 | I85: 超声医学 | S85: =VLOOKUP(A:A,Sheet6!A:C,3,0) -> 
B86: 代理制 | C86: 技术 | D86: 1 | E86: 临床医学、影像技术或医学影像 | F86: 本科、学士 | G86: ≤30周岁 | H86: 心电图室方向 | I86: 心电图学 | S86: =VLOOKUP(A:A,Sheet6!A:C,3,0) -> 
B87: 代理制 | C87: 技术 | D87: 1 | E87: 临床医学、影像技术、医学影像或生物医学工程 | F87: 本科、学士 | G87: ≤30周岁 | H87: 导管室方向，接触放射线 | I87: 医学影像 | S87: =VLOOKUP(A:A,Sheet6!A:C,3,0) -> 
A88: 消化内科 | B88: 事业编 | C88: 医疗 | D88: 2 | E88: 内科学或临床医学（八年制）专业 | F88: 研究生、博士 | G88: ≤45周岁 | H88: 以第一作者发表论文2篇以上，至少1篇影响因子≥5，累计影响因子≥10；参加国家级科研课题；具有执业医师资格证书 | L88: 0 | N88: 医1 | O88: 医1 | S88: =VLOOKUP(A:A,Sheet6!A:C,3,0) -> 92 | T88: 147.2 | U88: 101 | V88: 44 | W88: 49 | X88: 3 | Y88: 5 | Z88: =VLOOKUP(A:A,Sheet2!A:AL,38,0) -> 180040 | AA88: =VLOOKUP(A:A,Sheet4!A:AL,38,0) -> 3462 | AC88: =VLOOKUP(A:A,Sheet3!A:AS,45,0) -> 90.2% | AD88: =VLOOKUP(A:A,Sheet5!A:AR,44,0) -> 8.8 | AE88: 4091.818182
A89: 临床营养科 | B89: 代理制 | C89: 医疗 | D89: 1 | E89: 临床医学及其下设二级学科 | F89: 研究生、硕士及以上 | G89: ≤35周岁 | H89: 有医师资格证、有工作经历优先 | I89: 临床营养 | L89: 0 | N89: 医1技1 | O89: 医1技1 | S89: =VLOOKUP(A:A,Sheet6!A:C,3,0) ->  | U89: 6 | V89: 1 | W89: 0 | X89: 4 | Y89: 1 | Z89: =VLOOKUP(A:A,Sheet2!A:AL,38,0) ->  | AA89: =VLOOKUP(A:A,Sheet4!A:AL,38,0) ->  | AC89: =VLOOKUP(A:A,Sheet3!A:AS,45,0) ->  | AD89: =VLOOKUP(A:A,Sheet5!A:AR,44,0) -> 
A90: 超声科 | B90: 事业编 | C90: 医疗 | D90: 1 | E90: 医学影像学（超声学）或临床医学专业 | F90: 研究生、硕士及以上 | G90: ≤35周岁 | I90: 医学影像学（超声学） | L90: 0 | N90: 医1 | O90: 医1 | S90: =VLOOKUP(A:A,Sheet6!A:C,3,0) ->  | U90: 24 | V90: 20 | W90: 0 | X90: 3 | Y90: 1 | Z90: =VLOOKUP(A:A,Sheet2!A:AL,38,0) ->  | AA90: =VLOOKUP(A:A,Sheet4!A:AL,38,0) ->  | AC90: =VLOOKUP(A:A,Sheet3!A:AS,45,0) ->  | AD90: =VLOOKUP(A:A,Sheet5!A:AR,44,0) -> 
A91: 耳鼻咽喉科 | B91: 事业编 | C91: 医疗 | D91: 1 | E91: 外科学、临床医学（八年制）或耳鼻咽喉科学专业 | F91: 研究生、博士 | G91: ≤45周岁 | H91: 具备从事科研工作能力 | I91: 38 | L91: 0 | M91: 医1（周慧芳） | N91: 医1 | O91: 医1 | S91: =VLOOKUP(A:A,Sheet6!A:C,3,0) -> 40 | T91: 64 | U91: 43 | V91: 26 | W91: 14 | X91: 3 | Y91: 0 | Z91: =VLOOKUP(A:A,Sheet2!A:AL,38,0) -> 111942 | AA91: =VLOOKUP(A:A,Sheet4!A:AL,38,0) -> 1448 | AC91: =VLOOKUP(A:A,Sheet3!A:AS,45,0) -> 71.9% | AD91: =VLOOKUP(A:A,Sheet5!A:AR,44,0) -> 7.4 | AE91: 4305.461538
A92: 健康管理中心 | B92: 代理制 | C92: 医疗 | D92: 1 | E92: 内科学（七年制或八年制） | F92: 研究生、硕士及以上 | G92: ≤35周岁 | L92: 医1（副主任医师） | N92: 医1 | O92: 0 | S92: =VLOOKUP(A:A,Sheet6!A:C,3,0) ->  | U92: 61 | V92: 15 | W92: 15 | X92: 5 | Y92: 26 | Z92: =VLOOKUP(A:A,Sheet2!A:AL,38,0) -> 62112 | AA92: =VLOOKUP(A:A,Sheet4!A:AL,38,0) ->  | AC92: =VLOOKUP(A:A,Sheet3!A:AS,45,0) ->  | AD92: =VLOOKUP(A:A,Sheet5!A:AR,44,0) ->  | AE92: 4140.8
B93: 代理制 | C93: 医疗 | D93: 1 | E93: 影像医学；超声专业 | F93: 研究生、硕士及以上 | G93: ≤35周岁 | S93: =VLOOKUP(A:A,Sheet6!A:C,3,0) -> 
A94: 护理部 | B94: 代理制 | C94: 临床护理 | D94: 65 | E94: 护理专业 | F94: 本科及以上学历，学士学位 | G94: ≤30周岁 | L94: 13（中级4，初级9） | M94: 13 | N94: 事业编15、代理制68 | O94: 事业编15、代理制57 | S94: =VLOOKUP(A:A,Sheet6!A:C,3,0) ->  | U94: 2123 | Z94: =VLOOKUP(A:A,Sheet2!A:AL,38,0) ->  | AA94: =VLOOKUP(A:A,Sheet4!A:AL,38,0) ->  | AC94: =VLOOKUP(A:A,Sheet3!A:AS,45,0) ->  | AD94: =VLOOKUP(A:A,Sheet5!A:AR,44,0) -> 
B95: 事业编 | C95: 临床护理 | D95: 9 | E95: 护理专业 | F95: 研究生学历、硕士学位 | G95: ≤35周岁 | S95: =VLOOKUP(A:A,Sheet6!A:C,3,0) -> 
B96: 事业编 | C96: 临床护理 | D96: 10 | E96: 助产专业 | F96: 本科及以上学历，学士学位 | G96: ≤25周岁 | S96: =VLOOKUP(A:A,Sheet6!A:C,3,0) -> 
B97: 事业编 | C97: 临床护理 | D97: 6 | E97: 重症专业 | F97: 本科及以上学历，学士学位 | G97: ≤35周岁 | S97: =VLOOKUP(A:A,Sheet6!A:C,3,0) -> 

Sheet 2022年第一批计划
A1: 天津医科大学总医院2022年第一批公开招聘博士等人员计划
A2: 岗位编号 | B2: 应聘岗位 | C2: 岗位类别 | D2: 计划 人数 | E2: 学科专业 | F2: 学历、学位 | G2: 年龄 | H2: 其他要求
A3: 22201101 | B3: 医师岗位（一） | C3: 专技 | D3: 31 | E3: 临床医学、基础医学及其下设二级学科 （儿科、神经内科、临床心理科、肾脏内科、呼吸内科、核医学科、皮肤性病科、放射治疗科、内分泌代谢科、心血管内科、消化内科、急诊医学科、风湿免疫科、血液内科、肿瘤内科、感染科） | F3: 研究生、博士 | G3: ≤45周岁 | H3: 无
A4: 22201102 | B4: 医师岗位（二） | C4: 专技 | D4: 28 | E4: 临床医学、基础医学及其下设二级学科 （心胸外科、普通外科、骨外科、妇产科、眼科、神经外科、泌尿外科、耳鼻咽喉科、心血管外科、重症医学科、肺部肿瘤外科、麻醉科） | F4: 研究生、博士 | G4: ≤45周岁 | H4: 无
A5: 22201103 | B5: 医师岗位（三） | C5: 专技 | D5: 8 | E5: 临床医学、基础医学及其下设二级学科 （输血科、医学影像科、PET-CT影像诊断科、康复医学科） | F5: 研究生、博士 | G5: ≤45周岁 | H5: 无
A6: 22201104 | B6: 技术岗位 | C6: 专技 | D6: 7 | E6: 临床医学、基础医学、生物学、药学及其下设二级学科 （普通外科、妇产科、精准医学中心、医学检验科、药剂科） | F6: 研究生、博士 | G6: ≤45周岁 | H6: 无
A7: 22201105 | B7: 科研岗位 | C7: 专技 | D7: 2 | E7: 基础医学、公共卫生与预防医学及其下设二级学科 （神经病学研究所、保健医疗部） | F7: 研究生、博士 | G7: ≤45周岁 | H7: 无
A8: 相关要求： 1.报名年龄计算的截止日期为报名工作第一日。 2.应聘人员入职时须取得博士毕业证和博士学位证。 3.具有副高级及以上专业技术职务的应聘人员年龄可适当放宽5周岁。 4.具有副高级及以上专业技术职务的应聘人员学历学位可调整为研究生、硕士及以上。 5.申报医师岗位且学科专业为基础医学及其下设二级学科的应聘人员须具备医师资格证。 6.符合“两个同等对待”政策，具体条件详见《天津医科大学总医院2022年第一批公开招聘博士等人员方案》。
